Workbook

Sheet Application guide
B1: ISA
D2: APPLICATION GUIDE
B3: ISBN 978-85-99764-26-8
B4: Agroecosystems Sustainability Assessment (ISA)
B5: ISA consists of 7 sections:
B6: 1. Application guide
B7: 2. Survey
B8: 3. Indicators
B9: 4. Report
B10: 5. Adequacy plan
B11: 6. Formulas
B12: 7. Data base
B13: Complementary tab - Soil Quality Index (production system scale)
B14: The ISA tool was designed to assess the environmental, social, and economic performance of agroecosystems at the farm scale, as well as to identify limitations, critical points, potentialities, and capabilities across various production systems and occupations. For each indicator, an index raging from 0 to 1 is calculated by comparing on-farm measurements with reference values and applying weghting factors to the corresponding parameters. A baseline value of 0.7 is standardized as the sustainability threshold. A Final Index (Report Tab) is generated based on the average of 17 sustainability indicators. The Soil Quality Index (SQI) tab was developed to assess soil quality at the field-site level and can be replicated for multiple plots or production systems.
B16: Applying the ISA
B18: 1 - Create a sketch of the farm, starting with the perimeter, using Google Earth or a similar program.
B20: 2 - Identify in the sketch the various land uses and occupations, including annual crops, perennial crops, pastures, forests, natural habitats, water bodies, springs, dams, and lakes. Specify the locations to be visited for assessing soil, water, and biodiversity conservation practices, road maintenance, and soil sample collection, if necessary. Additionally, identify sites for water quality evaluation, if applicable.
B22: 3 - Interview with the Farmer: The information required in the spreadsheet serves as a reference to guide the technician. Based on this information, the technician can explore the subject further to gain a deeper understanding of the farm and the people responsible for it.
B25: Worksheet data
B26: 1. SURVEY
A27: 1 | B27: Paste the farm sketch generated in Google Earth or a similar program, including soil use identification
A29: 6 | B29: Land ownership refers to the relationship between the farmer and the rural property: Owner - An individual or legal entity that holds full ownership of the rural property, with real estate registration in their name. They possess both direct ownership rights (the right to transfer or sell the property) and beneficial ownership rights (the right to use or enjoy the property); Possessor - Someone who exercises possession rights through a transfer of ownership documented in an agreement. This occurs when the property title has not yet been registered in the real estate records; Tenant - An individual who leases the rural property for agricultural or livestock purposes under conditions of regular use; Sharecropper - Someone who cultivates the land, wholly or partially, under a written or verbal agricultural contract, compensating the owner or beneficial owner with a percentage of the production; Settler - An individual or family included in an agrarian reform project; User - A person who uses the land as a usufructuary, usually with a family connection, but without possession or ownership rights.
A37: 7 | B37: The ISA is designed to be applied to a single farm. If the farmer has other non-contiguous areas or farms that contribute to their income, they will be described in the table at the end of this section.
A40: 8 | B40: Identify the production plots for annual crops, perennial crops, pastures, and planted forests, as well as non-agricultural areas (e.g., buildings, roads), reservoirs, lakes, ponds, watercourses, and native vegetation (natural habitats). Also, identify unsuitable areas, such as severely eroded or collapsed areas and other lands that, at the time of evaluation, are unfit for economic activities. The total of all areas listed in this section must correspond to the total area calculated in Item 7. Note: Land use and occupation refer only to the property under analysis and do not include other non-contiguous properties.
B44: 2 INDICATORS
A46: 1 | B46: PRODUCTIVITY AND SALES PRICES
B47: OBJECTIVE Assess the farm's annual gross income from agricultural activities, evaluate the productivity and sales value of the most valuable product(s), and compare them with the average productivity and sales values in the municipality or region. Additionally, this indicator examines the relative contribution of each activity to the farm’s total gross income. APPLICATION 1st STAGE - Identify the main sources of income from farming activities and list them in descending order based on their estimated annual gross income (Item 1.1): the first row should list the activity generating the highest gross income; the second row should list the activity generating the second-highest gross income; The remaining activities should be grouped in the third row. 2nd STAGE - Record the main farming activities and select the unit of measurement for evaluating their productivity. The unit of measurement can be modified in the Formulas Tab. 3rd STAGE - Input the productivity indices: for perennial crops, consider the average yield over the last two harvests; for annual crops, consider the average yield of the last harvest; for livestock, consider the average production over the past year. 4th STAGE - Enter the average sales price from the most recent harvest or the previous year. For installment sales, calculate the average price. 5th STAGE - Record the average productivity and sales prices of products in the region or municipality. Use data from official annual reports, cooperatives, associations, or farmers recognized as benchmarks in the region. The spreadsheet will automatically calculate: a partial result based on productivity factors and sales prices; a final result, separate from the average indicators generated for each business activity. After completing and analyzing the data, analyze the factors influencing agricultural productivity, such as: How was this productivity achieved? How are the activities managed? What is the productive capacity of the soil in agricultural areas? What inputs are used, and in what quantities? What are the criteria for applying these inputs? Is machinery and equipment available, or are services outsourced? Is qualified labor available in the region? What are the strategies for purchasing inputs? Is there post-harvest infrastructure, or does it rely on third-party services? How is the production marketed and transported? By addressing these and other relevant questions, it is possible to understand how the indicator was formed. Based on this analysis, assess whether the indicator is appropriate and identify opportunities for improvement. OBS. If the average income calculated in the Report Tab is less than USD 50/ha/year—considering the estimated gross income and the total surveyed area—the final score of this indicator will be reduced by 30%.
A58: 2 | B58: INCOME DIVERSITY
B59: OBJECTIVE Estimate the annual income profile generated by family members directly involved in productive activities on the farm. This includes the proportion of annual income derived from agricultural, livestock, and forestry activities on the farm (Indicator 1), as well as other activities and income sources generated on the farm (e.g., tourism, handicrafts, food processing; Item 2.1) and income generated off the farm (e.g., professional activities, equipment rentals, retirement pensions, scholarships; Item 2.2). The analysis also examines the concentration of gross annual income in a single agricultural activity (Item 2.3). APPLICATION Estimate the income sources generated on the farm (Item 2.1) and off the farm (including agricultural and other activities conducted outside the farm, as well as pensions, retirement benefits, scholarships, and other financial aid—Item 2.2). The percentages for each income source are automatically calculated, along with the assessment of income concentration in a single agricultural activity (above 80%, Item 2.3).
A67: 3 | B67: ASSET DEVELOPMENT AND CURRENT INDEBTEDNESS
B68: OBJECTIVE This indicator aims to estimate the asset value of farms by assessing the value invested in improvements, machinery, livestock, and grain stock, whether existing or acquired during the evaluated period. It estimates the farm’s asset value and analyzes the evolution or regression of assets over a defined period. Additionally, it surveys any renovations, current and recently acquired equipment, machinery, and livestock, and describes any increase or loss of productive agricultural land, including irrigated areas. From the established temporal reference point, the spreadsheet compares the sample period (the period being analyzed by the field technician) with the historical period. This indicator also evaluates the degree of debt by comparing the total value of loans to the total value of the farm. APPLICATION 1st STAGE - (item 3.1) - Define the period of asset evolution, either 1 year or since the last ISA application. 2nd STAGE - (item 3.2) - Enter the estimated value of recently completed facilities, improvements, or renovations (during the period defined in Item 3.1), as well as the estimated value of facilities and improvements existing before this period (either enter the value or use the value from the last ISA application). Enter the estimated value of newly acquired machines and equipment (during the period defined in the first step, Item 3.1) and the estimated value of existing machinery and equipment before the period (Item 3.2). 3rd STAGE - (item 3.3) - Enter the number of animals and agricultural stock, along with their estimated sales value for each category. For the historical value of livestock, check the number of animals and the estimated value of each category. This assessment of structures and stock can be used to update the farmer's profile with the bank. 4th STAGE - (item 3.4) - Survey the area of irrigated agriculture on the farm. Verify whether there has been any change in the irrigated area in the "Historical use" column. 5th STAGE - (item 3.5) - Check for any changes in the history of land use and occupation compared to the current occupation described in the survey. 6th STAGE - (item 3.6) - Enter the current and historical land price values. 7th STAGE - (item 3.7) - Sum all short- and long-term loans taken out by the farmer up to the present.
A76: 4 | B76: ACCESS TO PUBLIC SERVICES
B77: OBJECTIVE This social indicator assesses the availability of certain basic services on rural properties under analysis. Data is collected through interviews with the farmer, considering his perspective on the services available. The evaluation focuses on the quality and quantity of available water, electricity, farm access, health services, school transport, security, internet, and public waste collection. For small farms (Survey Item 7), check the availability of food (vegetables, fruits, tubers, and sources of animal protein) produced on the farm (also checking the areas surrounding the residences) and determine whether it is sufficient to complement the food supply for all people involved in the farm's activities. APPLICATION - Basic services 1st STAGE - Check how many residences on the farm are regularly occupied. 2nd STAGE - For each residence, check the availability of the listed services. To complete this indicator, enter: 1 (satisfactory), 0.5 (partial), or 0 (absent). APPLICATION - Domestic food production (small farms) 1st STAGE - Check how many residences on the farm are regularly occupied. 2nd STAGE - For each residence, or set of residences, check the production of vegetables, fruits, and animals for domestic consumption. OBS: The values for this item are: 1 (present), 2 (partial), or 3 (absent). "Partial" means the item is present but insufficient for the family’s consumption. The reference values for a family of 5, assuming an average of 2,630 kcal per day (according to EMATER, MG research), are: 4 citrus trees; 13 papaya trees; 18 banana trees; 2 milking cows; 4 pigs per year; 100 chickens for meat per year; 50 chickens for eggs; 3 cockerels; 200 kg of manioc; 600 kg of vegetables per year (leaves, roots, fruits).
A91: 5 | B91: EDUCATION AND TRAINING COURSES
B92: OBJECTIVE This social indicator evaluates the educational level of the farmer, their family members directly involved in farm activities, and permanent workers. It also assesses participation in short- and medium-term courses and workshops. The goal is to verify schooling levels and participation in training courses related to the farm’s agricultural activities. APPLICATION 1st STAGE - Identify the number of adults directly involved in production and the number of permanent employees. Determine the number of school-age dependents residing on the farm. 2nd STAGE - For each member, record their level of education and participation in courses related to key farm activities. Additionally, verify whether all school-age children are attending school.
A100: 6 | B100: EMPLOYMENT QUALITY
B101: OBJECTIVE Verify compliance with labor legislation and adherence to a series of recommendations and requirements for both permanent and temporary employees. APPLICATION 1st STAGE - Identify the number of permanent and temporary employees (Item 6.1). 2nd STAGE - Among the permanent and temporary employees, determine how many meet the requirements of labor legislation (Item 7.1) and comply with the recommendations and determinations of federal government (Item 6.2).
A108: 7 | B108: BUSINESS MANAGEMENT
B109: OBJECTIVE This mangement indicator evaluates farm administration practices, the farmer's understanding of these processes, and the management tools they are familiar with and use. It also assesses their awareness of these tools' importance, access to regular technical assistance (not necessarily monthly), participation in cooperatives and/or associations, compliance with environmental regulations, and access to credit. For this indicator, use 1 (satisfactory), 0.5 (partial), or 0 (absent). APPLICATION 1st STAGE - Verify whether any form of cash-flow management is used. 2nd STAGE - Determine if production cost records are maintained. 3rd STAGE - Confirm whether the farmer has access to technical assistance (excluding assistance from salespeople or commercial vendors). 4th STAGE - Check if the farmer participates in any organization, such as cooperatives, unions, or associations. 5th STAGE - Assess whether the farmer complies with environmental regulations. 6th STAGE - Verify if the farmer has access to any form of financial credit.
A119: 8 | B119: COMMERCIALIZATION AND INNOVATION
B120: OBJECTIVE This management indicator analyzes how the farmer manages the commercialization of their products, the value added through certifications (such as organic products or origin certifications), and production diversification by targeting institutional markets. Regarding innovation, the indicator considers the region where the farmer operates, assessing how he adopts innovative techniques compared to regional standards. It acknowledges that a technique considered outdated in one context might be innovative in another. The evaluation includes whether the farmer seeks market information, accesses value-added markets (certified products or those offering quality-based price differentials), or participates in institutional markets (e.g., government programs facilitating direct farmer-to-consumer sales). It also examines the use of management tools focused on key factors in primary activities, the adoption of innovative and environmentally sustainable techniques, and the farmer’s overall capacity for innovation. This indicator provides insights into how the farmer markets their products, their perspective on innovation, and their openness to new technologies. APPLICATION 1st STAGE - Assess how the farmer commercializes their products and obtains market information (e.g., through websites, associations). Determine whether they have certified products or participate in institutional markets (e.g., organic certification, specialty coffee, government programs). 2nd STAGE - During the farm visit, ask about the main challenges he faces and what measures he has taken to address them. Identify recent technological innovations in the region and whether the farmer has adopted them. Evaluate his innovation capacity, leadership role in the community, and willingness to embrace new techniques. Optionally, assess the adoption of practices promoting permanent and diversified soil coverage.
A131: 9 | B131: WASTE RESIDUES MANAGEMENT
B132: OBJECTIVE This management indicator evaluates the disposal of sewage and waste generated on the farm, as well as the management and/or reuse of organic solid waste and the treatment of liquid and gaseous effluents. The assessment is based on interviews with the farmer and field analysis. It examines the disposal methods for domestic sewage, the treatment and disposal of farm-generated waste (both recyclable and non-recyclable), the destination of organic solid residues, and the level of treatment and disposal of liquid and gaseous waste produced on-site. APPLICATION 1st STAGE - Assess the destination of domestic sewage for all site residences (item 9.1). 2nd STAGE - Examine the disposal methods for domestic and production waste, including recyclable materials (e.g., packaging, plastic, paper, cans) and non-recyclable waste (item 9.2). 3rd STAGE - Estimate with the farmer the percentage of total organic residues that are composted or reused in production (e.g., manure, chicken bedding). 4th STAGE - Check whether wastewater is generated from facilities such as stables, animal sheds, or compost units, and estimate the proportion of wastewater that receives adequate treatment and disposal. 5th STAGE - Determine whether the farm generates waste gases (e.g., from boilers, charcoal production, or digesters) and estimate the proportion of these gases that undergo proper treatment before release into the atmosphere. 6th STAGE - Identify any critical waste and effluent management issues on the farm, such as: dry (black) septic tanks located near a watercourse or artesian well; untreated effluents (domestic or livestock) discharged into water bodies; open sewage; burning of plastic waste, batteries, or other synthetic materials on the farm.
A145: 10 | B145: SOIL FERTILITY
B146: OBJECTIVE Evaluate soil fertility and biological activity using ten parameters related to the chemical and physical properties of the soil, along with two soil enzymes (Arylsulfatase and Betaglucosidase) associated with biological activity. These parameters were selected specifically for tropical soils. The data used for analyzing soil biology reference the BioAS technology developed by Embrapa (this analysis is optional). The area analyzed should be either the most representative area or the area where interventions will be implemented based on the technical recommendations provided by the ISA diagnosis. Care must be taken to ensure consistency with the units used in the spreadsheet, as some Fertility Reports may use different units. If necessary, convert the report’s units to those required by the ISA spreadsheet. APPLICATION 1st STAGE - Identify the most representative agricultural production area (either in spatial extent or income generation). Check whether recent soil fertility analyses, including soil texture assessments, have been conducted. 2nd STAGE - Based on the collected information, determine whether new soil samples need to be taken for laboratory analysis. If required, collect samples while avoiding areas that have been recently fertilized, are near swamps, houses, sheds, or ant nests, or have severe erosion. Samples should be taken at a depth of 0–20 cm. Once collected, mix the soil well to obtain a representative sample, separate approximately 300 g, and place it in a clean plastic bag labeled with the area name, date, and property code before sending it to a soil laboratory. For soil biology analyses, follow the same procedure but collect samples at a depth of 0–10 cm. 3rd STAGE - When entering soil analysis data, first describe the plot and the laboratory analysis date. Interpretations of organic matter and phosphorus levels should account for soil texture. Data on soil biological activity involving BioAS can be included (optional). Interpretations are based on the Embrapa system (Mendes et al., 2019).
A159: 11 | B159: SOIL EROSION AND ROAD MAINTENANCE
B160: OBJECTIVE This environmental indicator aims to map areas or plots within the farm where soils are undergoing degradation. It assesses the stage of the degradation process, the size of the degraded area (in hectares), and the trend of the degradation process (decreasing, unchanged, or intensifying). This indicator also evaluates the presence of drainage structures and rainwater runoff systems, as well as the condition and conservation status of the roads. The assessment is conducted through field analysis, observing the condition of the roads, the presence or absence of drainage and runoff structures, and determining whether there is a need for them. It also evaluates the presence of holes and erosion furrows. The conservation of both internal roads and roads that intersect or border the farm is checked. APPLICATION 1st STAGE - Identify any areas with soil degradation. 2nd STAGE - Once identified, determine which area exhibits the greatest intensity and/or most severe stage of degradation. Estimates can be made with the farmer onsite or with the assistance of satellite images. Only one area will be recorded in the spreadsheet, selecting one category (Initial, Intermediate, or Advanced stage). 3rd STAGE - Indicate the trend of degradation by selecting one of the following options: Reduction, Unaltered, or Intensifying. 4th STAGE - Go through the access roads that intersect or border the farm, as well as the internal roads, checking their state of conservation and any conservation measures taken. 5th STAGE - Estimate the degree (%) of conservation measures implemented (item 11.1) and the presence (%) of potholes and erosion grooves (item 11.2). 6th STAGE - Check if there are any critical points on the site that could interfere with access and/or cause runoff of agricultural inputs (item 11.3).
B170: Intensity of the degradation stage
C171: Initial | D171: Intermediate | F171: Advanced
B172: Laminar erosion | C172: Reduction of water infiltration, Exposed roots | D172: Removal of the surface soil horizon
B173: Erosion in furrows | D173: Presence of localized shallow furrows | F173: Deep, widespread furrows throughout the area
B174: Erosion in pits | F174: Presence of pits, mass movement (displacement of large volumes of soil)
B176: ROAD MAITENANCE AND CONSERVATION TRANSVERSAL SLOPE / DECLINE - An inclined cross-section of a road designed to direct runoff into trenches along the roadside. FLOOD CONTROL MOUNDS - Raised cross-cutting elevations along the road edges, guiding surface water to areas that can absorb or contain it, such as terraces or retention pits. CAPTURE PITS / MINI DAMS - Structures designed to control water flow by capturing runoff in high-volume or erosion-prone areas, preventing and mitigating erosive effects. INFILTRATION BASINS - Constructed depressions, typically at the road edges, that reduce flow volume and promote groundwater recharge.
A184: 12 | B184: WATER QUALITY
B185: SUPERFICIAL WATER - OBJECTIVE An environmental indicator that assesses the quality of water used on the farm, including both surface water (lakes, ponds, streams, rivers) and groundwater (springs). It also evaluates how the farmer manages the quality of water entering (upstream) and leaving (downstream) the property. When a watercourse is present on the farm, its aquatic ecosystems should be evaluated at two segments (upstream and downstream) using a rapid assessment protocol for aquatic ecosystems (item 12.1). Complementary analyses may be conducted using pH, nitrate, and coliform test strips, as well as turbidity analysis equipment (item 12.2). APPLICATION 1st STAGE - Identify watercourses that pass through the farm. Based on this information, choose the most representative or most important watercourse for the farmer (e.g., for water supply or irrigation). 2nd STAGE - Once the watercourse is defined, identify upstream and downstream sampling locations: upstream – the point where the watercourse enters the farm or a spring; downstream – the point where the watercourse exits the farm or the next location where it merges with another body of water. 3rd STAGE - (item 12.1) - Apply the rapid aquatic ecosystem evaluation to each of the chosen sampling locations. The assessment can be completed onsite using a printed checklist, tablet, or notebook. 4th STAGE (optional) - (item 12.2) -If test strips are used for pH and nitrate readings, record the results immediately. For microbiological analysis using coliform detection strips, incubate for 15 hours before reading. Do not touch the strip, allow excess water to drain, and store it in aluminum foil until incubation. After incubation, count the blue coliform colonies and multiply each by 60 to record on the worksheet. Turbidity assessment can be conducted onsite using portable equipment. UNDERGROUND WATER - OBJECTIVE Evaluate subterranean water quality when present (e.g., water table well, groundwater well, artesian well, or aquifer beneath an impermeable layer). APPLICATION 1st STAGE (optional) - Identify wells or other access points to subterranean water (including springs) or sources of water used for human consumption. 2nd STAGE (optional) - Collect samples for onsite analysis.
A203: 13 | B203: WATER CONTAMINATION AND PESTICIDE MANAGEMENT
B204: OBJECTIVE Assess water contamination by agrochemicals based on the association between the contamination potential of the products used and the vulnerability of the applied area. Vulnerability is determined by soil texture, proximity to watercourses, and land management practices. Contamination potential is evaluated based on the persistence of active ingredients in the environment, their mobility in the soil profile, and their toxicity. This indicator also evaluates the proper use of pesticides, as well as compliance with all legal requirements for their application. The assessment includes determining whether the farmer uses pesticides, identifying the number of people who handle or are exposed to them, and verifying whether they use personal protective equipment. Additionally, it examines the storage conditions and disposal methods for product packaging. (It is also recommended to follow this procedure for veterinary products, particularly those used for parasite control and vaccinations.). APPLICATION 1st STAGE - Select the primary active ingredient of the products used for pest, disease, and weed control in agricultural systems, pastures, and commercial forests from the provided list (click on the header and select the product – item 13.1). 2nd STAGE - For each pesticide product, identify the crop, the application area (ha), and the applied volume (L or kg/ha). It is recommended to group pesticides by crop (e.g., coffee, corn, soy), even if a product is used across multiple crops, as application rates may differ. 3rd STAGE - The toxicity data, environmental mobility (Koc coefficient, representing the pesticide’s absorption in soil organic matter), and product persistence (t1/2, in-situ half-life in days) are automatically completed. Additional information on active ingredients not listed is available at Herts Pesticide Properties Database. Data on contamination risks for rural workers, consumers, and the environment (Cornell University IEQ index) are also included, along with details on pesticides banned in the European Union. 4th STAGE - For each pesticide, identify the characteristics of the application area, considering: Clay content (1, 2, or 3, based on item 14.5); Distance to the nearest watercourse (1, 2, or 3, based on item 13.6); Soil management type (1, 2, or 3, based on item 13.7).This step aims to determine the vulnerability of these areas concerning water contamination. 5th STAGE - The risk of contamination is calculated automatically for each product. To generate a final risk score, enter in item 13.3 the identified crops, their respective area, and for each crop, the highest verified contamination risk (1, 2, or 3, where 3 is the highest). For example, if five pesticide products were applied to a maize crop, with the following contamination risks:Two products rated 1; Two products rated 2; One product rated 3. The recorded value in the indicator will be 3, as it represents the highest contamination risk. The final result considers the maximum risk and the equivalent area of each crop on the farm. 6th STAGE - Determine whether pesticides are used on any part of the farm, the number of people handling them, and how many use personal protective equipment. 7th STAGE - Verify whether the storage of pesticides and veterinary products is adequate and whether the farmer disposes of packaging in compliance with local laws.
A224: 14 | B224: SOIL AND WATER CONSERVATION PRACTICES
B225: OBJECTIVE Evaluate the degree of adoption of soil and water conservation measures across all production systems on the farm. Verification is conducted on all crop fields and pastures. Additionally, assess the strategies adopted by the farmer for managing drought or water stress and for conserving and reserving water on the farm. APPLICATION 1st STAGE - Assess the adoption of soil conservation measures across all production systems identified in the questionnaire (item 8). See below for examples. 2nd STAGE - After evaluating the degree of adoption of conservation practices—considering the topography, vegetation cover, and, for permanent crops and planted forests, their stage of development—record the respective areas of each plot and pasture according to the following categories: Sufficient – Conservation measures are adequate; Insufficient – Measures are present but inadequate to fully prevent erosion, including low-intensity sheet erosion; Inadequate – Severe lack of soil conservation practices and/or the presence of high-intensity erosion processes. 3rd STAGE - Discuss with the farmer the degree of adoption of water conservation and reservation strategies across the entire farm. Select one of the following categories: Sufficient; Insufficient; Inadequate or highly fragile situation (item 14.2).
B237: SOIL CONSERVATION PRACTICES (ADOPTION INTENSITY) HIGH - Terracing, straw mulching, crop rotations, no-till systems, and permanent, diversified soil cover. MODERATE - Partial adoption of soil conservation practices, soils without good structure. INCIPIENT - Unprotected soil, sowing without following contour lines, or intensive plowing. CRITICAL SITUATION - Extreme lack of soil conservation practices, severe erosion processes, compacted soils, use of harrows and plowing, presence of fire, monocultures without crop rotation, no strategies for maintaining soil cover, etc.
B243: WATER CONSERVATION AND RESERVATION (REFERENCES) SUFFICIENT - Practices adopted are sufficient to guarantee water supply (for drinking and/or irrigated agricultural activities); implementation of structures to minimize the erosive power of surface runoff (primarily runoff) on plots and roads; adoption of strategies to maintain or increase soil organic matter and activate soil biology to stabilize aggregates and improve infiltration and water retention capacity. INSUFFICIENT - Practices adopted are not sufficient to ensure water supply for drinking, irrigation, or agricultural activities, nor to prevent erosion processes. CRITICAL SITUATION- Scarcity of water for human consumption; for animal consumption; absence of practices for coping with drought; recent erosion.
B250: SOIL AND WATER CONSERVATION PRACTICES PLANTING ON LEVEL CURVES - Soil preparation is carried out in accordance with the direction of the level curves of the landscape. For areas with low declivity, flood barriers are created to help reduce erosive processes and promote water infiltration. PREPARATION WITH MINIMAL TILLAGE - A single hole is created for both seeds and fertilizer, eliminating the need for conventional plowing and harrowing. This method preserves soil quality, preventing erosion and the compaction of deeper soil layers caused by heavy machinery. NO TILLAGE - Planting without plowing the soil, using specific machinery to create a small groove or pit of sufficient depth to ensure proper seed-to-soil contact and adequate cover. YEAR-ROUND SOIL PROTECTION - Continuous maintenance of vegetation from previous harvests or the use of cover crops to prevent soil exposure. This reduces evaporation and raindrop impact, as well as surface water flow and erosion. Soil cover also helps reduce invasive plants, enhances soil flora and fauna balance, supports integrated pest and disease management, stabilizes nutrient recycling rates, and promotes biological soil activity. WINDBREAKS - Planting trees at regular intervals around crops, perpendicular to prevailing winds, to provide partial shade and reduce wind velocity. These structures can alters microclimates. The shade helps retain soil moisture, while the trees mitigate wind erosion and can attract other wildlife, including birds. ALTERNATING NATURAL VEGETATION - Applicable in new areas, where partial deforestation allows alternate rows of permanent native vegetation to remain between cultivated crops. This native vegetation serves as windbreaks and provides a refuge for natural pest predators. Similar to windbreaks, the rows should be planted perpendicular to the prevailing wind. INTERCROPPING - Planting species of different sizes, cycles, and behaviors enhances biodiversity and allows for better nutrient absorption across various soil layers. TERRACING - Terraces can be level, off-level, or mixed. Level terraces have blocked extremities to accumulate and infiltrate water and are recommended for areas with good permeability and a slope of up to 12%. Off-level terraces have a gentle gradient and are ideal for directing water to areas with low permeability or slopes greater than 12%. Mixed terraces serve both to accumulate and guide water, holding it until excess water is carried down the sides. On slopes or hills with high water volume and velocity, off-level terracing is recommended. Terrace placement, design, and construction should be carried out by qualified professionals.
A268: 15 | B268: BIODIVERSITY CONSERVATION PRACTICES
B269: OBJECTIVE Assess the diversity within individual crops and fields, as well as the overall diversity at the farm scale. APPLICATION 1st STAGE - Evaluate the degree of adoption of practices that promote agrobiodiversity in each plot. These practices include intercropping, consortia, crop-livestock integration, polycultures, agroforestry, green manure, plant barriers, ecological corridors, crop rotation, soil biology activation, and the reduction of disturbances to biological activity (e.g., indiscriminate pesticide use, high-solubility fertilizers, intense mechanization, and monoculture pressure). Item 15.1 can be completed similarly to item 14.1 of Indicator 14 (degree of adoption of conservation practices). 2nd STAGE - The degree of diversity at the farm scale is measured automatically by evaluating the diversity of phytophysiognomies of the natural habitats (native vegetation) and soil use, using the Shannon-Wiener index. 3rd STAGE - The diversity of border areas and the farm’s land use is assessed based on the proportion of crops and similar land uses along border areas (e.g., grazing pastures, soybean fields, coffee plantations). This helps determine whether monoculture pressure is present. If more than 70% of the bordering areas share the same land use, mark "yes" in item 15.3.
B282: BIODIVERSITY CONSERVATION PRACTICES (ADOPTION INTENSITY) HIGH - Intercropping, diversification of cultivated and non cultivated species, use of mixed cover crops, permanent soill cover, minimal or no use of pesticides and soluble fertilizers, use of bio-inputs, and the use of green barriers or strips of perenial species that enhance ecossystems services, such as providing refuge to polynators and natural enemies . MODERATE - Partial adoption of biodiversity conservation practices. INCIPIENT - Low adoption of biodiversity conservation practices (e.g. crop rotation limited to two or three species; use of cover crops with one specie, parcial soil cover throughout the year, incipient use of biological inputs) CRITICAL SITUATION - Bare soil, use of fire, monocropping systems without rotation or diversification
A288: 16 | B288: NATURAL HABITATS STATUS
B289: OBJECTIVE Evaluate the conservation status of remaining native vegetation areas and the number of fragments in which these remnants are distributed on the rural property. Additionally, assess whether these fragments are connected to those on neighboring rural properties, forming ecological corridors. Identify the phytophysiognomy and conservation status with reference to the successional stages of the principal biomes. APPLICATION 1st STAGE - Identify the different types of native vegetation (select the phytophysiognomy in the header of the indicator table by clicking on the header and choosing from the seven types). 2nd STAGE - Estimate the area corresponding to each native vegetation fragment and identify its successional stage. 3rd STAGE - Check the number of fragments within the farm using field observations and satellite images (item 18.2). 4th STAGE - Determine whether any fragment is connected to one on neighboring properties (mark with an "X" if present) (item 18.3). 5th STAGE - Verify whether all native vegetation fragments are protected from grazing (with sufficient fencing) and fire (presence of firebreaks with annual maintenance). If present, mark with an "X" (item 18.4).
A302: 17 | B302: PRESERVATION AND CONSERVATION RESERVE AREAS
B303: OBJECTIVE Assess the use and occupation of land and the conservation status of Preservation Areas (PAs) surrounding springs and water bodies. This evaluation helps determine the overall conservation status of the PAs. Evaluate also whether the remaining native vegetation areas are sufficient to constitute the Conservation Reserve Areas (CRA). APPLICATION 1st STAGE - Data for item 17.1 is completed automatically, except for the identification of soil use types in PAs (refer to item 9 - Survey). 2nd STAGE - Verify, both onsite and through satellite imagery, the percentage of PAs that are effectively protected and in good conservation status (item 17.2). 3rd STAGE - Compliance with the CRA is determined automatically for small farms. Otherwise, complete item 17.3: CRA outside the farm – When the CRA, or part of it, is located outside the farm; CRA requiring restoration – When the CRA within the farm requires restoration.

Sheet 1 Survey
B1: ISA | D1: SURVEY
A3: 1 | B3: FARM'S SKETCH / SATELLITE IMAGE
B32: Fill in all the fields in yellow
A34: 2 | B34: DATE
A36: 3 | B36: INTERVIEWER
B38: Name
B40: ID
A42: 4 | B42: FARMER
B44: Name
B46: ID
B48: Age (years)
A50: 5 | B50: FARM LOCATION
B52: Geolocation*
B53: *Coordinates of decimal degrees
B54: Municipality
B56: State
B58: Watershed*
B59: *the main water course identification
A60: 6 | B60: OWNERSHIP
B62: Ownership | E62: Choose an option by clicking on the field beside | I62: Owner
I63: Sharecropper
B64: Succession process | E64: Choose an option | I64: Settler
I65: Tenant
B66: Woman participation (management) | E66: Choose an option | I66: Partner
I67: User
A68: 7 | B68: FARM DESCRIPTION | I68: Yes
B70: Farm identification | I70: No
B72: Area - hectares (ha)
B74: Small scale agriculture | E74: Choose an option
B76: Other non-contiguous areas and/or rental areas that contribute to the farmer's income
B77: Site identification
B79: Area (ha)
A81: 8 | B81: LAND USE AND COVER
B83: Description | D83: Current use Area (ha) | E83: Proportion in relation to total area %
B84: Permanent crops | E84: =(D84/'3 Report'!$H$5) -> 
B85: Annual crops | E85: =(D85/'3 Report'!$H$5) -> 
B86: Pastures | E86: =(D86/'3 Report'!$H$5) -> 
B87: Forestry | E87: =(D87/'3 Report'!$H$5) -> 
B88: Non-agricultural area | E88: =(D88/'3 Report'!$H$5) ->  | I88: =SUM(D84:D88,D92) -> 0.0
B89: Fallow | E89: =(D89/'3 Report'!$H$5) ->  | F89: Verification | I89: =D89 -> 0.0
B90: Water courses | E90: =(D90/'3 Report'!$H$5) ->  | I90: =D90 -> 0.0
B91: Native vegetation | E91: =(D91/'3 Report'!$H$5) ->  | I91: =D91 -> 0.0
B92: Unsuitable areas* | E92: =(D92/'3 Report'!$H$5) ->  | F92: =IF(H92>0,(H92/'3 Report'!$H$5),"") ->  | G92: Total (ha) | H92: =SUM(D84:D92) -> 0.0 | I92: =SUM(I88:I91) -> 0.0
B93: *Areas with intense erosion and other areas that at the time of the evaluation are unusable for economic activities | I93: =SUM(I88:I91) -> 0.0
A94: 9 | B94: PRESERVATION AREAS (PAs) (buffer zones along water bodies like rivers, streams, and wetlands)
B95: The PPA preservation aims to prevent soil erosion processes, filter runoff, and provide habitats for aquatic and terrestrial species.
D96: Area (ha) | E96: Proportion in relation to total area (%) | H96: 0.1
B97: PA - Total area estimated | E97: =IF(D97>0,D97/I92,0) -> 0.0% | H97: 0.2 | I97: =D97-D98 -> 0.00 | J97: =IF(I97>0,I97/'1 Survey'!$I$93,"") -> 
B98: PA - area to be recovered* | E98: =IF(D98>0,D98/I92,0) -> 0.0% | H98: 0.3
H99: 0.8
A100: 10 | B100: CONSERVATION RESERVE AREA (CRA)
B101: Portions of farms are set aside as protected areas where native vegetation and wildlife can thrive. The proportion of these areas depends on farm size, regional biodiversity goals, and regulatory requirements. The exploitation of natural resources within these areas if allowed is limited and requires appropriate licenses. Conservation reserve areas can be part of legal or voluntary programs aimed at improving water quality, preventing soil erosion, and supporting wildlife habitats. Preservation areas can be integrated into conservation reserve areas.
B103: Conservation Reserve Area (% of the farm area) | F103: Set-Asides range
B104: Area with native vegetation exceeding CRA (ha) | E104: =IF(I91>'2 Indicators'!D450,'1 Survey'!I91-'2 Indicators'!D450,0) -> 0.00
A106: 11 | B106: WATER RESOURCES (farm level)
E107: Quantity
B108: Water courses
B109: Springs
B110: Natural lakes and ponds
B111: Dams
B113: Water source used in the farm:
B114: Superficial | F114: Choose an option
B115: Underground* | F115: Choose an option
B116: *Springs, cisterns, tubular well
B118: Problems with water* | F118: Choose an option
B119: *Quality and availability for human consumption and rural activities
B120: Specify (description of the problem)
A122: 12 | B122: ENVIRONMENTAL REGULARIZATION
B124: Regularization of water use | F124: Choose an option
B125: Issuance or registration of insignificant use.
B126: Environmental license | F126: Choose an option
B127: Exemption from licensing or Environmental Licensing.
A129: 13 | B129: FARM'S CRITICAL POINTS (Description of the main problems faced by the farmer)
B131: Description
B133: Description
B135: Description
A138: 18
A176: 19 | B176: ATIVIDADE PECUÁRIA (opcional)
B178: 19.1 - Utiliza pastagens plantadas para a atividade pecuária | H178: caso afirmativo marque x
B179: Estimativa da área, considerando áreas próprias e arrendadas (ha)
B181: Total de UA (Unidade Animal) do empreendimento - item 12.3 => | G181: =('2 Indicators'!C71*1.5)+'2 Indicators'!#REF!+'2 Indicators'!#REF!+('2 Indicators'!#REF!*0.75)+('2 Indicators'!#REF!*0.75)+('2 Indicators'!#REF!*0.5)+('2 Indicators'!#REF!*0.5) -> 
B182: Estimativa da taxa média de lotação das áreas com pastagem | G182: =IF(G178="x",(G181/G179),"") -> 
B184: Proporção das pastagens no imóvel rural que apresentam processo de degradação dos solos e baixa capacidade de suporte de animais (%)
A187: 20 | B187: ADUBAÇÃO NITROGENADA NA LAVOURA DE MILHO (opcional)
B189: 20.1 - Possui lavoura de milho para produção de grãos
B190: Estimativa da área (ha)
B192: 20.2 - Possui lavoura de milho para produção de silagem
B193: Estimativa da área (ha)
B195: 20.3 - Estimativa da adubação nitrogenada para a lavoura de milho (kg de N/ha)*
B196: *Considerar apenas os adubos nitrogenados solúveis (NPK, ureia, sulfato de amônia, etc.)
B198: 20.4 - Produtividade da lavoura de milho para grãos (sc/ha)*
B199: Estimativa da relação: sc milho produzido (60 Kg)/kg de N via adubação/ha | I199: =IF(I189="x",(I198/I195),"") -> 
B201: 20.5 - Produtividade da lavoura de milho para silagem (t/ha)*
B202: Estimativa da relação: tonelada (t) de milho produzido (silagem)/kg de N via adubação/ha | I202: =IF(I192="x",(I201/I195),"") -> 

Sheet 2 Indicators
B1: ISA | C1: INDICATORS
B3: Complete the fields in yellow
A5: 1 | B5: PRODUCTIVITY AND SALES PRICES
B7: 1.1 Estimated gross annual income on the farm (descending order)
C8: Choose an option | D8: Annual estimated value ($)
B9: Activity 1 (higher income) | E9: =(D9/($D$9+$D$10+$D$11+D28+$D$29+$D$30+'2 Indicators'!$D$34+'2 Indicators'!D35)) -> 
B10: Activity 2 | E10: =(D10/($D$9+$D$10+$D$11+D28+$D$29+$D$30+'2 Indicators'!$D$34+'2 Indicators'!D35)) -> 
B11: Others activities | E11: =(D11/($D$9+$D$10+$D$11+$D$28+$D$29+$D$30+'2 Indicators'!$D$34+D35)) -> 
B12: *Agricultural, livestock and/or forestry activities carried out at the farm
B14: 1.2 Productivity of the main activities | D14: Activity 1 | E14: Activity 2 | F14: Activity 3
B15: Activities (select) | G15: Weighting factor
B16: Units of measurement (select) | G16: > 20% | H16: 0.9
B17: Current mean productivity | G17: Production or sale price = local | H17: 0.7
B18: Mean selling price ($/un.)
B19: Mean local productivity | G19: < 20% | H19: 0.5
B20: Mean local price ($/un.) | G20: < 40% | H20: 0.3
B22: Result | C22: =IF(D17>0,Formulas!G15,0) -> 0.00 | D22: Reference: Depontti (2002); Mattos Filho (2004); Lopez e Ridaura (2001).
A24: 2 | B24: INCOME DIVERSITY
B26: 2.1 Estimated gross annual income of other activities on the farm*
C27: Activities description | D27: Annual estimated value ($)
B28: Activity 1 | E28: =(D28/($D$9+$D$10+$D$11+$D$29+$D$30+'2 Indicators'!$D$34+D28+D35)) -> 
B29: Activity 2 | E29: =(D29/($D$9+$D$10+$D$11+$D$29+$D$30+'2 Indicators'!$D$34+'2 Indicators'!D35+D28)) -> 
B30: Others activities | E30: =(D30/($D$9+$D$10+$D$11+$D$28+$D$29+$D$30+'2 Indicators'!$D$34+'2 Indicators'!D35)) -> 
B31: *Tourism, handicrafts, agribusiness, processed foods, etc.
B33: 2.2 Estimated gross annual income off-site activities*
B34: Pension, retirement, financial aid ($) | E34: =(D34/('2 Indicators'!$D$9+'2 Indicators'!$D$10+'2 Indicators'!$D$11+$D$28+'2 Indicators'!$D$29+'2 Indicators'!$D$30+$D$34+'2 Indicators'!D35)) -> 
B35: Other activities outside the farm ($) | E35: =(D35/('2 Indicators'!$D$9+'2 Indicators'!$D$10+'2 Indicators'!$D$11+$D$28+'2 Indicators'!$D$29+'2 Indicators'!$D$30+$D$35+'2 Indicators'!D34)) -> 
B36: *All the incomes of family members with direct ties to the establishment (machinery rental, off-site employment, services rendered, etc.)
B38: 2.3 Income Diversity | F38: Proportion of income (%) | G38: Weighting factor
B39: Agricultural, livestock and forestry activities carried out on the farm | F39: =(E11+E10+E9) ->  | G39: 2.0
B40: Other activities on the farm | F40: =(E30+E29+E28) ->  | G40: 2.0
B41: Off-site activities | F41: ='2 Indicators'!E35 ->  | G41: 1.0
B42: Retirement; Pension; Financial help; Other sources of income | F42: ='2 Indicators'!E34 ->  | G42: 0.3
B43: Concentration in a single activity on the farm (> 80% of the total income verified) | F43: =IF('2 Indicators'!E9>0.8,"Yes","no") ->  | G43: Income ratio verification | H43: =F39+F40+F41+F42 -> 
B45: Result | C45: =IF(H43<0.99,"",Formulas!H32) ->  | D45: Adaptation APOIA-NovoRural (Rodrigues et al, 2010), Deponti (2002).
A47: 3 | B47: ASSET DEVELOPMENT AND CURRENT INDEBTEDNESS
B49: 3.1 Equity evolution period (years)
B51: 3.2 Farm asset evaluation
B52: 3.2.1 Construction / Renovation (recent period)* | G52: Valor histórico*
B53: Description | C53: Estimated value ($)
C54: $0.00
B55: *evaluation period defined on item 3.1
B56: 3.2.2 Existing buildings and constructions on the farm*
B57: Description | C57: Estimated value ($) | G57: =IF(C58>0,((1+0.04167)^'2 Indicators'!$D$49*C58)," ") -> R$ 0.00
C58: $0.00 | E58: Historical Value*
B59: *Depreciation - 40 years | C59: Total | D59: =C58+C54 -> $0.00 | E59: =SUM(G57:G57) -> $0.00
B60: 3.2.3 Equipment - acquired | G60: Valor histórico*
B61: Description | C61: Estimated value ($)
C62: $0.00
B63: *evaluation period defined on item 3.1
B64: 3.2.4 Equipment - existing on the farm*
B65: Description | C65: Estimated value ($) | G65: =IF(C66>0,((1+0.052632)^'2 Indicators'!$D$49*C66)," ") -> R$ 0.00
C66: $0.00 | E66: Historical Value*
B67: *Depreciation - 20 years | C67: Total | D67: =C66+C62 -> $0.00 | E67: =SUM(G65:G65) -> $0.00
B69: 3.3 Animals / stock* | E69: Historical (before period defined item 3.1)
B70: Description (choose) | C70: Amount (un.) | D70: Current value ($) | E70: Amount (un.) | F70: Value ($)
F71: $0.00
F72: $0.00
B73: *Maize, soybeans, coffee, etc. | C73: Total | D73: =SUM(D71:D72) -> 0 | E73: Total | F73: =SUM(F71:F72) -> R$ 0.00
B75: 3.4 Irrigation Systems | D75: Historical use (ha)*
B76: Irrigation system | C76: Total area (ha)
B78: *before the period defined in item 3.1
B79: 3.5 Land use and cover | C79: Current use (ha) | D79: Historical use (ha)*
B80: Permanent crops | C80: ='1 Survey'!D84 -> 0 | D80: =C80 -> 0.00
B81: Annual crops | C81: ='1 Survey'!D85 -> 0 | D81: =C81 -> 0.00
B82: Pastures | C82: ='1 Survey'!D86 -> 0 | D82: =C82 -> 0.00
B83: Forestry | C83: ='1 Survey'!D87 -> 0 | D83: =C83 -> 0.00
B84: Non-agricultural area | C84: ='1 Survey'!D88 -> 0 | D84: 0.00
B85: Fallow | C85: ='1 Survey'!D89 -> 0 | D85: 0.00
B86: Water courses | C86: ='1 Survey'!D90 -> 0 | D86: 0.00
B87: Native vegetation | C87: ='1 Survey'!D91 -> 0 | D87: 0.00
B88: Unsuitable areas | C88: ='1 Survey'!D92 -> 0 | D88: 0.00
B89: Total (ha) | C89: =SUM(C80:C88) -> 0.00 | D89: =SUM(D80:D88) -> 0.00
B90: *before the period defined in item 3.1
B91: 3.6 Land value | C91: Current ($/ha) | D91: Historical ($/ha)*
B92: Reference value
B93: *before the period defined in item 3.1
B94: Estimated farm's total asset values** | C94: Current ($/ha) | D94: Historical ($/ha)*
C95: =Formulas!E57+'2 Indicators'!D73+'2 Indicators'!D67+'2 Indicators'!D59 ->  | D95: =Formulas!J57+'2 Indicators'!E59+'2 Indicators'!E67+'2 Indicators'!F73 -> 
B96: **(Sum of improvements, machines, equipment, animals and land value)
B98: Asset development | F98: Evolution in the period (%) | G98: Weighting factor
B100: External factor | C100: Land value in the region | F100: =IF('2 Indicators'!C92>0,('2 Indicators'!C92/'2 Indicators'!D92-1),"") ->  | G100: 0.7
B101: Internal factors (Farm) | C101: Buildings | F101: =IF('2 Indicators'!D59>0,('2 Indicators'!D59/'2 Indicators'!E59-1),"") -> 100.0% | G101: 1.0
C102: Equipment | F102: =IF('2 Indicators'!D67>0,('2 Indicators'!D67/'2 Indicators'!E67-1),"") -> 100.0% | G102: 1.0
C103: Animals / Grain stock | F103: =IF('2 Indicators'!D73>0,('2 Indicators'!D73/'2 Indicators'!F73-1),"") ->  | G103: 1.0
C104: Increase in the agriculture area and/or irrigation area | F104: =+Formulas!H59 ->  | G104: 1.0
B105: Anual asset development (%) | F105: =(+Formulas!H63)/D49 -> 
B106: Anual asset development discounting land appreciation (%) | F106: =(Formulas!H61)/D49 -> 
B107: Partial result | C107: =IF(Formulas!I39>1,1,Formulas!I39) ->  | D107: Reference: Rodrigues et al, 2010; Gitman and Zutter (2015).
B109: 3.7 Current Indebtdeness | F109: % debt/equity | G109: Weighting factor
B110: Total amount of debt and investments in relation to the asset | F110: 0-7,5% | G110: 07 - 1 (y = 0,04x + 0,7)
B111: Total Amount - financing and other financial commitments | F111: 7,5-30% | G111: 1 - 01 (y = -0,04x + 1,3)
B112: Value of debt in relation to equity (%) | E112: =E111/C95 ->  | F112: >30% | G112: 0.1
B113: Partial result | C113: =Formulas!G68 ->  | D113: Adaptation APOIA-NovoRural (Rodrigues et al, 2010), Deponti (2002).
B115: Result | C115: =IF(C107="","",((C107*2)+C113)/3) -> 
A117: 4 | B117: ACCESS TO PUBLIC SERVICES
B119: 4.1 Number of residences
D121: Choose an option: 1 (satisfactory); 0.5 (partial); 0 (absent)
B122: 4.2 Basic services available | D122: Rural residence (1) | E122: Other residences | F122: Weighting factor
B123: Water availability (quantity and quality) | F123: 1.0
B124: Access to electricity | F124: 1.0
B125: Regular road access to the farm | F125: 1.0
B126: Access to health care | F126: 1.0
B127: Regular access to school transportation | F127: 1.0
B128: Security in the area (patrol for rural policing) | F128: 1.0
B129: Internet | F129: 1.0
B130: Waste collection by the municipality | F130: 1.0
B132: Partial result | C132: =IF('1 Survey'!E118="sim",(Formulas!H77/10),(Formulas!H77/8)) -> 0.00 | D132: Adaptation APOIA-NovoRural (Rodrigues et al, 2010).
B134: 4.3 Domestic food production (only for small scale agriculture) | D134: Choose an option: 1 (satisfactory); 0.5 (partial); 0 (absent)
D135: Rural residence (1) | E135: Other residences | F135: Weighting factor
B136: Vegetables, grains, and tubers | F136: 1.0
B137: Orchard | F137: 1.0
B138: Milk, eggs, and meat production | F138: 1.0
B140: Partial result | C140: =IF('1 Survey'!D74="No","",Formulas!F89/3) -> 0.00 | D140: Reference - Correa (2007).
B142: Result | C142: =IF(C140="",C132,(((C132*2)+C140)/3)) -> 0.00
A144: 5 | B144: EDUCATION AND TRAINING COURSES
D145: Fill in the number of people in each field
B146: 5.1 Degree of education | D146: Family members | E146: Permanent workers
B147: Number of people working in the farm | F147: Weighting factor
B148: Less than 9 years of study | F148: 0.7
B149: Complete primary education | F149: 1.0
B150: Complete secondary education | F150: 1.2
B151: College / University | F151: 1.5
D153: Fill in the number of people in each field
B154: 5.2 Courses related to the farm's main activities | D154: Family members | E154: Permanent workers
B155: Short training season | F155: 0.5
B156: Long-term training | F156: 0.8
D158: Fill in the number of people in each field
B159: 5.3 Education | D159: Family members (6 - 18 years old) | E159: Family members of resident workers (6 - 18 years old) | F159: Weighting factor
B161: Number of children living on the farm
B162: Number of children in school | F162: 1.0
B164: Result | C164: =IF(Formulas!K96>1,1,Formulas!K96) ->  | D164: Reference: Calorio (1997), Correa (2007) e Rodrigues et al. (2003).
A166: 6 | B166: EMPLOYMENT QUALITY
D167: Fill in the number of people in each field
B168: 6.1 Compliance with Labor Legislation | D168: Permanent employees | E168: Temporary employees | F168: Weighting factor
B170: Number of employees in the farm
B171: Employee registration | F171: 1.0
B172: Overtime payment / absence of overtime | F172: 1.0
D174: Fill in the number of people in each field
B175: 6.2 Adoption of benefits / compliance with the Labor Legislation | D175: Permanent employees | E175: Temporary employees
B177: Above minimum wage | F177: 1.0
B178: Food supplementation | F178: 1.0
B179: Housing assistance | F179: 1.0
B180: Education and transportation assistance | F180: 1.0
B181: Profit sharing | F181: 5.0
B182: Accident insurance | F182: 3.0
B183: Access to leisure | F183: 1.0
B184: Space for growing food | F184: 3.0
B186: Result | C186: =IF(Formulas!H108>1,1,Formulas!H108) -> 0.70 | D186: Adaptation APOIA-NovoRural (Rodrigues et al, 2010).
A188: 7 | B188: BUSINESS MANAGEMENT
C190: Choose an option: 1 (complies satisfactorily); 0.5 (partially); 0 (nonexistent) | F190: Weighting factor
B191: 7.1 Accounting | C191: Cash flow (income / expense) | F191: 1.0
C192: Production's cost | F192: 1.0
B193: 7.2 Access to technical assistance* | F193: 1.0
B194: 7.3 Existence of rural associations and the farmer's participation | F194: 1.0
B195: 7.4 Environmental regularization (water use, licensing) | F195: 2.0
B196: 7.5 Credit | C196: Access to investment loans | F196: 0.4
C197: Access to loans for the farm activities | F197: 0.4
C198: Access loans for commercialization | F198: 0.2
B199: * Do not consider technical assistance from resales companies.
B200: Result | C200: =((+E191*F191+E192*F192+E193+E194+E195*2+E196*F196+E197*F197+E198*F198)/7) -> 0.00 | D200: Reference: Correa (2007).
A202: 8 | B202: COMMERCIALIZATION AND INNOVATION
B204: 8.1 Commercialization | E204: Choose an option | F204: Weighting factor
B205: Buyer diversification / Market research, pre-sale pricing | F205: 0.4
B206: Certified production / Added value | F206: 0.4
B208: 8.2 Innovation (conservation / regenerative practices) | E208: Choose an option
B209: Adoption of innovative techniques* | F209: 0.3
B210: Description
B211: Ability to innovate or leadership | F211: 0.4
B212: Description
B213: * Concept, practice or technology, perceived as new by the individual or social group. Scientific and technological knowledge transformed into good practices (conservation / regenerative agriculture principles )
B214: 8.3 Adoption of conservation / regenerative practices (optional) | D214: Choose an option | E214: If so, what proportion of the production area adopts this practice (%)
B215: Use of bioinputs in production areas
B216: Use of cover crops / perennials for shading**
B217: ** Strategies for permanent soil cover; increasing biodiversity and/or animal welfare
B218: Result | C218: =IF(Formulas!F128>1,1,Formulas!F128) -> 0.00
A220: 9 | B220: WASTE RESIDUES MANAGEMENT
D221: Choose an option by clicking the field below | G221: Weighting factor
D222: Rural residence (1) | E222: Other residences
B223: 9.1 Sewage destination | F223: =Formulas!M144 ->  | G223: 1.0
B224: 9.2 Garbage destination | F224: =Formulas!M150 ->  | G224: 1.0
B226: Mandatory field | E226: (%)
B227: 9.3 Composting and/or reuse of organic solid waste | G227: 1.0
B229: Leave the field blank when there is no generation of liquid and/or gaseous effluents | E229: (%)
B230: 9.4 Adequate allocation and treatment of liquid effluents*. | F230: =IF(ISBLANK(E230),Formulas!$K$136," ") -> Not applicable | G230: 1.0
B231: 9.5 Treatment of gaseous effluents (generated in boilers, biodigesters). | F231: =IF(ISBLANK(E231),Formulas!$K$136," ") -> Not applicable | G231: 1.0
B232: * Treatment station; Biodigestor; Composting; etc.
E233: Choose an option
B234: 9.6 Critical point regarding the management of waste/effluents*
C235: *Critical situation - specify
B236: Result | C236: =IF(Formulas!H136=0,0.7,+Formulas!F137) -> 0.70 | D236: Adaptation APOIA-NovoRural (Rodrigues et al, 2010).
A238: 10 | B238: SOIL FERTILITY
B240: Plot identification
B241: 10.1 Soil chemical analysis | E241: Result
B242: Clay content | D242: dag kg-1 (%) Clay | E242: =IF(ISBLANK(C242),0,IF(C242<=15,Formulas!H156,IF(AND(C242>15,C242<35),Formulas!H157,IF(AND(C242>=35,C242<=60),Formulas!H158,IF(C242>60,Formulas!H159))))) -> 0.00
B243: Organic matter | D243: (dag kg-1) | E243: =IF(Formulas!M168>1,1,IF(Formulas!M168<0,0,Formulas!M168)) -> 0.00
B244: Available P | D244: (mg dm-3) (Mehlich-1) | E244: =IF(Formulas!F197>1,1,IF(Formulas!F197<0,0,Formulas!F197)) -> 0.00
B245: Exchangeable Ca | D245: (cmolc dm-3) | E245: =IF(ISBLANK(C245),0,IF(Formulas!I205>1,1,IF(Formulas!I205<0,0,Formulas!I205))) -> 0.00
B246: Exchangeable Mg | D246: (cmolc dm-3) | E246: =IF(ISBLANK(C246),0,IF(Formulas!I214>1,1,IF(Formulas!I214<0,0,Formulas!I214))) -> 0.00
B247: Exchangeable K | D247: (mg dm-3) | E247: =IF(ISBLANK(C247),0,IF(Formulas!I223>1,1,IF(Formulas!I223<0,0,Formulas!I223))) -> 0.00
... 180 more rows

Sheet 3 Report
A1: ISA | D1: REPORT
F3: Application date | H3: =IF('1 Survey'!C34="","",'1 Survey'!C34) -> 
B4: FINAL INDEX | D4: ='3 Report'!Q65 ->  | F4: Farm | H4: ='1 Survey'!D70 -> 0
B5: Standard Deviation | D5: =STDEV(Q66:Q82) ->  | F5: Area (ha) | H5: ='1 Survey'!D72 -> 0.0
B23: Land use and cover | H23: Land use and cover
H24: Nº of fragments with native vegetation | K24: =+'2 Indicators'!F429 -> 0
H25: Nº of water courses | K25: ='1 Survey'!E108 -> 0
H26: Nº of springs | K26: ='1 Survey'!E109 -> 0
H27: Nº of natural lakes and ponds | K27: ='1 Survey'!E110 -> 0
H28: Nº of dams | K28: ='1 Survey'!E111 -> 0
H29: Irrigation area (ha) | K29: =+'2 Indicators'!C77 -> 0
H31: Problems with water supply | K31: =IF('1 Survey'!E118="x","Yes","No") -> No
H34: Management
H35: Gross income ($/ha/year) | K35: =+K38/('1 Survey'!D72+'1 Survey'!D79) -> 
H36: Debt in relation to the Asset | K36: ='2 Indicators'!E112 -> 
H37: Anual gross income in relation to the Asset | K37: =K38/'2 Indicators'!C95 -> 
B38: Soil Fertility | H38: Gross income ($/year) | K38: =SUM('2 Indicators'!D9:D11)+SUM('2 Indicators'!D28:E30) -> 
B39: Soil organic matter (dag kg-1) | E39: ='2 Indicators'!C243 -> 0.0 | H39: Proportion of main gross activity/gross income | K39: =+'2 Indicators'!E9 -> 
B40: Phosphorus (mg dm-3) | E40: ='2 Indicators'!C244 -> 0.0
B41: Calcium (cmolc dm-3) | E41: ='2 Indicators'!C245 -> 0.0 | H41: Participation of women in the farm management | K41: ='1 Survey'!D66 -> 0.0%
B42: Magnesium (cmolc dm-3) | E42: ='2 Indicators'!C246 -> 0.0 | H42: Succession process (farm management) | K42: ='1 Survey'!D64 -> 0.0%
B43: Potassium (mg dm-3) | E43: ='2 Indicators'!C247 -> 0.0
B44: Active acidity (pH) | E44: ='2 Indicators'!C248 -> 0.0 | H44: Amount of pesticides / prod. area (L/ha/year) | K44: =Formulas!D503 -> 
B45: Aluminium (cmolc dm-3) | E45: ='2 Indicators'!C249 -> 0.0 | H45: Anual volume of pesticides (L) | K45: =Formulas!D500 -> 
B46: CEC (cmolc dm-3) | E46: ='2 Indicators'!C250 -> 0.0 | H46: ∑ EIQ Final Index (pesticides) | K46: =SUM('2 Indicators'!D358:F358,Formulas!D429:L429,Formulas!D458:L458,Formulas!D486:I486) -> 0
B47: Base Saturation (%) | E47: ='2 Indicators'!C251 -> 0.0
B48: K/CTC (reference 3 - 5%) | E48: =IF(E43>0,((E43/1000*2.5577)/E46*100),"") ->  | H48: Soil Biology
B49: Ca/CTC (reference 40 - 60%) | E49: =IF(E41>0,E41/E46*100,"") ->  | H49: Arylsulfatase (mg p-nitrofenol kg-1 h-1) | K49: =IF('2 Indicators'!C255="","",'2 Indicators'!C255) -> 
B50: Mg/CTC (reference 10 - 15%) | E50: =IF(E42>0,E42/E46*100,"") ->  | H50: ß-glucosidase (mg p-nitrofenol kg-1 h-1) | K50: =IF('2 Indicators'!C256="","",'2 Indicators'!C256) -> 
H51: Biological soil quality index | K51: =IF('2 Indicators'!C258="","",'2 Indicators'!C258) -> 
B52: Yield | H52: Chemical soil quality index | K52: =IF('2 Indicators'!C261="","",'2 Indicators'!C261) -> 
B53: Main agricultural activity | E53: ='2 Indicators'!D15 -> 0.0% | H53: FertBio index | K53: =IF('2 Indicators'!C262="","",'2 Indicators'!C262) -> 
B54: Unit | E54: ='2 Indicators'!D16 -> 0
B55: Yield / productivity | E55: ='2 Indicators'!D17 -> 0 | H55: Soil erosion
H56: Soil erosion - area | K56: ='2 Indicators'!E270 -> 0
H57: Soil erosion - degradation stage | K57: ='2 Indicators'!D270 -> 0
H58: Soil erosion - degradation process trend | K58: ='2 Indicators'!D273 -> 0
B59: Innovative techniques: | E59: =IF('2 Indicators'!E210="","",'2 Indicators'!E210) -> 
Q62: DATA
Q63: =H3 ->  | R63: 2013-05-01 | S63: 2011-05-01
N64: Standard Deviation | P64: =STDEV(Q66:Q78,Q75:Q82) ->  | Q64: Current | R64: Historical I | S64: Historical II
N65: SUSTAINABILITY INDEX | Q65: =IF(Q66>0,AVERAGE(Q66:Q82),"") ->  | R65: =IF(R66>0,AVERAGE(R66:R82),"") -> 0.62 | S65: =IF(S66>0,AVERAGE(S66:S82),"") -> 0.54
M66: Socioeconomic aspects | N66: 1. Productivity and Sales Prices | Q66: ='2 Indicators'!C22 -> 0.00 | R66: 0.75 | S66: 0.63 | T66: 0.7
N67: 2. Income Diversity | Q67: ='2 Indicators'!C45 ->  | R67: 0.62 | S67: 0.60 | T67: 0.7
N68: 3. Asset Development and Indebtedness | Q68: ='2 Indicators'!C115 ->  | R68: 0.85 | S68: 0.70 | T68: 0.7
N69: 4. Public Services | Q69: ='2 Indicators'!C142 -> 0.00 | R69: 0.78 | S69: 0.80 | T69: 0.7
N70: 5. Education and Courses | Q70: ='2 Indicators'!C164 ->  | R70: 0.71 | S70: 0.60 | T70: 0.7
N71: 6. Employment Quality | Q71: ='2 Indicators'!C186 -> 0.70 | R71: 0.70 | S71: 0.50 | T71: 0.7
N72: 7. Business Management | Q72: ='2 Indicators'!C200 -> 0.00 | R72: 0.69 | S72: 0.40 | T72: 0.7
N73: 8. Commercialization and Innovation | Q73: ='2 Indicators'!C218 -> 0.00 | R73: 0.70 | S73: 0.50 | T73: 0.7 | U73: =AVERAGE(Q66:Q73) ->  | V73: =AVERAGE(R66:R73) -> 0.72 | W73: =AVERAGE(S66:S73) -> 0.59
M74: Environmental aspects | N74: 9. Waste Residues Management | Q74: ='2 Indicators'!C236 -> 0.70 | R74: 0.11 | S74: 0.13 | T74: 0.7
N75: 10. Soil Fertility | Q75: ='2 Indicators'!C265 -> 0.00 | R75: 0.54 | S75: 0.48 | T75: 0.7
N76: 11. Soil Erosion and Road Maintenance | Q76: ='2 Indicators'!C289 -> 0.35 | R76: 0.44 | S76: 0.37 | T76: 0.7
N77: 12. Water Quality | Q77: ='2 Indicators'!C336 -> 0.00 | R77: 0.66 | S77: 0.54 | T77: 0.7
N78: 13. Water contamination risk and Pesticides | Q78: ='2 Indicators'!C382 -> 1.00 | R78: 0.29 | S78: 0.48 | T78: 0.7
N79: 14. Soil and Water Conservation | Q79: ='2 Indicators'!C398 ->  | R79: 0.63 | S79: 0.50 | T79: 0.7
N80: 15. Biodiversity Conservation | Q80: ='2 Indicators'!C418 ->  | R80: 0.75 | S80: 0.60 | T80: 0.7
N81: 16. Natural Habitats Status | Q81: ='2 Indicators'!C436 -> 0.00 | R81: 0.75 | S81: 0.60 | T81: 0.7
N82: 17. Preservation Areas | Q82: ='2 Indicators'!C460 ->  | R82: 0.58 | S82: 0.74 | T82: 0.7 | U82: =AVERAGE(Q74:Q82) ->  | V82: =AVERAGE(R74:R82) -> 0.53 | W82: =AVERAGE(S74:S82) -> 0.49
U84: 1.0092030
U85: =Q65*U84 -> 

Sheet 4 Adequacy plan
D1: ADEQUACY PLAN
B2: ISA
B5: FARMER | D5: =IF('1 Survey'!C44="","",'1 Survey'!C44) -> 
B6: LOCAL DESCRIPTION | D6: =IF('1 Survey'!C54="","",'1 Survey'!C54) -> 
B7: APPLICATION DATE | D7: =IF('1 Survey'!C34="","",'1 Survey'!C34) -> 
B9: TECHNICAL REGISTRATION | D9: =IF('1 Survey'!C38="","",'1 Survey'!C38) -> 
B11: ITEM | C11: Index | D11: Tecnical information | E11: Execution Period
B12: ='3 Report'!N66 -> 1. Productivity and Sales Prices | C12: ='3 Report'!Q66 -> 0.00
B13: ='3 Report'!N75 -> 10. Soil Fertility | C13: ='3 Report'!Q75 -> 0.00
B14: ='3 Report'!N76 -> 11. Soil Erosion and Road Maintenance | C14: ='3 Report'!Q76 -> 0.35
B15: ='3 Report'!N77 -> 12. Water Quality | C15: ='3 Report'!Q77 -> 0.00
B16: ='3 Report'!N78 -> 13. Water contamination risk and Pesticides | C16: ='3 Report'!Q78 -> 1.00
B17: ='3 Report'!N79 -> 14. Soil and Water Conservation | C17: ='3 Report'!Q79 -> 
B18: ='3 Report'!N80 -> 15. Biodiversity Conservation | C18: ='3 Report'!Q80 -> 
B19: ='3 Report'!N81 -> 16. Natural Habitats Status | C19: ='3 Report'!Q81 -> 0.00
B20: ='3 Report'!N82 -> 17. Preservation Areas | C20: ='3 Report'!Q82 -> 
B21: ='3 Report'!N67 -> 2. Income Diversity | C21: ='3 Report'!Q67 -> 
B22: ='3 Report'!N68 -> 3. Asset Development and Indebtedness | C22: ='3 Report'!Q68 -> 
B23: ='3 Report'!N69 -> 4. Public Services | C23: ='3 Report'!Q69 -> 0.00
B24: ='3 Report'!N70 -> 5. Education and Courses | C24: ='3 Report'!Q70 -> 
B25: ='3 Report'!N71 -> 6. Employment Quality | C25: ='3 Report'!Q71 -> 0.70
B26: ='3 Report'!N72 -> 7. Business Management | C26: ='3 Report'!Q72 -> 0.00
B27: ='3 Report'!N73 -> 8. Commercialization and Innovation | C27: ='3 Report'!Q73 -> 0.00
B28: ='3 Report'!N74 -> 9. Waste Residues Management | C28: ='3 Report'!Q74 -> 0.70
B29: Environmental license | C29: ='1 Survey'!E126 -> 0.00
B30: Regularization of water use | C30: ='1 Survey'!E124 -> 0.00

Sheet Plan1 (hidden)

Sheet Sheet3 (hidden)

Sheet Sheet4 (hidden)

Sheet Sheet5 (hidden)

Sheet Sheet6 (hidden)

Sheet Relatório de Assist (2) (hidden)
L1: RELATÓRIO DE ASSISTÊNCIA TÉCNICA AO PRODUTOR RURAL | R1: =C9 -> Visita N° | S1: =D9 -> 1
K3: Formulário atualizado em: UPEC–05/01/2012
B5: Produtor: | O5: CPF:
B6: Município: | K6: Comunidade:
B7: Convênio: | J7: META: | L7: Nº Convênio:
B8: Nome do Técnico / Matrícula:
C9: Visita N° | D9: 1
G10: ORIENTAÇÃO TÉCNICA (Situação Atual, Orientações e Recomendações)
B43: Assinaturas
C47: Data | I47: Técnico Responsável / Nº Conselho | L47: Produtor
B48: MOD.230-07 E MAPA/EMBRAPA | L48: Formulário atualizado em: UPEC–13/03/2013

Sheet Formulas
B1: ISA | D1: FORMULAS
B4: INDICATORS
A6: 1 | B6: Weighting factor | F6: Formulas
B7: > 20% | D7: 0.9 | F7: Formula (R parcial) = Yo + ax | J7: Units I | L7: Units II
B8: Production or sale price = to local | D8: 0.7 | J8: Aquaculture production | L8: Sc/ha
F9: yo | G9: -0.30 | J9: Bovine milk | L9: Ton./ha
B10: < 20% | D10: 0.5 | F10: a | G10: 0.01 | J10: Cattle meat | L10: Kg/ha
B11: < 40% | D11: 0.3 | F11: =IF(ISBLANK('2 Indicators'!D17),"",(G9+G10*(100+(Formulas!E17*100)))) ->  | G11: =IF(ISBLANK('2 Indicators'!E17),"",(G9+G10*(100+(Formulas!F17*100)))) ->  | H11: =IF(ISBLANK('2 Indicators'!F17),"",(G9+G10*(100+(Formulas!G17*100)))) ->  | J11: Chicken meat | L11: @/ha/year
F12: =IF(ISBLANK('2 Indicators'!D18),"",(G9+G10*(100+(Formulas!E18*100)))) ->  | G12: =IF(ISBLANK('2 Indicators'!E18),"",(G9+G10*(100+(Formulas!F18*100)))) ->  | H12: =IF(ISBLANK('2 Indicators'!F18),"",(G9+G10*(100+(Formulas!G18*100)))) ->  | J12: Coffee | L12: L of milk/ha/year
J13: Cotton | L13: L of milk/cow/day
F14: =AVERAGE(Formulas!E20:G21) ->  | J14: Eggs | L14: Kg/dia
F15: =IF('3 Report'!K35<50,Formulas!F14*0.7,Formulas!F14) ->  | G15: =IF(F15<0,0,F15) ->  | J15: Fisheries products | L15: Kg of food/kg de meat produced
J16: Forest products | L16: Piglets sold/pig/year
B17: Variation of item 1.3 in relation to item 1.5 | E17: =IF('2 Indicators'!D17>0,(('2 Indicators'!D17/'2 Indicators'!D19)-1),"") ->  | F17: =IF('2 Indicators'!E17>0,(('2 Indicators'!E17/'2 Indicators'!E19)-1),"") ->  | G17: =IF('2 Indicators'!F17>0,(('2 Indicators'!F17/'2 Indicators'!F19)-1),"") ->  | H17: 1.0 | J17: Fruit cultivation | L17: Eggs/chicken/year
B18: Variation of item 1.4 in relation to item 1.6 | E18: =IF('2 Indicators'!D18>0,(('2 Indicators'!D18/'2 Indicators'!D20)-1),"") ->  | F18: =IF('2 Indicators'!E18>0,(('2 Indicators'!E18/'2 Indicators'!E20)-1),"") ->  | G18: =IF('2 Indicators'!F18>0,(('2 Indicators'!F18/'2 Indicators'!F20)-1),"") ->  | H18: 1.0 | J18: Grains | L18: Food conversion/dozen eggs
E19: 1.0 | F19: 1.0 | G19: 1.0 | H19: Weighting matrix | J19: Livestock | L19: Food conversion/Kg
B20: Partial result | C20: Productivity | E20: =IF(ISBLANK('2 Indicators'!D17),"",IF(Formulas!F11>1,1,Formulas!F11)) ->  | F20: =IF(ISBLANK('2 Indicators'!E17),"",IF(Formulas!G11>1,1,Formulas!G11)) ->  | G20: =IF(ISBLANK('2 Indicators'!F17),"",IF(Formulas!H11>1,1,Formulas!H11)) ->  | J20: Maize | L20: Percentage of laying eggs
C21: Selling price | E21: =IF(ISBLANK('2 Indicators'!D18),"",IF(Formulas!F12>1,1,Formulas!F12)) ->  | F21: =IF(ISBLANK('2 Indicators'!E18),"",IF(Formulas!G12>1,1,Formulas!G12)) ->  | G21: =IF(ISBLANK('2 Indicators'!F18),"",IF(Formulas!H12>1,1,Formulas!H12)) ->  | J21: Oil paml fruit
J22: Others
J23: Pig Meat
J24: Potatos
J25: Rice
J26: Soybeans
J27: Sugar cane
J28: Vegetables
J29: Wheat
A31: 2 | B31: Weighting factor | F31: Formulas | K31: 0.3
B32: item 2.3 | C32: 1 - (F362 *0,3) | F32: =1-(('2 Indicators'!F39^2*Formulas!K31)+('2 Indicators'!F40^2*Formulas!K32)+('2 Indicators'!F41^2*Formulas!K33)+('2 Indicators'!F42^2*Formulas!K34)) ->  | G32: =IF(AND('2 Indicators'!F39>80%,'2 Indicators'!F43="Yes"),F32-10%,F32) ->  | H32: =IF(Formulas!G32<0.1,0.1,Formulas!G32) ->  | K32: 0.3
B33: item 2.3 | C33: 1 - (F372 *0,3) | K33: 1.0
B34: item 2.3 | C34: 1 - (F382 *1) | K34: 2.0
B35: item 2.3 | C35: 1 - (F392 *2)
A38: 3 | B38: Weighting factor | F38: Formulas | K38: =+Formulas!M38 ->  | M38: =(+(Formulas!E57-Formulas!J57)/('2 Indicators'!C95-'2 Indicators'!D95)) -> 
B39: item 3.1 | C39: 0.67 | F39: =(Formulas!M38*'2 Indicators'!G100+Formulas!M39*'2 Indicators'!G101+Formulas!M40*'2 Indicators'!G102+Formulas!M41*'2 Indicators'!G103+Formulas!M42*'2 Indicators'!G104) ->  | G39: =IF('2 Indicators'!F106>26%,F39*((1+('2 Indicators'!F106-0.26))),F39) ->  | H39: =IF('2 Indicators'!F105>0,G39,1-(0.3-10*'2 Indicators'!F105)) ->  | I39: =IF(H39<0,0,H39) ->  | K39: =+Formulas!M39 ->  | M39: =('2 Indicators'!$D$59-'2 Indicators'!$E$59)/('2 Indicators'!$C$95-'2 Indicators'!$D$95) -> 
B40: item 3.2 | C40: 1.00 | K40: =+Formulas!M40 ->  | M40: =('2 Indicators'!$D$67-'2 Indicators'!$E$67)/('2 Indicators'!$C$95-'2 Indicators'!$D$95) -> 
B41: item 3.3 | C41: 1.00 | K41: =+Formulas!M41 ->  | M41: =('2 Indicators'!$D$73-'2 Indicators'!$F$73)/('2 Indicators'!$C$95-'2 Indicators'!$D$95) -> 
B42: item 3.4 | C42: 1.00
B43: Units III | M43: =M42+M41+M40+M39+M38 -> 
B44: Sprinkling | J44: Verification | K44: =SUM(Formulas!M38:M42) -> 
B45: Drip / micro sprinkler
B46: Central pivot irrigation
B47: Other categories | D47: Item 3.2
B48: Various types of irrigation | D48: Formula - RV(Residual Value) = (1-T)N x IV: T =Depreciation rate; N = time (nº of years); e IV = initial value
M49: Units IV
B50: Categories | D50: Weighting | E50: Total value | G50: Total area | H50: Weighting | I50: Historical value | K50: Total area | M50: Grain stock
B51: Native vegetation | D51: 1.00 | E51: =('2 Indicators'!C92*D51)*G51*('3 Report'!$H$5) ->  | G51: ='1 Survey'!E88+'1 Survey'!E89+'1 Survey'!E90+'1 Survey'!E91+'1 Survey'!E92 ->  | H51: =+D51 -> 1.00 | I51: =(K51*H51)*'2 Indicators'!D89*'2 Indicators'!D92 ->  | K51: =+('2 Indicators'!D85+'2 Indicators'!D84+'2 Indicators'!D86+'2 Indicators'!D87+'2 Indicators'!D88)/'2 Indicators'!D89 ->  | M51: Cattle
B52: Pastures | D52: 1.00 | E52: =('2 Indicators'!C92*D52)*G52*('3 Report'!$H$5) ->  | G52: ='1 Survey'!E86 ->  | H52: =+D52 -> 1.00 | I52: =(K52*H52)*'2 Indicators'!D89*'2 Indicators'!D92 ->  | K52: =+'2 Indicators'!D82/'2 Indicators'!D89 ->  | M52: Horse / Donkey
B53: Anual crops | D53: 1.00 | E53: =('2 Indicators'!C92*D53)*G53*('3 Report'!$H$5) ->  | G53: ='1 Survey'!E85 ->  | H53: =+D53 -> 1.00 | I53: =K53*'2 Indicators'!D89*('2 Indicators'!D92*H53) ->  | K53: =+'2 Indicators'!D81/'2 Indicators'!D89 ->  | M53: Pig
B54: Irrigation (R$1.000,00/ha) | D54: 5,000.00 | E54: =+'3 Report'!H5*G54*D54 ->  | G54: ='2 Indicators'!C77/'3 Report'!H5 ->  | H54: =+D54 -> 5,000.00 | I54: =+'2 Indicators'!D89*K54*H54 ->  | K54: =+'2 Indicators'!D77/'3 Report'!H5 ->  | M54: Goats / Sheep
B55: Permanent crops | D55: 1.00 | E55: =('2 Indicators'!C92*D55)*G55*('3 Report'!$H$5) ->  | G55: ='1 Survey'!E84+'1 Survey'!E87 ->  | H55: =+D55 -> 1.00 | I55: =K55*'2 Indicators'!D89*('2 Indicators'!D92*H55) ->  | K55: =+('2 Indicators'!D80+'2 Indicators'!D83)/'2 Indicators'!D89 ->  | M55: Chickens
G56: =+G55+G53+G52+G51 ->  | J56: Historical | K56: =+K55+K53+K52+K51 ->  | M56: Others
B57: Land value | E57: =E51+E52+E53+E54+E55 ->  | J57: =I51+I52+I53+I54+I55 -> 
B59: Current and historical land use and occupation | H59: =J59/'2 Indicators'!C95 ->  | J59: =(((Formulas!G53-Formulas!K53)*'3 Report'!H5*'2 Indicators'!C92*1.1)+((Formulas!G54-Formulas!K54)*'3 Report'!H5*('2 Indicators'!C92+1000))+((Formulas!G55-Formulas!K55)*'3 Report'!H5*'2 Indicators'!C92*1.3)) -> 
J60: =('2 Indicators'!$C$92*Formulas!D51)*Formulas!K51*'3 Report'!$H$5 -> 
B61: The evolution of asset values discounting land appreciation | H61: =IF('2 Indicators'!D95>0,('2 Indicators'!C95/L65-1),"") ->  | J61: =('2 Indicators'!$C$92*Formulas!D52)*Formulas!K52*'3 Report'!$H$5 -> 
J62: =('2 Indicators'!$C$92*Formulas!D53)*Formulas!K53*'3 Report'!$H$5 -> 
B63: Asset development | H63: =IF('2 Indicators'!C95>0,('2 Indicators'!C95/'2 Indicators'!D95-1),"") ->  | J63: =Formulas!I54 -> 
J64: =('2 Indicators'!$C$92*Formulas!D55)*Formulas!K55*'3 Report'!$H$5 -> 
J65: =SUM(J60:K64) ->  | L65: =+J65+'2 Indicators'!E59+'2 Indicators'!E67+'2 Indicators'!F73 -> 
B67: Weighting factor | F67: Formulas
B68: 0% | C68: 0.7 | F68: =IF('2 Indicators'!E112=0,0.7,0) ->  | G68: =SUM(F68:F71) -> 
B69: 0-7,5% | C69: y = 0,04x + 0,7 | F69: =IF('2 Indicators'!E112>0,G69,0) ->  | G69: =IF('2 Indicators'!E112>=0.075,0,H69) ->  | H69: =0.04*('2 Indicators'!E112*100)+0.7 -> 
B70: 7,5-30% | C70: y = -0,04x + 1,3 | F70: =IF('2 Indicators'!E112>=0.075,G70,0) ->  | G70: =IF('2 Indicators'!E112>0.3,0,H70) ->  | H70: =-0.04*('2 Indicators'!E112*100)+1.3 -> 
B71: 15-30% | C71: y = -0,4x + 1,29 | F71: =IF('2 Indicators'!E112>0.3,0.1,0) -> 
B72: >30% | C72: 0.1
B73: >25% | C73: 0.1
A76: 4 | B76: Weighting factor | F76: Formulas
B77: Water availability | C77: 1.0 | F77: =IF(G77>0,1,0) -> 0 | G77: =+'2 Indicators'!D129+'2 Indicators'!D126+'2 Indicators'!D125+'2 Indicators'!D124+'2 Indicators'!D123*I77+'2 Indicators'!D130+'2 Indicators'!D127+'2 Indicators'!D128 -> 0 | H77: =(('2 Indicators'!D123*I77+'2 Indicators'!D124+'2 Indicators'!D125+'2 Indicators'!D126+'2 Indicators'!D127+'2 Indicators'!D128+'2 Indicators'!D129+'2 Indicators'!D130)+('2 Indicators'!E123*I77+'2 Indicators'!E124+'2 Indicators'!E125+'2 Indicators'!E126+'2 Indicators'!E127+'2 Indicators'!E128+'2 Indicators'!E129+'2 Indicators'!E130))/H79 -> 0 | I77: 1 | K77: 1
B78: Acess to eletricity | C78: 1.0 | F78: =IF(G78>0,1,0) -> 0 | G78: =+'2 Indicators'!E129+'2 Indicators'!E126+'2 Indicators'!E125+'2 Indicators'!E124+'2 Indicators'!E123*I77+'2 Indicators'!E130+'2 Indicators'!E127+'2 Indicators'!E128 -> 0 | H78: =+F80+F79+F78+F77 -> 0 | K78: 0.5
B79: Road access to the farm | C79: 1.0 | H79: =IF(H78=0,1,H78) -> 1.00 | K79: 0
B80: Access to health care | C80: 1.0
B81: School transportation | C81: 1.0
B82: Security | C82: 1.0
B83: Internet | C83: 1.0
B84: Waste collection | C84: 1.0
B86: Weighting factor | F86: Formulas
B87: Vegetables | C87: 1.0 | F87: =IF(G87>0,1,0) -> 0 | G87: ='2 Indicators'!D136+'2 Indicators'!D137+'2 Indicators'!D138 -> 0
B88: Orchard | C88: 1.0 | F88: =IF(G88>0,1,0) -> 0 | G88: ='2 Indicators'!E136+'2 Indicators'!E137+'2 Indicators'!E138 -> 0
B89: Milk, eggs, meat | C89: 1.0 | F89: =IF(('2 Indicators'!D136+'2 Indicators'!D137+'2 Indicators'!D138)=0,0,(('2 Indicators'!D136+'2 Indicators'!D137+'2 Indicators'!D138)+('2 Indicators'!E136+'2 Indicators'!E137+'2 Indicators'!E138))/F90) -> 0
F90: =SUM(F87:F88) -> 0
A93: 5 | B93: Weighting factor | F93: Formulas
B94: =+'2 Indicators'!B148:C148 -> Less than 9 years of study | C94: 0.7 | F94: Formula: sustainability threshold (0,7) => adults with at least 5 years of schooling and children in the school system.Training courses directed to the activity and qualified workforce => adds maximum 0.3
B95: =+'2 Indicators'!B149:C149 -> Complete primary education | C95: 1.0 | F95: =IF('2 Indicators'!D147>0,((('2 Indicators'!D148*'2 Indicators'!F148+'2 Indicators'!D149*'2 Indicators'!F149+'2 Indicators'!D150*'2 Indicators'!F150+'2 Indicators'!D151*'2 Indicators'!F151))*0.7),0) -> 0 | G95: =IF('2 Indicators'!D147>0,(('2 Indicators'!D155*'2 Indicators'!F155+'2 Indicators'!D156*'2 Indicators'!F156))*0.3,0) -> 0 | H95: =+'2 Indicators'!D147+'2 Indicators'!E147 -> 0 | I95: =IF('2 Indicators'!D161>0,(('2 Indicators'!D162*'2 Indicators'!F162)*0.7),0) -> 0 | K95: =I97+G97 -> 
B96: =+'2 Indicators'!B150:C150 -> Complete secondary education | C96: 1.2 | F96: =IF('2 Indicators'!E147>0,((('2 Indicators'!E148*'2 Indicators'!F148+'2 Indicators'!E149*'2 Indicators'!F149+'2 Indicators'!E150*'2 Indicators'!F150+'2 Indicators'!E151*'2 Indicators'!F151))*0.7),0) -> 0 | G96: =IF('2 Indicators'!E147>0,(('2 Indicators'!E155*'2 Indicators'!F155+'2 Indicators'!E156*'2 Indicators'!F156))*0.3,0) -> 0 | H96: =+'2 Indicators'!D161+'2 Indicators'!E161 -> 0 | I96: =IF('2 Indicators'!E161>0,(('2 Indicators'!E162*'2 Indicators'!F162))*0.7,0) -> 0 | K96: =K95 -> 
B97: =+'2 Indicators'!B151:C151 -> College / University | C97: 1.5 | F97: =(F95+F96)/H95 ->  | G97: =(G95+G96)/H95 ->  | H97: =(I95+I96)/H96 ->  | I97: =IF(OR('2 Indicators'!D161>0,'2 Indicators'!E161>0),((H97+F97)/2),F97) -> 
B98: =+'2 Indicators'!B155:C155 -> Short training season | C98: 0.5
B99: =+'2 Indicators'!B156:C156 -> Long-term training | C99: 0.8
B100: =+'2 Indicators'!B162:C162 -> Number of children in school | C100: 1.0
A103: 6 | B103: Weighting factor | F103: Formulas
B104: =+'2 Indicators'!B171:D171 -> Employee registration | C104: 1.0 | F104: Formula: = 0.7 if there is compliance with the law regarding the registration and overtime payment of all employees; aid and benefits - maximum 0.3
B105: =+'2 Indicators'!B172:D172 -> Overtime payment / absence of overtime | C105: 1.0
B106: =+'2 Indicators'!B177:D177 -> Above minimum wage | C106: 1.0 | F106: =IF('2 Indicators'!D170>0,((('2 Indicators'!D171*'2 Indicators'!$F$171+'2 Indicators'!D172*'2 Indicators'!$F$172)/('2 Indicators'!D170*2))*0.7),0.7) -> 0.70 | G106: =IF('2 Indicators'!D170>0,(('2 Indicators'!D177*'2 Indicators'!$F$177+'2 Indicators'!D178*'2 Indicators'!$F$178+'2 Indicators'!D179*'2 Indicators'!$F$179+'2 Indicators'!D180*'2 Indicators'!$F$180+'2 Indicators'!D181*'2 Indicators'!$F$181+'2 Indicators'!D182*'2 Indicators'!$F$182+'2 Indicators'!D183*'2 Indicators'!$F$183+'2 Indicators'!D184*'2 Indicators'!$F$184)/('2 Indicators'!D170*8)*0.3),0) -> 0 | H106: =(F106+G106) -> 0.70
B107: =+'2 Indicators'!B178:D178 -> Food supplementation | C107: 1.0 | F107: =IF('2 Indicators'!E170>0,((('2 Indicators'!E171*'2 Indicators'!$F$171+'2 Indicators'!E172*'2 Indicators'!$F$172)/('2 Indicators'!E170*2))*0.7),0.7) -> 0.70 | G107: =IF('2 Indicators'!E170>0,(('2 Indicators'!E177*'2 Indicators'!$F$177+'2 Indicators'!E178*'2 Indicators'!$F$178+'2 Indicators'!E179*'2 Indicators'!$F$179+'2 Indicators'!E180*'2 Indicators'!$F$180+'2 Indicators'!E181*'2 Indicators'!$F$181+'2 Indicators'!E182*'2 Indicators'!$F$182+'2 Indicators'!E183*'2 Indicators'!$F$183+'2 Indicators'!E184*'2 Indicators'!$F$184)/('2 Indicators'!E170*8)*0.3),0) -> 0 | H107: =(F107+G107) -> 0.70
B108: =+'2 Indicators'!B179:D179 -> Housing assistance | C108: 1.0 | F108: =+H106 -> 0.70 | G108: =IF('2 Indicators'!E170>0,(H107+F108)/2,F108) -> 0.70 | H108: =IF(SUM('2 Indicators'!D170:E170)=0,0.7,Formulas!G108) -> 0.70
B109: =+'2 Indicators'!B180:D180 -> Education and transportation assistance | C109: 1.0
B110: =+'2 Indicators'!B181:D181 -> Profit sharing | C110: 5.0
B111: =+'2 Indicators'!B182:D182 -> Accident insurance | C111: 3.0
B112: =+'2 Indicators'!B183:D183 -> Access to leisure | C112: 1.0
B113: =+'2 Indicators'!B184:D184 -> Space for growing food | C113: 3.0
A116: 7 | B116: Weighting factor
B117: =+'2 Indicators'!C191 -> Cash flow (income / expense) | C117: 0.5
B118: =+'2 Indicators'!C192 -> Production's cost | C118: 0.5
B119: Access to technical assistance | C119: 1.0
B120: Existence of rural associations and the farmer's participation | C120: 1.0
B121: Environmental regularization (water use, licensing) | C121: 1.0
B122: =+'2 Indicators'!C196 -> Access to investment loans | C122: 0.4
B123: =+'2 Indicators'!C197 -> Access to loans for the farm activities | C123: 0.4
B124: =+'2 Indicators'!C198 -> Access loans for commercialization | C124: 0.2
A127: 8 | B127: Weighting factor | F127: Fórmulas
B128: =+'2 Indicators'!B205:D205 -> Buyer diversification / Market research, pre-sale pricing | C128: 0.4 | F128: =(G128*C128+G129*C129+G130*C130+G131*C131) -> 0.00 | G128: =IF('2 Indicators'!E205="Yes",1,0) -> 0
B129: =+'2 Indicators'!B206:D206 -> Certified production / Added value | C129: 0.4 | G129: =IF('2 Indicators'!E206="Yes",1,0) -> 0
B130: =+'2 Indicators'!B209:D209 -> Adoption of innovative techniques* | C130: 0.3 | G130: =IF('2 Indicators'!E209="Yes",1,0) -> 0
B131: =+'2 Indicators'!B211:D211 -> Ability to innovate or leadership | C131: 0.4 | G131: =IF('2 Indicators'!E211="Yes",1,0) -> 0
A135: 9 | B135: Weighting factor | F135: Fórmulas
B136: 9.1 Sewage destination | C136: 1.0 | F136: =IF(G136>1,1,G136) ->  | G136: =IF(H136>0,I136/H136,I136) ->  | H136: =COUNTIF('2 Indicators'!E223:F231,">=0") -> 0 | I136: ='2 Indicators'!F223+'2 Indicators'!F224+'2 Indicators'!E227+'2 Indicators'!E230+'2 Indicators'!E231 ->  | K136: Not applicable
B137: 9.2 Garbage destination | C137: 1.0 | F137: =IF('2 Indicators'!E234="Yes",Formulas!F136*0.7,Formulas!F136) -> 
B138: 9.3 Composting and/or reuse of organic solid waste | C138: 1.0
B139: 9.4 Adequate allocation and treatment of liquid effluents | C139: 1.0
B140: 9.5 Treatment of gaseous effluents | C140: 1.0
B142: Units V | F142: Weighting factor
B143: Absence of any collection and treatment structure | F143: 0.00 | G143: =IF('2 Indicators'!$D$223=Formulas!B143,1,0) -> 0 | H143: =G143*F143 -> 0 | I143: =IF('2 Indicators'!$E$223=Formulas!B143,1,0) -> 0 | J143: =I143*F143 -> 0 | K143: =SUM(G143:G147) -> 0 | L143: =SUM(I143:I147) -> 0 | M143: =L143+K143 -> 0
B144: Rudimentary sewage collector | F144: 0.25 | G144: =IF('2 Indicators'!$D$223=Formulas!B144,1,0) -> 0 | H144: =G144*F144 -> 0 | I144: =IF('2 Indicators'!$E$223=Formulas!B144,1,0) -> 0 | J144: =I144*F144 -> 0 | K144: =SUM(H143:H147) -> 0 | L144: =SUM(J143:J147) -> 0 | M144: =SUM(K144:L144)/M143 -> 
B145: Sewage collector, filter, sump | F145: 0.70 | G145: =IF('2 Indicators'!$D$223=Formulas!B145,1,0) -> 0 | H145: =G145*F145 -> 0 | I145: =IF('2 Indicators'!$E$223=Formulas!B145,1,0) -> 0 | J145: =I145*F145 -> 0
B146: Sewage collection with adequate maintenance | F146: 0.80 | G146: =IF('2 Indicators'!$D$223=Formulas!B146,1,0) -> 0 | H146: =G146*F146 -> 0 | I146: =IF('2 Indicators'!$E$223=Formulas!B146,1,0) -> 0 | J146: =I146*F146 -> 0
B147: Biodigester tank, separation of gray water | F147: 1.00 | G147: =IF('2 Indicators'!$D$223=Formulas!B147,1,0) -> 0 | H147: =G147*F147 -> 0 | I147: =IF('2 Indicators'!$E$223=Formulas!B147,1,0) -> 0 | J147: =I147*F147 -> 0
B148: Units VI
B149: Burned / discarded in inappropriate place | F149: 0.00 | G149: =IF('2 Indicators'!$D$224=Formulas!B149,1,0) -> 0 | H149: =G149*F149 -> 0 | I149: =IF('2 Indicators'!$E$224=Formulas!B149,1,0) -> 0 | J149: =I149*F149 -> 0 | K149: =SUM(G149:G152) -> 0 | L149: =SUM(I149:I152) -> 0 | M149: =L149+K149 -> 0
B150: Buried on the farm | F150: 0.30 | G150: =IF('2 Indicators'!$D$224=Formulas!B150,1,0) -> 0 | H150: =G150*F150 -> 0 | I150: =IF('2 Indicators'!$E$224=Formulas!B150,1,0) -> 0 | J150: =I150*F150 -> 0 | K150: =SUM(H149:H152) -> 0 | L150: =SUM(J149:J152) -> 0 | M150: =SUM(K150:L150)/M149 -> 
B151: Garbage taken by the farmer | F151: 0.80 | G151: =IF('2 Indicators'!$D$224=Formulas!B151,1,0) -> 0 | H151: =G151*F151 -> 0 | I151: =IF('2 Indicators'!$E$224=Formulas!B151,1,0) -> 0 | J151: =I151*F151 -> 0
B152: Garbage collected | F152: 1.00 | G152: =IF('2 Indicators'!$D$224=Formulas!B152,1,0) -> 0 | H152: =G152*F152 -> 0 | I152: =IF('2 Indicators'!$E$224=Formulas!B152,1,0) -> 0 | J152: =I152*F152 -> 0
A154: 10 | B154: SOM - Weighting factor
B155: Classification | F155: Weighting | H155: Soil granulometry (dag kg-1 of clay)
B156: Sandy | C156: Loam | D156: Clay | E156: Heavy clay | H156: Sandy | J156: ≤ 15
B157: 0.00 | C157: 0.00 | D157: 0.00 | E157: 0.00 | F157: 0.10 | H157: Loam | J157: 16 a 34
B158: 0.80 | C158: 1.60 | D158: 2.40 | E158: 2.80 | F158: 0.50 | H158: Clay | J158: 35 a 60
B159: 1.10 | C159: 2.10 | D159: 3.10 | E159: 3.60 | F159: 0.70 | H159: Heavy clay | J159: > 60
B160: 1.50 | C160: 3.00 | D160: 4.50 | E160: 5.20 | F160: 1.00
B161: 4.50 | C161: 9.00 | D161: 13.50 | E161: 15.60 | F161: 0.70
B163: SOM - Formulas
B164: Sandy | C164: Yo + ax + bx2 + cx3 | E164: Formula2 = Yo + ax | G164: Loam | H164: Yo + ax + bx2 + cx3 | J164: Formula2 = Yo + ax | M164: =IF(AND('2 Indicators'!E242="Sandy"),IF('2 Indicators'!C243<1.5,Formulas!E167,Formulas!F167),0) -> 0.00
C165: Yo | D165: 0.100 | E165: Yo | F165: 1.15 | H165: Yo | I165: 0.100 | J165: Yo | K165: 1.15 | M165: =IF(AND('2 Indicators'!E242="Loam"),IF('2 Indicators'!C243<3,Formulas!J167,Formulas!K167),0) -> 0.00
C166: a | D166: 0.360 | E166: a | F166: -0.10 | H166: a | I166: 0.002 | J166: a | K166: -0.05 | M166: =IF(AND('2 Indicators'!E242="Clay"),IF('2 Indicators'!C243<4.5,Formulas!E172,Formulas!F172),0) -> 0.00
C167: b | D167: 0.193 | E167: =D165+D166*'2 Indicators'!C243+D167*'2 Indicators'!C243^2+D168*'2 Indicators'!C243^3 -> 0.10 | F167: =F165+F166*'2 Indicators'!C243 -> 1.15 | H167: b | I167: 0.218 | J167: =I165+I166*'2 Indicators'!C243+I167*'2 Indicators'!C243^2+I168*'2 Indicators'!C243^3 -> 0.10 | K167: =K165+K166*'2 Indicators'!C243 -> 1.15 | M167: =IF(AND('2 Indicators'!E242="Heavy clay"),IF('2 Indicators'!C243<5.2,Formulas!J172,Formulas!K172),0) -> 0.00
C168: c | D168: -0.022 | H168: c | I168: -0.040 | M168: =(M164+M165+M166+M167) -> 0.00
B169: Clay | C169: Yo + ax + bx2 + cx3 | E169: Formula2 = Yo + ax | G169: Heavy clay | H169: Yo + ax + bx2 + cx3 | J169: Formula2 = Yo + ax
C170: Yo | D170: 0.100 | E170: Yo | F170: 1.15 | H170: Yo | I170: 0.100 | J170: Yo | K170: 1.15
C171: a | D171: -0.045 | E171: a | F171: -0.03 | H171: a | I171: -0.049 | J171: a | K171: -0.03
C172: b | D172: 0.127 | E172: =D170+D171*'2 Indicators'!C243+D172*'2 Indicators'!C243^2+D173*'2 Indicators'!C243^3 -> 0.10 | F172: =F170+F171*'2 Indicators'!C243 -> 1.15 | H172: b | I172: 0.098 | J172: =I170+I171*'2 Indicators'!C243+I172*'2 Indicators'!C243^2+I173*'2 Indicators'!C243^3 -> 0.10 | K172: =K170+K171*'2 Indicators'!C243 -> 1.15
C173: c | D173: -0.016 | H173: c | I173: -0.011
B176: P - Weighting factor
B177: Classification | F177: Weighting
B178: Sandy | C178: Loam | D178: Clay | E178: Heavy clay
B179: 0.00 | C179: 0.00 | D179: 0.00 | E179: 0.00 | F179: 0.10
B180: 12.10 | C180: 10.10 | D180: 5.10 | E180: 3.10 | F180: 0.25
B181: 18.10 | C181: 15.10 | D181: 8.10 | E181: 4.10 | F181: 0.50
B182: 25.10 | C182: 20.10 | D182: 12.10 | E182: 6.10 | F182: 0.70
B183: 40.00 | C183: 30.00 | D183: 18.00 | E183: 9.00 | F183: 1.00
B184: 400.00 | C184: 300.00 | D184: 180.00 | E184: 90.00 | F184: 0.70
A186: P - Formulas
A187: Sandy | B187: Yo + ax | D187: F2 = Yo + ax + bx2 | F187: F3 = Yo + ax | H187: Loam | I187: F1 = Yo + ax + bx2 | K187: F2 = Yo + ax + bx2 | M187: F3 = Yo + ax
B188: Yo | C188: 0.10 | D188: Yo | E188: -0.47 | F188: Yo | G188: 1.02 | I188: Yo | J188: 0.10 | K188: Yo | L188: -0.30 | M188: Yo | N188: 1.03
B189: a | C189: 0.01 | D189: a | E189: 0.07 | F189: a | G189: -0.00 | I189: a | J189: -0.01 | K189: a | L189: 0.06 | M189: a | N189: -0.00
D190: b | E190: -0.00 | I190: b | J190: 0.00 | K190: b | L190: -0.00
A191: Clay | B191: F1 = Yo + ax + bx2 | D191: F2 = Yo + ax + bx2 | F191: F3 = Yo + ax | H191: Heavy clay | I191: F1 = Yo + ax + bx2 | K191: F2 = Yo + ax + bx2 | M191: F3 = Yo + ax
B192: Yo | C192: 0.10 | D192: Yo | E192: 0.10 | F192: Yo | G192: 1.04 | I192: Yo | J192: 0.10 | K192: Yo | L192: 0.11 | M192: Yo | N192: 1.03
B193: a | C193: -0.00 | D193: a | E193: 0.05 | F193: a | G193: -0.00 | I193: a | J193: -0.10 | K193: a | L193: 0.09 | M193: a | N193: -0.00
B194: b | C194: 0.01 | D194: b | E194: 0.00 | I194: b | J194: 0.05 | K194: b | L194: 0.00
B195: =C188+C189*'2 Indicators'!C244 -> 0.10 | C195: =E188+E189*'2 Indicators'!C244+E190*'2 Indicators'!C244^2 -> -0.47 | D195: =0.1946+0.0201*'2 Indicators'!C244 -> 0.19 | E195: =G188+G189*'2 Indicators'!C244 -> 1.02 | F195: =IF('2 Indicators'!C244<=12.1,B195,IF(AND('2 Indicators'!C244>12.1,'2 Indicators'!C244<25.1),C195,IF('2 Indicators'!C244>40,E195,D195))) -> 0.10 | J195: =J188+J189*'2 Indicators'!C244+J190*'2 Indicators'!C244^2 -> 0.10 | K195: =L188+L189*'2 Indicators'!C244+L190*'2 Indicators'!C244^2 -> -0.30 | L195: =N188+N189*'2 Indicators'!C244 -> 1.03 | M195: =IF(AND('2 Indicators'!C244>15.1,'2 Indicators'!C244<30),K195,IF('2 Indicators'!C244>=30,L195,J195)) -> 0.10
B196: =C192+C193*'2 Indicators'!C244+C194*'2 Indicators'!C244^2 -> 0.10 | C196: =E192+E193*'2 Indicators'!C244+E194*'2 Indicators'!C244^2 -> 0.10 | D196: =G192+G193*'2 Indicators'!C244 -> 1.04 | E196: =IF(AND('2 Indicators'!C244>8.1,'2 Indicators'!C244<18),C196,IF('2 Indicators'!C244>=18,D196,B196)) -> 0.10 | J196: =J192+J193*'2 Indicators'!C244+J194*'2 Indicators'!C244^2 -> 0.10 | K196: =L192+L193*'2 Indicators'!C244+L194*'2 Indicators'!C244^2 -> 0.11 | L196: =N192+N193*'2 Indicators'!C244 -> 1.03 | M196: =IF(AND('2 Indicators'!C244>4.1,'2 Indicators'!C244<9),K196,IF('2 Indicators'!C244>=9,L196,J196)) -> 0.10
B197: =IF(AND('2 Indicators'!E242="Sandy"),IF('2 Indicators'!C244<0,0,IF(Formulas!F195>1,1,Formulas!F195)),0) -> 0.00 | C197: =IF(AND('2 Indicators'!E242="Loam"),IF('2 Indicators'!C244<0,0,IF(Formulas!M195>1,1,Formulas!M195)),0) -> 0.00 | D197: =IF(AND('2 Indicators'!E242="Clay"),IF('2 Indicators'!C244<0,0,IF(Formulas!E196>1,1,Formulas!E196)),0) -> 0.00 | E197: =IF(AND('2 Indicators'!E242="Heavy clay"),IF('2 Indicators'!C244<0,0,IF(Formulas!M196>1,1,Formulas!M196)),0) -> 0.00 | F197: =(B197+C197+D197+E197) -> 0.00
B199: Ca - Weighting factor | E199: Ca - Formulas
B200: Classification | C200: Weighting factor | E200: F1 = Yo + ax + bx2 | H200: F2 = Yo + ax + bx2 | J200: F3 = Yo + ax
B201: 0.00 | C201: 0.10 | E201: Yo | F201: 0.10 | H201: Yo | I201: 0.32 | J201: Yo | K201: 1.08
B202: 0.41 | C202: 0.25 | E202: a | F202: 0.38 | H202: a | I202: 0.14 | J202: a | K202: -0.02
B203: 1.21 | C203: 0.50 | E203: b | F203: -0.04 | H203: b | I203: 0.01
B204: 2.41 | C204: 0.70
B205: 4.00 | C205: 1.00 | F205: =F201+F202*'2 Indicators'!C245+F203*'2 Indicators'!C245^2 -> 0.10 | G205: =I201+I202*'2 Indicators'!C245+I203*'2 Indicators'!C245^2 -> 0.32 | H205: =K201+K202*'2 Indicators'!C245 -> 1.08 | I205: =IF(AND('2 Indicators'!C245>1.21,'2 Indicators'!C245<4),G205,IF('2 Indicators'!C245>=4,H205,F205)) -> 0.10
B206: 20.00 | C206: 0.70
B209: Mg - Weighting factor | E209: Mg - Formulas
B210: Classification | C210: Weighting factor | E210: F1 = Yo + ax + bx2 | H210: F2 = Yo + ax + bx2 | J210: F3 = Yo + ax
B211: 0.00 | C211: 0.10 | E211: Yo | F211: 0.10 | H211: Yo | I211: 0.32 | J211: Yo | K211: 1.08
B212: 0.16 | C212: 0.25 | E212: a | F212: 0.97 | H212: a | I212: 0.36 | J212: a | K212: -0.05
B213: 0.46 | C213: 0.50 | E213: b | F213: -0.23 | H213: b | I213: 0.06
B214: 0.91 | C214: 0.70 | F214: =F211+F212*'2 Indicators'!C246+F213*'2 Indicators'!C246^2 -> 0.10 | G214: =I211+I212*'2 Indicators'!C246+I213*'2 Indicators'!C246^2 -> 0.32 | H214: =K211+K212*'2 Indicators'!C246 -> 1.08 | I214: =IF(AND('2 Indicators'!C246>0.46,'2 Indicators'!C246<1.5),G214,IF('2 Indicators'!C246>=1.5,H214,F214)) -> 0.10
B215: 1.50 | C215: 1.00
B216: 7.50 | C216: 0.70
B218: K - Weighting factor | E218: K - Formulas
B219: Classification | C219: Weighting factor | E219: F1 = Yo + ax + bx2 | H219: F2 = Yo + ax + bx2 | J219: F3 = Yo + ax
B220: 0.00 | C220: 0.10 | E220: Yo | F220: 0.10 | H220: Yo | I220: 0.21 | J220: Yo | K220: 1.08
B221: 16.00 | C221: 0.25 | E221: a | F221: 0.01 | H221: a | I221: 0.01 | J221: a | K221: -0.00
B222: 41.00 | C222: 0.50 | E222: b | F222: 0.00 | H222: b | I222: -0.00
B223: 71.00 | C223: 0.70 | F223: =F220+F221*'2 Indicators'!C247+F222*'2 Indicators'!C247^2 -> 0.10 | G223: =I220+I221*'2 Indicators'!C247+I222*'2 Indicators'!C247^2 -> 0.21 | H223: =K220+K221*'2 Indicators'!C247 -> 1.08 | I223: =IF(AND('2 Indicators'!C247>41,'2 Indicators'!C247<120),G223,IF('2 Indicators'!C247>=120,H223,F223)) -> 0.10
B224: 120.00 | C224: 1.00
B225: 600.00 | C225: 0.70
B227: pH - Weighting factor | E227: pH - Formulas
B228: Classification | C228: Weighting factor | E228: F1 = Yo + ax + bx2 | H228: F2 = Yo + ax + bx2
B229: 5.10 | C229: 0.30 | E229: Yo | F229: -19.10 | H229: Yo | I229: -42.50
B230: 5.20 | C230: 0.40 | E230: a | F230: 6.35 | H230: a | I230: 14.75
B231: 5.50 | C231: 0.70 | E231: b | F231: -0.50 | H231: b | I231: -1.25
B232: 6.00 | C232: 1.00 | E232: =-4.8+(1*'2 Indicators'!C248) -> -4.80 | F232: =F229+F230*'2 Indicators'!C248+F231*'2 Indicators'!C248^2 -> -19.10 | G232: =I229+I230*'2 Indicators'!C248+I231*'2 Indicators'!C248^2 -> -42.50 | H232: =IF('2 Indicators'!C248>=6.6,I232,IF(AND('2 Indicators'!C248>=6,'2 Indicators'!C248<6.6),G232,IF(AND('2 Indicators'!C248>5.2,'2 Indicators'!C248<6),F232,E232))) -> -4.80
B233: 6.40 | C233: 0.70
... 308 more rows

Sheet Data base
A1: ISA | C1: DATA BASE
A2: PESTICIDES | C2: =COUNTA(C3:IQ3) -> 249
A3: Action | C3: Herbicide | D3: Insecticide | E3: Insecticide | F3: Insecticide | G3: Herbicide | H3: Fungicide | I3: Herbicide | J3: Insecticide | K3: Insecticide | L3: Herbicide | M3: Insecticide | N3: Insecticide | O3: Fungicide | P3: Herbicide | Q3: Herbicide | R3: Herbicide | S3: Insecticide | T3: Herbicide | U3: Herbicide | V3: Insecticide | W3: Herbicide | X3: Fungicide | Y3: Fungicide | Z3: Insecticide | AA3: Herbicide | AB3: Fungicide | AC3: Fungicide | AD3: Insecticide | AE3: Insecticide | AF3: Herbicide | AG3: Insecticide | AH3: Fungicide | AI3: Herbicide | AJ3: Fungicide | AK3: Insecticide | AL3: Insecticide | AM3: Fungicide | AN3: Insecticide | AO3: Fungicide | AP3: Insecticide | AQ3: Fungicide | AR3: Herbicide | AS3: Insecticide | AT3: Insecticide | AU3: Insecticide | AV3: Insecticide | AW3: Herbicide | AX3: Fungicide | AY3: Insecticide | AZ3: Herbicide | BA3: Herbicide | BB3: Herbicide | BC3: Herbicide | BD3: Insecticide | BE3: Fungicide | BF3: Fungicide | BG3: Fungicide | BH3: Insecticide | BI3: Fungicide | BJ3: Insecticide | BK3: Herbicide | BL3: Insecticide | BM3: Fungicide | BN3: Insecticide | BO3: Fungicide | BP3: Fungicide | BQ3: Insecticide | BR3: Fungicide | BS3: Insecticide | BT3: Insecticide | BU3: Herbicide | BV3: Herbicide | BW3: Fungicide | BX3: Insecticide | BY3: Insecticide | BZ3: Fungicide | CA3: Insecticide | CB3: Herbicide | CC3: Herbicide | CD3: Fungicide | CE3: Herbicide | CF3: Fungicide | CG3: Insecticide | CH3: Fungicide | CI3: Insecticide | CJ3: Herbicide | CK3: Insecticide | CL3: Insecticide | CM3: Fungicide | CN3: Fungicide | CO3: Fungicide | CP3: Insecticide | CQ3: Herbicide | CR3: Insecticide | CS3: Fungicide | CT3: Fungicide | CU3: Insecticide | CV3: Fungicide | CW3: Insecticide | CX3: Herbicide | CY3: Insecticide | CZ3: Herbicide | DA3: Herbicide | DB3: Fungicide | DC3: Insecticide | DD3: Fungicide | DE3: Insecticide | DF3: Herbicide | DG3: Herbicide | DH3: Herbicide | DI3: Fungicide | DJ3: Fungicide | DK3: Insecticide | DL3: Fungicide | DM3: Herbicide | DN3: Fungicide | DO3: Fungicide | DP3: Fungicide | DQ3: Fungicide | DR3: Herbicide | DS3: Herbicide | DT3: Fungicide | DU3: Insecticide | DV3: Insecticide | DW3: Herbicide | DX3: Herbicide | DY3: Herbicide | DZ3: Herbicide | EA3: Herbicide | EB3: Herbicide | EC3: Insecticide | ED3: Fungicide | EE3: Herbicide | EF3: Herbicide | EG3: Herbicide | EH3: Herbicide | EI3: Herbicide | EJ3: Fungicide | EK3: Insecticide | EL3: Herbicide | EM3: Insecticide | EN3: Fungicide | EO3: Herbicide | EP3: Fungicide | EQ3: Fungicide | ER3: Fungicide | ES3: Herbicide | ET3: Fungicide | EU3: Herbicide | EV3: Insecticide | EW3: Herbicide | EX3: Insecticide | EY3: Insecticide | EZ3: Fungicide | FA3: Fungicide | FB3: Herbicide | FC3: Fungicide | FD3: Herbicide | FE3: Insecticide | FF3: Fungicide | FG3: Herbicide | FH3: Fungicide | FI3: Insecticide | FJ3: Insecticide | FK3: Insecticide | FL3: Fungicide | FM3: Fungicide | FN3: Herbicide | FO3: Herbicide | FP3: Herbicide | FQ3: Herbicide | FR3: Fungicide | FS3: Herbicide | FT3: Insecticide | FU3: Herbicide | FV3: Herbicide | FW3: Fungicide | FX3: Herbicide | FY3: Herbicide | FZ3: Fungicide | GA3: Herbicide | GB3: Herbicide | GC3: Insecticide | GD3: Insecticide | GE3: Herbicide | GF3: Fungicide | GG3: Insecticide | GH3: Fungicide | GI3: Fungicide | GJ3: Insecticide | GK3: Herbicide | GL3: Herbicide | GM3: Fungicide | GN3: Herbicide | GO3: Insecticide | GP3: Fungicide | GQ3: Fungicide | GR3: Fungicide | GS3: Fungicide | GT3: Insecticide | GU3: Fungicide | GV3: Insecticide | GW3: Fungicide | GX3: Insecticide | GY3: Herbicide | GZ3: Herbicide | HA3: Herbicide | HB3: Herbicide | HC3: Herbicide | HD3: Herbicide | HE3: Herbicide | HF3: Herbicide | HG3: Insecticide | HH3: Insecticide | HI3: Insecticide | HJ3: Insecticide | HK3: Herbicide | HL3: Insecticide | HM3: Herbicide | HN3: Insecticide | HO3: Fungicide | HP3: Fungicide | HQ3: Insecticide | HR3: Herbicide | HS3: Insecticide | HT3: Herbicide | HU3: Herbicide | HV3: Insecticide | HW3: Herbicide | HX3: Fungicide | HY3: Fungicide | HZ3: Insecticide | IA3: Insecticide | IB3: Herbicide | IC3: Insecticide | ID3: Fungicide | IE3: Fungicide | IF3: Insecticide | IG3: Fungicide | IH3: Herbicide | II3: Fungicide | IJ3: Fungicide | IK3: Herbicide | IL3: Fungicide | IM3: Insecticide | IN3: Herbicide | IO3: Herbicide | IP3: Fungicide | IQ3: Fungicide | ANY3: =COUNTA(AIP3:ANW3) -> 0
A4: Substance groups | C4: Phenoxy herbicide; Phenoxy PGR; Auxin PGR | D4: Avermectin | E4: Organophosphate insecticide; Phosphoramidothioate insecticide | F4: Neonicotinoid insecticide; Pyridylmethylamine neonicotinoid insecticide | G4: Chloroacetanilide herbicide | H4: Benzotiadiazol | I4: Nitrophenyl ether herbicide | J4: Pyrethroid insecticide; Pyrethroid acaricide | K4: Pyropene insecticide; Organic heterotetracyclic compound | L4: Chloroacetanilide herbicide | M4: Pyrethroid insecticide | N4: Inorganic compound | O4: Triazolopyrimidine fungicide | P4: Triazine herbicide | Q4: Triazolone herbicide; Amide herbicide | R4: Pyridine herbicide; Picolinic acid herbicide | S4: Amidine insecticide; Formamidine insecticide | T4: Carbamate herbicide; Sulphonamide herbicide | U4: Triazine herbicide; Chlorotriazine herbicide | V4: Tetranortriterpenoid limonoide insecticide from Neen seeds | W4: Sulfonylurea herbicide; Pyridine compound; Pyrazole herbicide | X4: Strobilurin fungicide | Y4: Acylamino acid fungicide; Anilide fungicide; Aromatic amide fungicide | Z4: Carbamate insecticide; Methylcarbamate insecticide | AA4: Benzothiazinone herbicide | AB4: Carbamate fungicide; Valinamide fungicide; Benzothiazole fungicide | AC4: Amide fungicide; Pyrolecarboxamide fungicide | AD4: Pyrethroid ester insecticide | AE4: Pyrethroid ester acaricide; Pyrethroid ester insecticide | AF4: Pyrimidinyl carboxy compound; Benzoic acid herbicide | AG4: Benzoylurea insecticide | AH4: Carboxamide fungicide; Anilide fungicide; Pyridine fungicide | AI4: Uracil herbicide | AJ4: Triazole fungicide; Conazole fungicide | AK4: Unclassified IGR | AL4: Organophosphate insecticide; Organothiophosphate insecticide; Organophosphate nematicide; Organothiophosphate nematticide | AM4: Phthalimide fungicidea | AN4: Carbamate insecticide; Carbamate acaricide | AO4: Benzimidazole fungicide; Carbamate fungicide | AP4: metilcarbamato de benzofuranila | AQ4: Oxathiin fungicide; Anilide fungicide | AR4: Triazolone herbicide | AS4: hydrochloride | AT4: Diamide insecticide; Pyridylpyrazole insecticide | AU4: Pyrrole insecticide; Pyrrole acaricide | AV4: Benzoylurea insecticide; Urea insecticide | AW4: Sulfonylurea herbicide; Pyrimidinylsulfonylurea herbicide | AX4: Chloronitrile fungicide; Nitrile fungicide | AY4: Organophosphate insecticide; Organophosphate acaricide; Organothiophosphate insecticide; Organothiophosphate acaricide | AZ4: Cyclohexanedione herbicide; Cyclohexene oxime herbicide | BA4: Aryloxyphenoxypropionate herbicide | BB4: Oxazole fungicide | BC4: Sulfonanilide herbicide; Triazolopyrimidine herbicide | BD4: Neonicotinoid insecticide; Thiazole insecticide; Nitroguanidine insecticide | BE4: Inorganic compound | BF4: Inorganic compound | BG4: Inorganic compound | BH4: Diamide insecticide; Pyridylpyrazole insecticide | BI4: Imidazole fungicide; Sulfonamide fungicide | BJ4: Diamide insecticide; Pyridylpyrazole insecticide | BK4: Sulfonylurea herbicide; Pyrimidinylulfonurea herbicide | BL4: Bridged diphenyl insecticide | BM4: Cyanoacetamide oxime fungicide; Urea fungicide; Nitrile fungicide | BN4: Pyrethroid Insecticide; Pyrethroid acaricide; Pyrethroid ester insecticide; Pyrethroid ester acaricide | BO4: Conazole fungicide; Triazole fungicide | BP4: Anilinopyrimidine fungicide; Aminopyrimidine fungicide | BQ4: Triazine insecticide; Triazine acaricide | BR4: Dithiocarbamate insecticide; Carbamate insecticide; Dithiocarbamate herbicide; Carbamate herbicide; Dithiocarbamate fungicide; Carbamate fungicide; Fumigant pesticide | BS4: Pyrethroid insecticide; Pyrethroid ester insecticide | BT4: Thiourea insecticide; Urea insecticide; Thiourea acaricide; Urea acaricide | BU4: Benzoic acid herbicide; Benzoic acid PGR | BV4: Sulfonanilide herbicide; Triazolopyrimidine herbicide | BW4: Conazole fungicide | BX4: Benzoylphenylurea herbicide; Benzoylurea herbicde; Urea herbicide | BY4: Organophosphate insecticide; Organophosphate acaricide; Organothiophosphate insecticide; Organothiophosphate acaricide | BZ4: Morpholine fungicide | CA4: Neonicotinoid insecticide; Nitroguanidine neonicotinoid insecticide | CB4: Quarternary ammonium herbicide | CC4: Quarternary ammonium herbicide | CD4: Quinone fungicide | CE4: Phenylurea herbicide; Urea herbicide | CF4: Guanidine fungicide; Aliphatic nitrogen fungicide | CG4: avermectine | CH4: Triazole fungicide; Conazole fungicide | CI4: Pyrethroid insecticide | CJ4: Sulfonylurea herbicide; Pyrimidinylsulonyurea herbicide; Urea herbicide | CK4: Pyrethroid insecticide; Pyrethrid ether insecticide | CL4: difenil oxazoline | CM4: Thiadiazole fungicide | CN4: Oxazole fungicide; Dicarboximide fungicide | CO4: Imidazole fungicide | CP4: Organophosphate insecticide; Organothiophosphate insecticide; Phenyl organothiophosphate insecticide | CQ4: Aryloxyphenoxypropionat herbicide | CR4: Pyrethroid insecticide | CS4: Morpholine fungicide | CT4: Pyrazolium fungicide | CU4: Pyrazolium insecticide; Pyrazolium acaricide | CV4: Organometal fungicide; Organotin fungicide | CW4: Phenylpyrazole insecticide; Phenylpyrazole acaricide; Pyrazole insecticide; Prazole acaricide | CX4: Sulfonylurea herbicide; Pyrimidinylsulfonlurea herbicide | CY4: Pyridine insecticide | CZ4: Pyridine herbicide; Picolinic acid herbicide | DA4: Aryloxyphenoxypropionate herbicide | DB4: Pyridine fungicide; Aminopyridine fungicide; Chloropyridine fungicide | DC4: Phthalamide insecticide; Organofluoride insecticide | DD4: Phenylpyrrole fungicide; Pyrrole fungicide | DE4: Benzoylurea insecticide; Benzoylurea acaricide; Urea insecticide; Urea acaricide | DF4: Sulfonanilide herbicide; Triazolopyrimidine herbicide | DG4: Dicarboximide herbicide | DH4: Flumioxazin herbicide | DI4: Benzamide fungicide; Pyridine fungicide | DJ4: Benzamide fungicide; Pyridine fungicide; Unclassified nematicide | DK4: Organofluoride insecticide; Monochloropyridine insecticide; butenolide Insecticide | DL4: Triazole fungicide; Conazole fungicide | DM4: Pyridine herbicide | DN4: Benzanilide fungicide | DO4: Triazole fungicide; Conazole fungicide | DP4: Pyrazole fungicide; Anilide fungicide; Carboxamide fungicide; Pyrazolecarboximide fungicide | DQ4: Phthalimide fungicide | DR4: Organochloride fungicide; Organofluoride fungicide; Amide fungicide; Nitrophenol etther fungicide | DS4: Pyrimidinylsulfonylurea herbicide; Sulfonylurea herbicide | DT4: Organophosphate fungicide | DU4: Organophosphate insecticide; Organophosphate nematicide; Organothiophosphate insecticide; Organothiophosphate nematicide | DV4: Pyrethroid insecticide; Pyrethroid ester insecticide | DW4: Organophosphate herbicide | DX4: Organophosphate herbicide; Phosphonoglycine herbicide | DY4: Picolinic acid herbicide; Pyridine herbicide | DZ4: Pyrazole herbicide; Sulfonylurea herbicide; Urea herbicide; Pyrimidinylsulfonylurea herbicide | EA4: Aryloxyphenoxypropionate herbicide | EB4: Triazinone herbicide | EC4: Carboxamide acaricide; Carboximide insecticide; Thiazolidine acaricide; Thiazolidine insecticide | ED4: Imidazole fungicide; Conazole fungicide | EE4: Imidazolinone herbicide | EF4: Imidazolinone herbicide | EG4: Imidazolinone herbicide | EH4: Imidazolinone herbicide | EI4: Imidazolinone herbicide | EJ4: Triazole fungicide; Conazole fungicide | EK4: Neonicotinoid insecticide; Guanidine insecticide | EL4: Fluoroalkyltriazine herbicide | EM4: Oxadiazine insecticide | EN4: Pyrazolecarboxamide fungicide; Pyrazole fungicide; Carboximide fungicide | EO4: Triazinylsulfonylurea herbicide; Sulfonylurea herbicide | EP4: Triazole fungicide | EQ4: Dicarboximide fungicide; Dichlorophenyl fungicide; Dichlorophenyl dicarboximide fungicide | ER4: Amide fungicide; Thiophene fungicide | ES4: Isoxazol herbicide | ET4: Kasugamycin hydrochloride hydrate | EU4: Nitrophenyl ether herbicide | EV4: Pyrethroid insecticide; Pyrethroid ester insecticide | EW4: Urea herbicide; Phenylurea herbicide | EX4: Benzoylurea insecticide; Benzoylphenylurea insecticide | EY4: Organophosphate insectide; Organophosphate acaricide; Organothiophosphate insecticide; Organothiophosphate acaricide | EZ4: Carbamate fungicide; Dithiocarbamate fungicide; Organometal fungicide; Organozinc fungicide | FA4: Amide fungicide | FB4: Aryloxyalkanoic acid herbicide; Phenoxyacetic herbicide | FC4: Conazole fungicide; Triazole fungicide | FD4: Aroylcyclohexanedione herbicide | FE4: Semicarbazone compound; Unclassified pesticide | FF4: Anilide fungicide; Acylamino acid fungicide | FG4: Carbamate fungicide; Dithiocarbamate fungicide; Carbamate herbicide; Dithiocarbamate herbicide; Carbamate nematicide; Dithiocarbamate nematicide | FH4: Triazole fungicide; Conazole fungicide | FI4: Organophosphate insecticide; Organothiophosphate inseticide; Organophosphate acaricide; Organothiophosphate acaricide | FJ4: Carbamate insecticide; Oxime carbamate insecticide; Carbamate acariicide; Oxime carbamate acaricide | FK4: Carbohydrazide compound; Monomethoxybenzene compound | FL4: Organobromine | FM4: Carbamate fungicide; Dithiocarbamate fungicide; Organometal compound; Organozinc fungicide | FN4: Chloroacetanilide herbicide | FO4: Triazinone herbicide | FP4: Sulfonylurea Herbicide; Triazinylsulfonylurea herbicide | FQ4: organoarsenic herbicide | FR4: Triazole fungicide; Conazole fungicide | FS4: Sulfonylurea herbicide; Pyrimidinylsulfonylurea herbicide | FT4: Benzoylurea insecticide | FU4: Pyrimidinylsulfonylurea herbicide; Sulfonylurea herbicide | FV4: Oxadiazolone herbicide | FW4: Oxazole fungicide; Pyrazole fungicide; Thiazole fungicide | FX4: Nitrophenol ether herbicide; Diphenyl ether herbicide | FY4: Quarternary ammonium herbicide | FZ4: Phenylurea fungicide; Urea fungicide | GA4: Dinitroaniline herbicide | GB4: Sulfonamide herbicide;Trazoloprimidine herbicide | GC4: Pyrethroid insecticide; Pyrethroid ester insecticide | GD4: Organophosphate insecticide; Organophosphate acaricide; Organothiophosphate insecticide; Organothiophosphate acaricide; Phthalimide insecticide; Phthalimide acaricide | GE4: Pyridine herbicide; Picolinic acid herbicide | GF4: Strobilurin fungicide; Methoxyacrylate strobiluron fungicide | GG4: Organophosphate insecticide; Organophosphate acaricide; Organothiophosphate insecticide; Organothiophosphate acaricide; Pyrimidine insecticide; Pyrimidine acaricide | GH4: Inorganic compound | GI4: Dicarboximide fungicide; Dichlorophenyl dicarboximide fungicide | GJ4: Organophosphate insecticide; Organophosphate acaricide; Organothiophosphate insecticide; Organothiophosphate acaricide | GK4: Cyclohexadione herbicide; Cyclohexene herbicide | GL4: Triazine herbicide; Methylthiotriazine herbicide | GM4: Carbamate fungicide | GN4: Anilide herbicide | GO4: Sulfite ester insecticide; Sulfite ester acaricide | GP4: Triazole fungicide; Conazole fungicide | GQ4: Carbamate fungicide; Dithiocarbamate fungicide; Organometal fungicide; Organozinc fungicide | GR4: Conazole fungicide | GS4: Carboxamide fungicide; Pyrazole fungicide; Pyrazolecarboximide fungicide | GT4: Pyridine insecticide; Azomethine insecticide | GU4: Strobilurin fungicide; Carbanilate fungicide; Phenylpyrazole fungicide | GV4: Pyridazinone insecticide; Pyridazinone acaricide | GW4: Anilinopyrimidine fungicide | GX4: Juvenile hormone mimic insecticide | GY4: Pyrimidinyloxybenzoic acid herbicide | GZ4: Oxazole herbicide; Pyrzole herbicide | HA4: Quinolinecarboxylic acid herbicide | HB4: Aryloxyphenoxypropionate herbicide | HC4: Aryloxyphenoxypropionate herbicide | HD4: pyrimidinadione | HE4: Cyclohexene herbicide; Cyclohexene oxime herbicide | HF4: Triazine herbicide; Chlorotriazine herbicide | HG4: Spinosyn insecticide | HH4: Spinosyn insecticide | HI4: Tetronic acid acaricide; Tetronic acid insecticide | HJ4: Tetronic acid insecticide; Tetronic acid acaricide | HK4: Anilide herbicide; Triazolone herbicide | HL4: Sulfonamide insecticide; Organofluoride insecticide | HM4: Sulfonylurea herbicide; Pyrimidinylsulfonylurea herbicide | HN4: Sulfoximine insecticide | HO4: Inorganic compound | HP4: Triazole fungicide; Conazole fungicide | HQ4: Carbohydrazide compound | HR4: Urea herbicide; Thiadiazolylurea herbicide | HS4: Benzoylphenylurea insecticide; Phenylurea insecticide; Urea insecticide | HT4: Aroylcyclohexanedione herbicide | HU4: Cyclohexene oxime herbicide | HV4: Organophosphate insecticide; Organophosphate nematicide; Organothiophosphate insecticide; Organothiophosphate nematicide | HW4: Triazine herbicide; Methoxytriazine herbicide | HX4: Triazole fungicide; Conazole fungicide | HY4: Benzimidazole fungicide; Thiazole fungicide | HZ4: Neonicotinoid insecticide; Pyridylmethylamine neonicotinoid insecticide; Thiazolidine insecticide | IA4: Neonicotinoid insecticide; Nitroguanidine insecticids; Thiazole insecticide; Nitroguanidine neonicotinoid insecticide | IB4: Triazolone herbicide | IC4: Carbamate insecticide; Oxime carbamate insecticide | ID4: Carbamate fungicide | IE4: Carbamate fungicide; Dithiocarbamate fungicide | IF4: Pyrazole insecticide; Carboxamide insecticide; Pyrazolecarboxamide fungicide | IG4: Triazole fungicide; Conazole fungicide | IH4: Pyridine herbicide | II4: benzotiazol | IJ4: Strobilurin fungicide; Methoxyiminoacetate strobilurin fungicide | IK4: Sulfonylurea herbicide; Pyrimidinylsulfonylurea herbicide | IL4: Conazole fungicide | IM4: Benzoylurea insecticide; Urea insecticide | IN4: Dinitroaniline herbicide | IO4: Dioxociclohexan carboxilic acid herbicide | IP4: Triazole fungicide; Conazole fungicide | IQ4: Benzamide fungicide
A5: PRODUCT | C5: 2,4 D | D5: Abamectin | E5: Acephate | F5: Acetamiprid | G5: Acetochlor | H5: acibenzolar S-methyl | I5: Acifluorfen-sodium | J5: Acrinathrin | K5: Afidopyropen | L5: Alachlor | M5: Alpha-cypermethrin | N5: Aluminium phosphide | O5: Ametoctradin | P5: Ametryn | Q5: Amicarbazone | R5: Aminopyralid | S5: Amitraz | T5: Asulam | U5: Atrazine | V5: Azadirachtin | W5: Azimsulfuron | X5: Azoxystrobin | Y5: Benalaxyl-M | Z5: Benfuracarb | AA5: Bentazone | AB5: Benthiavalicarb-isopropyl | AC5: Benzovindiflupyr | AD5: Beta-cyfluthrin | AE5: Bifenthrin | AF5: Bispyribac | AG5: Bistrifluron | AH5: Boscalid | AI5: Bromacil | AJ5: Bromuconazole | AK5: Buprofezin | AL5: Cadusafos | AM5: Captan | AN5: Carbaryl | AO5: Carbendazim | AP5: Carbosulfan | AQ5: Carboxin | AR5: Carfentrazone-ethyl | AS5: cartap-hydrochloride | AT5: Chlorantraniliprole | AU5: Chlorfenapyr | AV5: Chlorfluazuron | AW5: Chlorimuron-ethyl | AX5: Chlorothalonil | AY5: Chlorpyrifos | AZ5: Clethodim | BA5: Clodinafop propargyl | BB5: Clomazone | BC5: Cloransulam-methyl | BD5: Clothianidin | BE5: Copper (II) hydroxide | BF5: Copper oxychloride | BG5: Copper sulphate | BH5: Cyantraniliprole | BI5: Cyazofamid | BJ5: Cyclaniliprole | BK5: Cyclosulfamuron | BL5: Cyflumetofen | BM5: Cymoxanil | BN5: Cypermethrin | BO5: Cyproconazole | BP5: Cyprodinil | BQ5: Cyromazine | BR5: Dazomet | BS5: Deltamethrin | BT5: Diafenthiuron | BU5: Dicamba | BV5: Diclosulam | BW5: Difenoconazole | BX5: Diflubenzuron | BY5: Dimethoate | BZ5: Dimethomorph | CA5: Dinotefuran | CB5: Diquat | CC5: Diquat dibromide | CD5: Dithianon | CE5: Diuron | CF5: Dodine | CG5: Emamectin benzoate | CH5: Epoxiconazole | CI5: Esfenvalerate | CJ5: Ethoxysulfuron | CK5: Etofenprox | CL5: Etoxazole | CM5: Etridiazole | CN5: Famoxadone | CO5: Fenamidone | CP5: Fenitrothion | CQ5: Fenoxaprop-P-ethyl | CR5: Fenpropathrin | CS5: Fenpropimorph | CT5: Fenpyrazamine | CU5: Fenpyroximate | CV5: Fentin hydroxide | CW5: Fipronil | CX5: Flazasulfuron | CY5: Flonicamid | CZ5: Florpyrauxifen-benzyl | DA5: Fluazifop-P-butyl | DB5: Fluazinam | DC5: Flubendiamide | DD5: Fludioxonil | DE5: Flufenoxuron | DF5: Flumetsulam | DG5: Flumiclorac-pentyl | DH5: Flumioxazin | DI5: Fluopicolide | DJ5: Fluopyram | DK5: Flupyradifurone | DL5: Fluquinconazole | DM5: Fluroxypyr | DN5: Flutolanil | DO5: Flutriafol | DP5: Fluxapyroxad | DQ5: Folpet | DR5: Fomesafen | DS5: Foramsulfuron | DT5: Fosetyl | DU5: Fosthiazate | DV5: Gamma-cyhalothrin | DW5: Glufosinate-ammonium | DX5: Glyphosate | DY5: Halauxifen-methyl | DZ5: Halosulfuron-methyl | EA5: Haloxyfop-P-methyl | EB5: Hexazinone | EC5: Hexythiazox | ED5: Imazalil | EE5: Imazamox | EF5: Imazapic | EG5: Imazapyr | EH5: Imazaquin | EI5: Imazethapyr | EJ5: Imibenconazole | EK5: Imidacloprid | EL5: Indaziflam | EM5: Indoxacarb | EN5: Inpyrfluxam | EO5: Iodosulfuron-methyl-sodium | EP5: Ipconazole | EQ5: Iprodione | ER5: Isofetamid | ES5: Isoxaflutole | ET5: Kasugamycin | EU5: Lactofen | EV5: Lambda-cyhalothrin | EW5: Linuron | EX5: Lufenuron | EY5: Malathion | EZ5: Mancozeb | FA5: Mandipropamid | FB5: MCPA | FC5: Mefentrifluconazole | FD5: Mesotrione | FE5: Metaflumizone | FF5: Metalaxyl-M | FG5: Metam-sodium | FH5: Metconazole | FI5: Methidathion | FJ5: Methomyl | FK5: Methoxyfenozide | FL5: methyl bromide | FM5: Metiram | FN5: Metolachlor | FO5: Metribuzin | FP5: Metsulfuron-methyl | FQ5: MSMA | FR5: Myclobutanil | FS5: Nicosulfuron | FT5: Novaluron | FU5: Orthosulfamuron | FV5: Oxadiazon | FW5: Oxathiapiprolin | FX5: Oxyfluorfen | FY5: Paraquat dichloride | FZ5: Pencycuron | GA5: Pendimethalin | GB5: Penoxsulam | GC5: Permethrin | GD5: Phosmet | GE5: Picloram | GF5: Picoxystrobin | GG5: Pirimiphos-methyl | GH5: Potassium bicarbonate | GI5: Procymidone | GJ5: Profenofos | GK5: Profoxydim | GL5: Prometryn | GM5: Propamocarb hydrochloride | GN5: Propanil | GO5: Propargite | GP5: Propiconazole | GQ5: Propineb | GR5: Prothioconazole | GS5: Pydiflumetofen | GT5: Pymetrozine | GU5: Pyraclostrobin | GV5: Pyridaben | GW5: Pyrimethanil | GX5: Pyriproxyfen | GY5: Pyrithiobac-sodium | GZ5: Pyroxasulfone | HA5: Quinclorac | HB5: Quizalofop-P-ethyl | HC5: Quizalofop-P-tefuryl | HD5: Saflufenacil | HE5: Sethoxydim | HF5: Simazine | HG5: Spinetoram | HH5: Spinosad | HI5: Spirodiclofen | HJ5: Spiromesifen | HK5: Sulfentrazone | HL5: Sulfluramid | HM5: Sulfometuron-methyl | HN5: Sulfoxaflor | HO5: Sulphur | HP5: Tebuconazole | HQ5: Tebufenozide | HR5: Tebuthiuron | HS5: Teflubenzuron | HT5: Tembotrione | HU5: Tepraloxidim | HV5: Terbufos | HW5: Terbuthylazine | HX5: Tetraconazole | HY5: Thiabendazole | HZ5: Thiacloprid | IA5: Thiamethoxam | IB5: Thiencarbazone | IC5: Thiodicarb | ID5: Thiophanate-methyl | IE5: Thiram | IF5: Tolfenpyrad | IG5: Triadimenol | IH5: Triclopyr-butotyl | II5: Tricyclazole | IJ5: Trifloxystrobin | IK5: Trifloxysulfuron | IL5: Triflumizole | IM5: Triflumuron | IN5: Trifluralin | IO5: trinexapac-ethyl | IP5: Triticonazole | IQ5: Zoxamide
A6: 14.5 - Product's active principle | C6: 2,4 D | D6: Abamectin | E6: Acephate | F6: Acetamiprid | G6: Acetochlor | H6: acibenzolar S-methyl | I6: Acifluorfen-sodium | J6: Acrinathrin | K6: Afidopyropen | L6: Alachlor | M6: Alpha-cypermethrin | N6: Aluminium phosphide | O6: Ametoctradin | P6: Ametryn | Q6: Amicarbazone | R6: Aminopyralid | S6: Amitraz | T6: Asulam | U6: Atrazine | V6: Azadirachtin | W6: Azimsulfuron | X6: Azoxystrobin | Y6: Benalaxyl-M | Z6: Benfuracarb | AA6: Bentazone | AB6: Benthiavalicarb-isopropyl | AC6: Benzovindiflupyr | AD6: Beta-cyfluthrin | AE6: Bifenthrin | AF6: Bispyribac | AG6: Bistrifluron | AH6: Boscalid | AI6: Bromacil | AJ6: Bromuconazole | AK6: Buprofezin | AL6: Cadusafos | AM6: Captan | AN6: Carbaryl | AO6: Carbendazim | AP6: Carbosulfan | AQ6: Carboxin | AR6: Carfentrazone-ethyl | AS6: cartap-hydrochloride | AT6: Chlorantraniliprole | AU6: Chlorfenapyr | AV6: Chlorfluazuron | AW6: Chlorimuron-ethyl | AX6: Chlorothalonil | AY6: Chlorpyrifos | AZ6: Clethodim | BA6: Clodinafop propargyl | BB6: Clomazone | BC6: Cloransulam-methyl | BD6: Clothianidin | BE6: Copper (II) hydroxide | BF6: Copper oxychloride | BG6: Copper sulphate | BH6: Cyantraniliprole | BI6: Cyazofamid | BJ6: Cyclaniliprole | BK6: Cyclosulfamuron | BL6: Cyflumetofen | BM6: Cymoxanil | BN6: Cypermethrin | BO6: Cyproconazole | BP6: Cyprodinil | BQ6: Cyromazine | BR6: Dazomet | BS6: Deltamethrin | BT6: Diafenthiuron | BU6: Dicamba | BV6: Diclosulam | BW6: Difenoconazole | BX6: Diflubenzuron | BY6: Dimethoate | BZ6: Dimethomorph | CA6: Dinotefuran | CB6: Diquat | CC6: Diquat dibromide | CD6: Dithianon | CE6: Diuron | CF6: Dodine | CG6: Emamectin benzoate | CH6: Epoxiconazole | CI6: Esfenvalerate | CJ6: Ethoxysulfuron | CK6: Etofenprox | CL6: Etoxazole | CM6: Etridiazole | CN6: Famoxadone | CO6: Fenamidone | CP6: Fenitrothion | CQ6: Fenoxaprop-P-ethyl | CR6: Fenpropathrin | CS6: Fenpropimorph | CT6: Fenpyrazamine | CU6: Fenpyroximate | CV6: Fentin hydroxide | CW6: Fipronil | CX6: Flazasulfuron | CY6: Flonicamid | CZ6: Florpyrauxifen-benzyl | DA6: Fluazifop-P-butyl | DB6: Fluazinam | DC6: Flubendiamide | DD6: Fludioxonil | DE6: Flufenoxuron | DF6: Flumetsulam | DG6: Flumiclorac-pentyl | DH6: Flumioxazin | DI6: Fluopicolide | DJ6: Fluopyram | DK6: Flupyradifurone | DL6: Fluquinconazole | DM6: Fluroxypyr | DN6: Flutolanil | DO6: Flutriafol | DP6: Fluxapyroxad | DQ6: Folpet | DR6: Fomesafen | DS6: Foramsulfuron | DT6: Fosetyl | DU6: Fosthiazate | DV6: Gamma-cyhalothrin | DW6: Glufosinate-ammonium | DX6: Glyphosate | DY6: Halauxifen-methyl | DZ6: Halosulfuron-methyl | EA6: Haloxyfop-P-methyl | EB6: Hexazinone | EC6: Hexythiazox | ED6: Imazalil | EE6: Imazamox | EF6: Imazapic | EG6: Imazapyr | EH6: Imazaquin | EI6: Imazethapyr | EJ6: Imibenconazole | EK6: Imidacloprid | EL6: Indaziflam | EM6: Indoxacarb | EN6: Inpyrfluxam | EO6: Iodosulfuron-methyl-sodium | EP6: Ipconazole | EQ6: Iprodione | ER6: Isofetamid | ES6: Isoxaflutole | ET6: Kasugamycin | EU6: Lactofen | EV6: Lambda-cyhalothrin | EW6: Linuron | EX6: Lufenuron | EY6: Malathion | EZ6: Mancozeb | FA6: Mandipropamid | FB6: MCPA | FC6: Mefentrifluconazole | FD6: Mesotrione | FE6: Metaflumizone | FF6: Metalaxyl-M | FG6: Metam-sodium | FH6: Metconazole | FI6: Methidathion | FJ6: Methomyl | FK6: Methoxyfenozide | FL6: methyl bromide | FM6: Metiram | FN6: Metolachlor | FO6: Metribuzin | FP6: Metsulfuron-methyl | FQ6: MSMA | FR6: Myclobutanil | FS6: Nicosulfuron | FT6: Novaluron | FU6: Orthosulfamuron | FV6: Oxadiazon | FW6: Oxathiapiprolin | FX6: Oxyfluorfen | FY6: Paraquat dichloride | FZ6: Pencycuron | GA6: Pendimethalin | GB6: Penoxsulam | GC6: Permethrin | GD6: Phosmet | GE6: Picloram | GF6: Picoxystrobin | GG6: Pirimiphos-methyl | GH6: Potassium bicarbonate | GI6: Procymidone | GJ6: Profenofos | GK6: Profoxydim | GL6: Prometryn | GM6: Propamocarb hydrochloride | GN6: Propanil | GO6: Propargite | GP6: Propiconazole | GQ6: Propineb | GR6: Prothioconazole | GS6: Pydiflumetofen | GT6: Pymetrozine | GU6: Pyraclostrobin | GV6: Pyridaben | GW6: Pyrimethanil | GX6: Pyriproxyfen | GY6: Pyrithiobac-sodium | GZ6: Pyroxasulfone | HA6: Quinclorac | HB6: Quizalofop-P-ethyl | HC6: Quizalofop-P-tefuryl | HD6: Saflufenacil | HE6: Sethoxydim | HF6: Simazine | HG6: Spinetoram | HH6: Spinosad | HI6: Spirodiclofen | HJ6: Spiromesifen | HK6: Sulfentrazone | HL6: Sulfluramid | HM6: Sulfometuron-methyl | HN6: Sulfoxaflor | HO6: Sulphur | HP6: Tebuconazole | HQ6: Tebufenozide | HR6: Tebuthiuron | HS6: Teflubenzuron | HT6: Tembotrione | HU6: Tepraloxidim | HV6: Terbufos | HW6: Terbuthylazine | HX6: Tetraconazole | HY6: Thiabendazole | HZ6: Thiacloprid | IA6: Thiamethoxam | IB6: Thiencarbazone | IC6: Thiodicarb | ID6: Thiophanate-methyl | IE6: Thiram | IF6: Tolfenpyrad | IG6: Triadimenol | IH6: Triclopyr-butotyl | II6: Tricyclazole | IJ6: Trifloxystrobin | IK6: Trifloxysulfuron | IL6: Triflumizole | IM6: Triflumuron | IN6: Trifluralin | IO6: trinexapac-ethyl | IP6: Triticonazole | IQ6: Zoxamide
A7: 14.6 - Toxicity to fish - 96h LC50 (mg l-1) | C7: 63.4 | D7: 0.0036 | E7: 0.63 | F7: 100 | G7: 0.36 | I7: 17 | J7: 0.0061 | K7: 18.3 | L7: 1.8 | M7: 0.0018 | N7: 0.0097 | O7: 0.065 | P7: 5 | Q7: 120 | R7: 100 | S7: 0.74 | T7: 91.3 | U7: 4.5 | W7: 154 | X7: 0.47 | Y7: 3.75 | Z7: 0.038 | AA7: 100 | AB7: 10 | AC7: 0.0035 | AD7: 6.8e-05 | AE7: 0.00026 | AF7: 95 | AG7: 0.5 | AH7: 2.7 | AI7: 36 | AJ7: 1.7 | AK7: 0.33 | AL7: 0.13 | AM7: 0.186 | AN7: 2.6 | AO7: 0.19 | AP7: 0.015 | AQ7: 2.3 | AR7: 1.6 | AS7: 1.6 | AT7: 12 | AU7: 0.007 | AV7: 300 | AW7: 8.4 | AX7: 0.038 | AY7: 0.0013 | AZ7: 25 | BA7: 0.21 | BB7: 14.4 | BC7: 86 | BD7: 104.2 | BE7: 0.017 | BF7: 43.8 | BG7: 13.2 | BH7: 12.6 | BI7: 0.56 | BJ7: 0.195 | BK7: 7.7 | BL7: 0.63 | BM7: 29 | BN7: 0.0028 | BO7: 19 | BP7: 2.41 | BQ7: 100 | BR7: 0.3 | BS7: 0.00026 | BT7: 0.007 | BU7: 98.85 | BV7: 110 | BW7: 1.1 | BX7: 0.13 | BY7: 30.2 | BZ7: 6.1 | CA7: 100 | CB7: 21 | CC7: 67 | CD7: 0.07 | CE7: 6.7 | CF7: 0.57 | CH7: 3.14 | CI7: 0.0001 | CJ7: 80 | CK7: 0.0027 | CM7: 2.4 | CN7: 0.011 | CO7: 0.74 | CP7: 1.3 | CQ7: 0.19 | CR7: 0.0023 | CS7: 2.3 | CT7: 5.2 | CU7: 0.00105 | CV7: 0.05 | CW7: 0.248 | CX7: 22 | CY7: 100 | CZ7: 100 | DA7: 1.41 | DB7: 0.055 | DC7: 0.06 | DD7: 0.23 | DE7: 0.0049 | DF7: 300 | DG7: 1.1 | DH7: 2.3 | DI7: 0.36 | DJ7: 0.98 | DK7: 70.5 | DL7: 1.9 | DM7: 14.3 | DN7: 5.4 | DO7: 33 | DP7: 546 | DQ7: 0.233 | DR7: 170 | DS7: 100 | DT7: 122 | DU7: 114 | DV7: 0.00035 | DW7: 710 | DX7: 38 | DY7: 1.33 | DZ7: 118 | EA7: 0.088 | EB7: 320 | EC7: 3.2 | ED7: 1.48 | EE7: 122 | EF7: 100 | EG7: 100 | EH7: 100 | EI7: 340 | EJ7: 0.0085 | EK7: 211 | EL7: 0.42 | EM7: 0.17 | EO7: 100 | EP7: 1.5 | EQ7: 36.2 | ER7: 2.27 | EU7: 0.1 | EV7: 0.00021 | EW7: 3.15 | EX7: 29 | EY7: 0.018 | EZ7: 0.074 | FA7: 2.9 | FB7: 100 | FC7: 0.532 | FD7: 120 | FE7: 0.228 | FF7: 100 | FG7: 0.175 | FH7: 2.1 | FI7: 0.01 | FJ7: 0.63 | FK7: 4.2 | FM7: 0.336 | FN7: 1.23 | FO7: 74.6 | FP7: 150 | FR7: 2 | FS7: 65.7 | FT7: 1 | FU7: 100 | FV7: 1.2 | FW7: 0.69 | FX7: 0.25 | FY7: 19 | FZ7: 0.3 | GA7: 0,196 | GB7: 100 | GC7: 0.0125 | GD7: 0.24 | GE7: 8.8 | GF7: 0.075 | GG7: 0.404 | GH7: 1200 | GI7: 7.22 | GJ7: 0.08 | GK7: 15 | GL7: 5.5 | GM7: 99 | GN7: 5.4 | GO7: 0.043 | GP7: 2.6 | GQ7: 0.33 | GR7: 1.83 | GS7: 0.18 | GT7: 100 | GU7: 0.006 | GV7: 0.0007 | GW7: 10.56 | GX7: 0.27 | GY7: 930 | GZ7: 2.2 | HA7: 100 | HB7: 0.21 | HC7: 0.23 | HD7: 98 | HE7: 170 | HF7: 90 | HG7: 2.69 | HI7: 0.035 | HJ7: 0.016 | HK7: 93.8 | HL7: 8 | HM7: 12.5 | HN7: 101 | HO7: 0.063 | HP7: 4.4 | HQ7: 3 | HR7: 87 | HS7: 0.0065 | HT7: 100 | HU7: 82.5 | HV7: 0.004 | HW7: 2.2 | HX7: 4.3 | HY7: 0.55 | HZ7: 90.1 | IA7: 125 | IB7: 104 | IC7: 1.4 | ID7: 11 | IE7: 0.171 | IF7: 0.049 | IG7: 21.3 | IH7: 1.3 | II7: 7.3 | IJ7: 0.022 | IK7: 730 | IL7: 0.57 | IM7: 0.021 | IN7: 0.088 | IP7: 3.6 | IQ7: 0.16
A8: 14.7 - Toxicity - ADI (mg kg-1 day-1) | C8: 0.050 | D8: 0.003 | E8: 0.003 | F8: 0.025 | G8: 0.004 | J8: 0.010 | L8: 0.010 | M8: 0.015 | N8: 0.019 | O8: 10.000 | P8: 0.015 | R8: 0.260 | S8: 0.003 | T8: 0.360 | U8: 0.020 | W8: 0.100 | X8: 0.200 | Y8: 0.040 | Z8: 0.010 | AA8: 0.100 | AB8: 0.100 | AC8: 0.050 | AD8: 0.003 | AE8: 0.015 | AF8: 0.010 | AH8: 0.040 | AJ8: 0.010 | AK8: 0.010 | AL8: 0.000 | AM8: 0.100 | AN8: 0.008 | AO8: 0.020 | AP8: 0.005 | AQ8: 0.008 | AR8: 0.030 | AT8: 1.580 | AU8: 0.015 | AW8: 0.020 | AX8: 0.015 | AY8: 0.010 | AZ8: 0.160 | BA8: 0.003 | BB8: 0.133 | BD8: 0.097 | BE8: 0.150 | BF8: 0.150 | BG8: 0.150 | BH8: 0.010 | BI8: 0.170 | BL8: 0.170 | BM8: 0.013 | BN8: 0.050 | BO8: 0.020 | BP8: 0.030 | BQ8: 0.060 | BR8: 0.010 | BS8: 0.010 | BU8: 0.300 | BV8: 0.050 | BW8: 0.010 | BX8: 0.100 | BZ8: 0.050 | CB8: 0.002 | CC8: 0,0024 | CD8: 0.010 | CE8: 0.007 | CF8: 0.100 | CH8: 0.008 | CI8: 0.018 | CJ8: 0.040 | CK8: 0.030 | CM8: 0.015 | CN8: 0.006 | CO8: 0.030 | CP8: 0.005 | CQ8: 0.010 | CR8: 0.030 | CS8: 0.003 | CT8: 0.130 | CU8: 0.010 | CV8: 0.001 | CW8: 0.000 | CX8: 0.013 | CY8: 0.025 | CZ8: 0.500 | DA8: 0.010 | DB8: 0.010 | DC8: 0.017 | DD8: 0.370 | DE8: 0.010 | DF8: 0.000 | DG8: 0.000 | DH8: 0.009 | DI8: 0.080 | DJ8: 0.012 | DK8: 64.000 | DL8: 0.002 | DM8: 0.800 | DN8: 0.090 | DO8: 0.010 | DP8: 0.020 | DQ8: 0.100 | DR8: 0.003 | DS8: 0.250 | DT8: 1.000 | DU8: 0.004 | DV8: 0.001 | DW8: 0.021 | DX8: 0.300 | DY8: 0.058 | DZ8: 0.063 | EA8: 0.001 | EB8: 0.050 | EC8: 0.030 | ED8: 0.025 | EE8: 9.000 | EF8: 0.500 | EG8: 0.000 | EH8: 0.250 | EJ8: 0.670 | EK8: 0.060 | EM8: 0.005 | EO8: 0.030 | EP8: 0.015 | EQ8: 0.060 | ER8: 0.020 | EU8: 0.002 | EV8: 0.005 | EW8: 0.003 | EX8: 0.016 | EY8: 0.030 | EZ8: 0.050 | FA8: 0.150 | FB8: 0.050 | FC8: 0.035 | FD8: 0.010 | FE8: 0.030 | FF8: 0.080 | FG8: 0.001 | FH8: 0.010 | FI8: 0.001 | FJ8: 0.003 | FK8: 0.100 | FM8: 0.030 | FN8: 0.100 | FO8: 0.013 | FP8: 0.220 | FR8: 0.025 | FS8: 2.000 | FT8: 0.010 | FV8: 0.004 | FW8: 1.040 | FX8: 3.000 | FY8: 0.004 | FZ8: 0.200 | GA8: 0,125 | GB8: 0.050 | GD8: 0.001 | GE8: 0.300 | GG8: 0.004 | GI8: 0.003 | GJ8: 0.030 | GK8: 0.005 | GM8: 0.290 | GN8: 0.020 | GO8: 0.030 | GP8: 0.040 | GQ8: 0.025 | GR8: 0.050 | GS8: 0.092 | GT8: 0.030 | GU8: 0.030 | GV8: 0.010 | GW8: 0.170 | GX8: 0.100 | HB8: 0.001 | HC8: 0.013 | HG8: 0.025 | HI8: 0.015 | HJ8: 0.030 | HK8: 0.000 | HN8: 0.040 | HP8: 0.030 | HQ8: 0.020 | HR8: 0.070 | HS8: 0.010 | HT8: 0.010 | HU8: 0.025 | HV8: 0.001 | HW8: 0.004 | HX8: 0.004 | HY8: 0.100 | HZ8: 0.010 | IA8: 0.026 | IB8: 0.230 | IC8: 0,01 | ID8: 0.080 | IE8: 0.010 | IG8: 0.050 | IH8: 0.030 | IJ8: 0.100 | IK8: 0.040 | IL8: 0.050 | IM8: 0.014 | IN8: 15.000 | IP8: 0.025 | IQ8: 0.500
A9: Product Toxicity Index (>2,5 - high alert) | C9: 1.75 | D9: 4.52 | E9: 3.40 | F9: 1.80 | G9: 3.44 | J9: =IF(J7>0,(((4-LOG10(J7))+(-LOG(J8)))/2),"") -> 4.11 | L9: 2.87 | M9: 4.28 | N9: =IF(N7>0,(((4-LOG10(N7))+(-LOG(N8)))/2),"") -> 3.87 | O9: =IF(O7>0,(((4-LOG10(O7))+(-LOG(O8)))/2),"") -> 2.09 | P9: 2.56 | R9: =IF(R7>0,(((4-LOG10(R7))+(-LOG(R8)))/2),"") -> 1.29 | S9: =IF(S7>0,(((4-LOG10(S7))+(-LOG(S8)))/2),"") -> 3.33 | T9: =IF(T7>0,(((4-LOG10(T7))+(-LOG(T8)))/2),"") -> 1.24 | U9: 2.52 | W9: =IF(W7>0,(((4-LOG10(W7))+(-LOG(W8)))/2),"") -> 1.41 | X9: 2.51 | Y9: =IF(Y7>0,(((4-LOG10(Y7))+(-LOG(Y8)))/2),"") -> 2.41 | Z9: 3.71 | AA9: 1.50 | AB9: =IF(AB7>0,(((4-LOG10(AB7))+(-LOG(AB8)))/2),"") -> 2.00 | AC9: =IF(AC7>0,(((4-LOG10(AC7))+(-LOG(AC8)))/2),"") -> 3.88 | AD9: 5.35 | AE9: =IF(AE7>0,(((4-LOG10(AE7))+(-LOG(AE8)))/2),"") -> 4.70 | AF9: =IF(AF7>0,(((4-LOG10(AF7))+(-LOG(AF8)))/2),"") -> 2.01 | AH9: 2.48 | AJ9: =IF(AJ7>0,(((4-LOG10(AJ7))+(-LOG(AJ8)))/2),"") -> 2.88 | AK9: =IF(AK7>0,(((4-LOG10(AK7))+(-LOG(AK8)))/2),"") -> 3.24 | AL9: =IF(AL7>0,(((4-LOG10(AL7))+(-LOG(AL8)))/2),"") -> 4.14 | AM9: 2.87 | AN9: 2.85 | AO9: 3.21 | AP9: =IF(AP7>0,(((4-LOG10(AP7))+(-LOG(AP8)))/2),"") -> 4.06 | AQ9: =IF(AQ7>0,(((4-LOG10(AQ7))+(-LOG(AQ8)))/2),"") -> 2.87 | AR9: 2.66 | AT9: 1.36 | AU9: =IF(AU7>0,(((4-LOG10(AU7))+(-LOG(AU8)))/2),"") -> 3.99 | AW9: 2.39 | AX9: 3.62 | AY9: 4.44 | AZ9: 1.70 | BA9: =IF(BA7>0,(((4-LOG10(BA7))+(-LOG(BA8)))/2),"") -> 3.60 | BB9: =IF(BB7>0,(((4-LOG10(BB7))+(-LOG(BB8)))/2),"") -> 1.86 | BD9: =IF(BD7>0,(((4-LOG10(BD7))+(-LOG(BD8)))/2),"") -> 1.50 | BE9: 3.30 | BF9: =IF(BF7>0,(((4-LOG10(BF7))+(-LOG(BF8)))/2),"") -> 1.59 | BG9: =IF(BG7>0,(((4-LOG10(BG7))+(-LOG(BG8)))/2),"") -> 1.85 | BH9: 2.45 | BI9: =IF(BI7>0,(((4-LOG10(BI7))+(-LOG(BI8)))/2),"") -> 2.51 | BL9: =IF(BL7>0,(((4-LOG10(BL7))+(-LOG(BL8)))/2),"") -> 2.49 | BM9: =IF(BM7>0,(((4-LOG10(BM7))+(-LOG(BM8)))/2),"") -> 2.21 | BN9: 3.93 | BO9: 2.21 | BP9: =IF(BP7>0,(((4-LOG10(BP7))+(-LOG(BP8)))/2),"") -> 2.57 | BQ9: 1.61 | BR9: =IF(BR7>0,(((4-LOG10(BR7))+(-LOG(BR8)))/2),"") -> 3.26 | BS9: 4.79 | BU9: =IF(BU7>0,(((4-LOG10(BU7))+(-LOG(BU8)))/2),"") -> 1.26 | BV9: 1.63 | BW9: 2.98 | BX9: 2.94 | BZ9: =IF(BZ7>0,(((4-LOG10(BZ7))+(-LOG(BZ8)))/2),"") -> 2.26 | CB9: =IF(CB7>0,(((4-LOG10(CB7))+(-LOG(CB8)))/2),"") -> 2.69 | CC9: 2.40 | CD9: =IF(CD7>0,(((4-LOG10(CD7))+(-LOG(CD8)))/2),"") -> 3.58 | CE9: 2.66 | CF9: =IF(CF7>0,(((4-LOG10(CF7))+(-LOG(CF8)))/2),"") -> 2.62 | CH9: 2.80 | CI9: 4.88 | CJ9: =IF(CJ7>0,(((4-LOG10(CJ7))+(-LOG(CJ8)))/2),"") -> 1.75 | CK9: 4.05 | CM9: =IF(CM7>0,(((4-LOG10(CM7))+(-LOG(CM8)))/2),"") -> 2.72 | CN9: =IF(CN7>0,(((4-LOG10(CN7))+(-LOG(CN8)))/2),"") -> 4.09 | CO9: 2.83 | CP9: =IF(CP7>0,(((4-LOG10(CP7))+(-LOG(CP8)))/2),"") -> 3.09 | CQ9: 3.36 | CR9: 4.08 | CS9: =IF(CS7>0,(((4-LOG10(CS7))+(-LOG(CS8)))/2),"") -> 3.08 | CT9: =IF(CT7>0,(((4-LOG10(CT7))+(-LOG(CT8)))/2),"") -> 2.09 | CU9: =IF(CU7>0,(((4-LOG10(CU7))+(-LOG(CU8)))/2),"") -> 4.49 | CV9: 4.30 | CW9: 4.15 | CX9: 2.27 | CY9: =IF(CY7>0,(((4-LOG10(CY7))+(-LOG(CY8)))/2),"") -> 1.80 | CZ9: =IF(CZ7>0,(((4-LOG10(CZ7))+(-LOG(CZ8)))/2),"") -> 1.15 | DA9: 2.93 | DB9: 3.63 | DC9: 3.50 | DD9: =IF(DD7>0,(((4-LOG10(DD7))+(-LOG(DD8)))/2),"") -> 2.54 | DE9: 4.15 | DF9: 2.76 | DG9: 3.98 | DH9: 2.84 | DI9: =IF(DI7>0,(((4-LOG10(DI7))+(-LOG(DI8)))/2),"") -> 2.77 | DJ9: =IF(DJ7>0,(((4-LOG10(DJ7))+(-LOG(DJ8)))/2),"") -> 2.96 | DK9: 0.17 | DL9: =IF(DL7>0,(((4-LOG10(DL7))+(-LOG(DL8)))/2),"") -> 3.21 | DM9: =IF(DM7>0,(((4-LOG10(DM7))+(-LOG(DM8)))/2),"") -> 1.47 | DN9: =IF(DN7>0,(((4-LOG10(DN7))+(-LOG(DN8)))/2),"") -> 2.16 | DO9: 2.24 | DP9: 1.48 | DQ9: 2.82 | DR9: 2.15 | DS9: 1.30 | DT9: =IF(DT7>0,(((4-LOG10(DT7))+(-LOG(DT8)))/2),"") -> 0.96 | DU9: =IF(DU7>0,(((4-LOG10(DU7))+(-LOG(DU8)))/2),"") -> 2.17 | DV9: =IF(DV7>0,(((4-LOG10(DV7))+(-LOG(DV8)))/2),"") -> 5.19 | DW9: 1.41 | DX9: 1.47 | DY9: =IF(DY7>0,(((4-LOG10(DY7))+(-LOG(DY8)))/2),"") -> 2.56 | DZ9: =IF(DZ7>0,(((4-LOG10(DZ7))+(-LOG(DZ8)))/2),"") -> 1.56 | EA9: =IF(EA7>0,(((4-LOG10(EA7))+(-LOG(EA8)))/2),"") -> 4.12 | EB9: 1.40 | EC9: =IF(EC7>0,(((4-LOG10(EC7))+(-LOG(EC8)))/2),"") -> 2.51 | ED9: 2.72 | EE9: 0.48 | EF9: 1.15 | EG9: 3.00 | EH9: 1.30 | EJ9: 3.12 | EK9: 1.45 | EM9: =IF(EM7>0,(((4-LOG10(EM7))+(-LOG(EM8)))/2),"") -> 3.54 | EO9: 1.76 | EP9: =IF(EP7>0,(((4-LOG10(EP7))+(-LOG(EP8)))/2),"") -> 2.82 | EQ9: 1.83 | ER9: =IF(ER7>0,(((4-LOG10(ER7))+(-LOG(ER8)))/2),"") -> 2.67 | EU9: 3.91 | EV9: 4.99 | EW9: 3.01 | EX9: 2.17 | EY9: 3.63 | EZ9: 3.22 | FA9: =IF(FA7>0,(((4-LOG10(FA7))+(-LOG(FA8)))/2),"") -> 2.18 | FB9: =IF(FB7>0,(((4-LOG10(FB7))+(-LOG(FB8)))/2),"") -> 1.65 | FC9: =IF(FC7>0,(((4-LOG10(FC7))+(-LOG(FC8)))/2),"") -> 2.87 | FD9: 1.96 | FE9: 3.08 | FF9: 1.55 | FG9: =IF(FG7>0,(((4-LOG10(FG7))+(-LOG(FG8)))/2),"") -> 3.88 | FH9: =IF(FH7>0,(((4-LOG10(FH7))+(-LOG(FH8)))/2),"") -> 2.84 | FI9: =IF(FI7>0,(((4-LOG10(FI7))+(-LOG(FI8)))/2),"") -> 4.50 | FJ9: 3.40 | FK9: 2.19 | FM9: =IF(FM7>0,(((4-LOG10(FM7))+(-LOG(FM8)))/2),"") -> 3.00 | FN9: 2.46 | FO9: 2.01 | FP9: 1.24 | FR9: 2.65 | FS9: 0.94 | FT9: 3.00 | FV9: =IF(FV7>0,(((4-LOG10(FV7))+(-LOG(FV8)))/2),"") -> 3.18 | FW9: =IF(FW7>0,(((4-LOG10(FW7))+(-LOG(FW8)))/2),"") -> 2.07 | FX9: 2.06 | FY9: 2.56 | FZ9: =IF(FZ7>0,(((4-LOG10(FZ7))+(-LOG(FZ8)))/2),"") -> 2.61 | GA9: 2.81 | GB9: =IF(GB7>0,(((4-LOG10(GB7))+(-LOG(GB8)))/2),"") -> 1.65 | GD9: =IF(GD7>0,(((4-LOG10(GD7))+(-LOG(GD8)))/2),"") -> 3.81 | GE9: =IF(GE7>0,(((4-LOG10(GE7))+(-LOG(GE8)))/2),"") -> 1.79 | GG9: 3.40 | GI9: 2.85 | GJ9: =IF(GJ7>0,(((4-LOG10(GJ7))+(-LOG(GJ8)))/2),"") -> 3.31 | GK9: =IF(GK7>0,(((4-LOG10(GK7))+(-LOG(GK8)))/2),"") -> 2.56 | GM9: =IF(GM7>0,(((4-LOG10(GM7))+(-LOG(GM8)))/2),"") -> 1.27 | GN9: =IF(GN7>0,(((4-LOG10(GN7))+(-LOG(GN8)))/2),"") -> 2.48 | GO9: =IF(GO7>0,(((4-LOG10(GO7))+(-LOG(GO8)))/2),"") -> 3.44 | GP9: 2.49 | GQ9: =IF(GQ7>0,(((4-LOG10(GQ7))+(-LOG(GQ8)))/2),"") -> 3.04 | GR9: 2.52 | GS9: =IF(GS7>0,(((4-LOG10(GS7))+(-LOG(GS8)))/2),"") -> 2.89 | GT9: =IF(GT7>0,(((4-LOG10(GT7))+(-LOG(GT8)))/2),"") -> 1.76 | GU9: 3.87 | GV9: =IF(GV7>0,(((4-LOG10(GV7))+(-LOG(GV8)))/2),"") -> 4.58 | GW9: =IF(GW7>0,(((4-LOG10(GW7))+(-LOG(GW8)))/2),"") -> 1.87 | GX9: 2.78 | HB9: 3.78 | HC9: =IF(HC7>0,(((4-LOG10(HC7))+(-LOG(HC8)))/2),"") -> 3.26 | HG9: =IF(HG7>0,(((4-LOG10(HG7))+(-LOG(HG8)))/2),"") -> 2.59 | HI9: =IF(HI7>0,(((4-LOG10(HI7))+(-LOG(HI8)))/2),"") -> 3.64 | HJ9: =IF(HJ7>0,(((4-LOG10(HJ7))+(-LOG(HJ8)))/2),"") -> 3.66 | HK9: 3.01 | HN9: =IF(HN7>0,(((4-LOG10(HN7))+(-LOG(HN8)))/2),"") -> 1.70 | HP9: 2.44 | HQ9: =IF(HQ7>0,(((4-LOG10(HQ7))+(-LOG(HQ8)))/2),"") -> 2.61 | HR9: 1.61 | HS9: 4.09 | HT9: 2.00 | HU9: =IF(HU7>0,(((4-LOG10(HU7))+(-LOG(HU8)))/2),"") -> 1.84 | HV9: =IF(HV7>0,(((4-LOG10(HV7))+(-LOG(HV8)))/2),"") -> 4.81 | HW9: =IF(HW7>0,(((4-LOG10(HW7))+(-LOG(HW8)))/2),"") -> 3.03 | HX9: 2.88 | HY9: =IF(HY7>0,(((4-LOG10(HY7))+(-LOG(HY8)))/2),"") -> 2.63 | HZ9: =IF(HZ7>0,(((4-LOG10(HZ7))+(-LOG(HZ8)))/2),"") -> 2.02 | IA9: 1.74 | IB9: =IF(IB7>0,(((4-LOG10(IB7))+(-LOG(IB8)))/2),"") -> 1.31 | IC9: 2.93 | ID9: 2.03 | IE9: 3.38 | IG9: 1.99 | IH9: =IF(IH7>0,(((4-LOG10(IH7))+(-LOG(IH8)))/2),"") -> 2.70 | IJ9: 3.33 | IK9: =IF(IK7>0,(((4-LOG10(IK7))+(-LOG(IK8)))/2),"") -> 1.27 | IL9: =IF(IL7>0,(((4-LOG10(IL7))+(-LOG(IL8)))/2),"") -> 2.77 | IM9: 3.77 | IN9: 1.94 | IP9: =IF(IP7>0,(((4-LOG10(IP7))+(-LOG(IP8)))/2),"") -> 2.52 | IQ9: =IF(IQ7>0,(((4-LOG10(IQ7))+(-LOG(IQ8)))/2),"") -> 2.55
A10: 14.8 - Soil adsorption and mobility - Koc | C10: 242 | D10: 6,631 | E10: 72 | F10: 200 | G10: 156 | J10: 744 | L10: 335 | M10: 288,735 | O10: 90 | P10: 316 | Q10: 30 | S10: 1,000 | U10: 174 | W10: 74 | X10: 589 | Y10: 4,998 | Z10: 9,100 | AA10: 86 | AB10: 245 | AD10: 64,300 | AE10: 236,610 | AG10: 37,480 | AH10: 772 | AI10: 32 | AJ10: 872 | AK10: 5,363 | AM10: 200 | AN10: 300 | AO10: 225 | AQ10: 99 | AR10: 866 | AT10: 301 | AU10: 12,000 | AV10: 20,800 | AW10: 106 | AX10: 850 | AY10: 8,151 | AZ10: 23 | BB10: 300 | BC10: 30 | BD10: 123 | BE10: 12,000 | BF10: 1,000 | BG10: 9,500 | BH10: 241 | BK10: 1,440 | BL10: 173,900 | BN10: 156,250 | BO10: 364 | BQ10: 409 | BR10: 10 | BS10: 10,240,000 | BT10: 43,546 | BU10: - | BV10: 90 | BW10: 3,760 | BX10: 4,620 | CA10: 26 | CB10: 2,185,000 | CC10: 2,184,750 | CD10: 3,627 | CE10: 1,067 | CF10: 4,236,500 | CH10: 1,073 | CI10: 251,717 | CJ10: 134 | CK10: 17,757 | CM10: 1,000 | CN10: 3,847 | CO10: 388 | CP10: 2,000 | CQ10: 11,354 | CR10: 35,660 | CV10: 3,104 | CW10: 727 | CX10: 46 | CY10: 2 | CZ10: 105 | DA10: 3,394 | DB10: 220 | DC10: 2,197 | DD10: 145,600 | DE10: 157,643 | DF10: 28 | DG10: 30 | DH10: 889 | DK10: 98 | DM10: 0 | DO10: 205 | DP10: 728 | DQ10: 304 | DR10: 228 | DS10: 78 | DU10: 239 | DV10: 59,677 | DW10: 600 | DX10: 28,700 | DY10: 1,417 | DZ10: 109 | EB10: 54 | ED10: 4,753 | EE10: 12 | EF10: 137 | EG10: 125 | EH10: 18 | EI10: 52 | EJ10: 13,120 | EK10: 225 | EL10: 1,000 | EM10: 4,483 | EO10: 45 | EQ10: 700 | EU10: 10,000 | EV10: 157,450 | EW10: 620 | EX10: 41,182 | EY10: 217 | EZ10: 998 | FB10: 74 | FD10: 112 | FE10: 30,714 | FF10: 79 | FG10: 18 | FI10: 400 | FJ10: 25 | FK10: 402 | FM10: 903,012 | FN10: 226 | FO10: 38 | FP10: 40 | FR10: 517 | FS10: 30 | FT10: 9,598 | FU10: 353 | FV10: 3,200 | FW10: 165 | FX10: 7,566 | FY10: 1,000,000 | GA10: 17,491 | GB10: 73 | GC10: 100,000 | GD10: 3,534 | GE10: 13 | GF10: 965 | GG10: 1,100 | GI10: 378 | GJ10: 2,016 | GL10: 400 | GN10: 149 | GP10: 2,252 | GR10: 2,556 | GU10: 9,315 | GX10: 21,175 | GZ10: 223 | HA10: 50 | HB10: 1,816 | HC10: 477 | HD10: 20 | HE10: 75 | HF10: 130 | HG10: 22,836 | HI10: 31,037 | HJ10: 30,900 | HK10: 43 | HL10: 3,500,000 | HM10: 85 | HN10: 41 | HO10: 1,950 | HP10: 769 | HR10: 80 | HS10: 26,062 | HT10: 66 | HV10: 500 | HX10: 1,152 | HY10: 3,983 | IA10: 56 | IC10: 1 | ID10: 220 | IE10: 9,629 | IF10: 63,300 | IG10: 750 | II10: 169 | IJ10: 2,287 | IL10: 1,373 | IM10: 2,967 | IN10: 15,800 | IP10: 374 | IQ10: 1,224
A11: 14.9 - Soil degradation - t1/2 (DT50) | C11: 10.0 | D11: 30.0 | E11: 7.0 | F11: 1.6 | G11: 14.0 | I11: 59.0 | J11: 39.2 | K11: 8.8 | L11: 14.0 | M11: 23.0 | O11: 1.8 | P11: 37.0 | Q11: 21.0 | R11: 35.0 | S11: 0.2 | T11: 3.2 | U11: 75.0 | W11: 64.0 | X11: 78.0 | Y11: 33.2 | Z11: 0.5 | AA11: 13.0 | AB11: 13.8 | AC11: 908.0 | AD11: 13.0 | AE11: 26.0 | AF11: 13.0 | AG11: 80.5 | AH11: 200.0 | AI11: 60.0 | AJ11: 190.0 | AK11: 55.4 | AL11: 38.0 | AM11: 0.8 | AN11: 16.0 | AO11: 40.0 | AP11: 21.0 | AQ11: 0.5 | AR11: 1.0 | AT11: 597.0 | AU11: 1.4 | AV11: 90.0 | AW11: 40.0 | AX11: 22.0 | AY11: 50.0 | AZ11: 0.6 | BA11: 0.8 | BB11: 22.6 | BC11: 11.0 | BD11: 545.0 | BE11: 10,000.0 | BF11: 0.1 | BG11: 0.1 | BH11: 34.4 | BI11: 10.0 | BJ11: 1,161.0 | BK11: 15.0 | BL11: 9.0 | BM11: 1.7 | BN11: 60.0 | BO11: 142.0 | BP11: 37.0 | BQ11: 93.0 | BR11: 0.5 | BS11: 13.0 | BT11: 0.5 | BU11: 9.6 | BV11: 49.0 | BW11: 130.0 | BX11: 3.0 | BY11: 2.5 | BZ11: 72.7 | CA11: 82.0 | CB11: 2,345.0 | CC11: 2,345.0 | CD11: 10.5 | CE11: 75.5 | CF11: 4.7 | CH11: 354.0 | CI11: 66.6 | CJ11: 18.0 | CK11: 11.0 | CM11: 20.0 | CN11: 41.1 | CO11: 8.5 | CP11: 2.7 | CQ11: 0.4 | CR11: 34.0 | CS11: 35.0 | CT11: 99.6 | CU11: 135.1 | CV11: 26.0 | CW11: 142.0 | CX11: 41.2 | CY11: 3.1 | CZ11: 39.8 | DA11: 1.0 | DB11: 11.0 | DC11: 8.0 | DD11: 164.0 | DE11: 42.0 | DF11: 45.0 | DG11: 2.5 | DH11: 21.9 | DI11: 271.0 | DJ11: 309.0 | DK11: 57.1 | DL11: 350.0 | DM11: 13.1 | DN11: 400.0 | DO11: 1,358.0 | DP11: 183.0 | DQ11: 4.7 | DR11: 86.0 | DS11: 25.4 | DT11: 0.1 | DU11: 13.0 | DV11: 26.8 | DW11: 7.4 | DX11: 12.0 | DY11: 1.3 | DZ11: 26.7 | EA11: 0.5 | EB11: 105.0 | EC11: 30.0 | ED11: 76.3 | EE11: 200.2 | EF11: 120.0 | EG11: 11.0 | EH11: 60.0 | EI11: 90.0 | EJ11: 15.0 | EK11: 191.0 | EL11: 150.0 | EM11: 113.2 | EO11: 2.7 | EP11: 50.0 | EQ11: 3.7 | ER11: 37.1 | EU11: 4.0 | EV11: 25.0 | EW11: 48.0 | EX11: 16.3 | EY11: 0.2 | EZ11: 0.1 | FA11: 49.1 | FB11: 12.1 | FC11: 268.0 | FD11: 19.6 | FE11: 141.0 | FF11: 6.5 | FG11: 7.0 | FH11: 142.2 | FI11: 10.0 | FJ11: 7.0 | FK11: 146.0 | FM11: 1.3 | FN11: 15.0 | FO11: 11.5 | FP11: 10.0 | FR11: 560.0 | FS11: 26.0 | FT11: 72.0 | FU11: 12.5 | FV11: 502.0 | FW11: 121.2 | FX11: 35.0 | FY11: 3,000.0 | FZ11: 82.4 | GA11: 182.3 | GB11: 21.7 | GC11: 13.0 | GD11: 3.2 | GE11: 23.0 | GF11: 24.4 | GG11: 39.0 | GH11: 0.1 | GI11: 7.0 | GJ11: 7.0 | GK11: 8.0 | GL11: 41.0 | GM11: 39.3 | GN11: 0.4 | GO11: 56.0 | GP11: 214.0 | GQ11: 4.3 | GR11: 0.5 | GS11: 2,416.0 | GT11: 5.0 | GU11: 32.0 | GV11: 55.0 | GW11: 50.9 | GX11: 10.0 | GY11: 60.0 | GZ11: 22.0 | HA11: 450.0 | HB11: 2.0 | HC11: 0.2 | HE11: 1.2 | HF11: 60.0 | HG11: 16.1 | HI11: 7.0 | HJ11: 4.1 | HK11: 541.0 | HM11: 24.0 | HN11: 2.2 | HO11: 30.0 | HP11: 63.0 | HQ11: 400.0 | HR11: 400.0 | HS11: 92.0 | HT11: 30.0 | HU11: 10.0 | HV11: 8.0 | HW11: 72.0 | HX11: 61.0 | HY11: 500.0 | HZ11: 0.9 | IA11: 50.0 | IB11: 11.6 | IC11: 0.7 | ID11: 0.5 | IE11: 4.9 | IF11: 4.0 | IG11: 250.0 | IH11: 1.5 | II11: 450.0 | IJ11: 0.3 | IK11: 6.5 | IL11: 13.0 | IM11: 22.0 | IN11: 181.0 | IP11: 237.0 | IQ11: 5.5
A12: Leaching Potential Index GUS (IUPAC) (>2 - high alert) | C12: 1.62 | D12: 0.26 | E12: 1.81 | F12: 2.18 | G12: 1.58 | I12: 3.15 | J12: -0.92 | L12: 1.08 | M12: -2.00 | O12: 0.55 | P12: 0.52 | Q12: 4.89 | R12: 3.34 | S12: 0.00 | T12: 2.58 | U12: 3.30 | W12: 1.18 | X12: 2.65 | Y12: 2.29 | Z12: -0.03 | AA12: 2.30 | AB12: 1.99 | AC12: 0.91 | AD12: -0.90 | AE12: -2.66 | AF12: 1.21 | AG12: -1.09 | AH12: 2.66 | AI12: 3.44 | AJ12: 2.23 | AK12: 1.21 | AL12: 2.62 | AM12: 0.00 | AN12: 2.02 | AO12: 2.53 | AP12: 0.89 | AQ12: 2.01 | AR12: 0.00 | AT12: 4.22 | AU12: -0.01 | AV12: -0.62 | AW12: 3.16 | AX12: 1.44 | AY12: 0.15 | AZ12: -0.69 | BA12: -0.08 | BB12: 2.72 | BC12: 2.52 | BD12: 3.74 | BE12: -0.32 | BF12: -1.00 | BG12: -0.02 | BH12: 2.63 | BI12: 0.57 | BJ12: 2.56 | BK12: 0.99 | BL12: -1.17 | BM12: 1.47 | BN12: -2.12 | BO12: 3.10 | BP12: 1.06 | BQ12: 2.09 | BR12: 0.13 | BS12: -3.35 | BT12: 0.19 | BU12: 1.94 | BV12: 3.46 | BW12: 0.90 | BX12: 0.16 | BY12: 2.18 | BZ12: 2.26 | CA12: 4.85 | CB12: -7.60 | CC12: -2.29 | CD12: 0.68 | CE12: 1.83 | CF12: -2.95 | CH12: 2.47 | CI12: -2.55 | CJ12: 2.33 | CK12: -0.30 | CM12: 1.47 | CN12: 1.09 | CO12: 1.31 | CP12: 0.48 | CQ12: 0.02 | CR12: -0.85 | CS12: 0.50 | CT12: 1.98 | CU12: 0.26 | CV12: 0.72 | CW12: 2.45 | CX12: 2.50 | CY12: 1.87 | CZ12: 3.38 | DA12: 0.00 | DB12: 1.73 | DC12: 3.98 | DD12: -1.35 | DE12: -3.14 | DF12: 4.22 | DG12: 1.00 | DH12: 1.41 | DI12: 3.20 | DJ12: 3.23 | DK12: 3.53 | DL12: 2.30 | DM12: 1.03 | DN12: 2.29 | DO12: 5.40 | DP12: 2.57 | DQ12: 1.02 | DR12: 3.18 | DS12: 2.95 | DU12: 2.48 | DV12: -1.10 | DW12: 1.06 | DX12: -0.49 | DY12: 1.64 | DZ12: 2.25 | EB12: 4.58 | EC12: 0.03 | ED12: 0.61 | EE12: 6.76 | EF12: 3.87 | EG12: 1.98 | EH12: 5.42 | EI12: 3.90 | EJ12: -0.13 | EK12: 3.76 | EL12: 2.18 | EM12: 0.27 | EO12: 1.01 | EP12: 1.30 | EQ12: 0.58 | ER12: 1.99 | EU12: 0.00 | EV12: -1.67 | EW12: 2.03 | EX12: -0.75 | EY12: 0.00 | EZ12: -1.00 | FA12: 1.22 | FB12: 3.13 | FC12: 1.06 | FD12: 2.69 | FE12: -1.05 | FF12: 1.71 | FG12: 2.32 | FH12: 2.03 | FI12: 1.18 | FJ12: 2.20 | FK12: 3.02 | FM12: -1.65 | FN12: 1.94 | FO12: 2.57 | FP12: 2.40 | FR12: 3.30 | FS12: 3.25 | FT12: 0.02 | FU12: 1.59 | FV12: 1.97 | FW12: 0.38 | FX12: 0.26 | FY12: -6.95 | FZ12: 0.49 | GA12: -0.32 | GB12: 1.56 | GC12: -1.62 | GD12: 0.48 | GE12: 4.14 | GF12: 1.35 | GG12: 1.03 | GH12: -4.00 | GI12: 4.12 | GJ12: 0.59 | GK12: 0.47 | GL12: 0.59 | GM12: 1.50 | GN12: -0.51 | GO12: -0.86 | GP12: 1.51 | GR12: -0.18 | GS12: 2.57 | GT12: 1.33 | GU12: 0.05 | GV12: -1.20 | GW12: 2.17 | GX12: -0.27 | GZ12: 2.22 | HA12: 6.29 | HB12: -0.29 | HC12: -0.11 | HE12: 1.49 | HF12: 2.20 | HG12: 0.27 | HI12: -0.42 | HJ12: -0.16 | HK12: 6.16 | HM12: 3.92 | HN12: 1.35 | HO12: -0.71 | HP12: 2.85 | HQ12: 1.72 | HR12: 5.46 | HS12: -0.82 | HT12: 3.22 | HU12: 4.77 | HV12: 1.25 | HW12: 2.19 | HX12: 1.81 | HY12: 1.94 | HZ12: 1.10 | IA12: 3.82 | IB12: 3.42 | IC12: -0.56 | ID12: -0.50 | IE12: 0.01 | IF12: -0.48 | IG12: 3.34 | II12: 3.89 | IJ12: -0.30 | IK12: 1.81 | IL12: 0.96 | IM12: -0.05 | IN12: 0.13 | IP12: 2.70 | IQ12: 0.71
A13: Potential contamination (1; 2 - medium alert ; 3 - high alert) | C13: 1 | D13: 3 | E13: 2 | F13: 1 | G13: 3 | I13: 3 | J13: 3 | K13: 3 | L13: 2 | M13: 2 | N13: 3 | O13: 1 | P13: 2 | Q13: 1 | R13: 3 | S13: 1 | T13: 3 | U13: 3 | W13: 2 | X13: 3 | Y13: 2 | Z13: 1 | AA13: 2 | AB13: 2 | AC13: 3 | AD13: 2 | AE13: 2 | AF13: 3 | AG13: 1 | AH13: 3 | AI13: 1 | AJ13: 3 | AK13: 1 | AL13: 3 | AM13: 1 | AN13: 2 | AO13: 3 | AP13: 3 | AQ13: 1 | AR13: 1 | AT13: 2 | AU13: 1 | AV13: 1 | AW13: 3 | AX13: 2 | AY13: 3 | AZ13: 1 | BA13: 3 | BB13: 2 | BC13: 1 | BD13: 3 | BE13: 3 | BF13: 1 | BG13: 1 | BH13: 2 | BI13: 3 | BJ13: 3 | BK13: 1 | BL13: 1 | BM13: 3 | BN13: 2 | BO13: 3 | BP13: 3 | BQ13: 2 | BR13: 1 | BS13: 1 | BT13: 1 | BU13: 3 | BV13: 2 | BW13: 3 | BX13: 1 | BY13: 3 | BZ13: 3 | CA13: 1 | CB13: 2 | CC13: 2 | CD13: 2 | CE13: 2 | CF13: 1 | CH13: 3 | CI13: 2 | CJ13: 2 | CK13: 2 | CM13: 2 | CN13: 3 | CO13: 2 | CP13: 1 | CQ13: 1 | CR13: 2 | CS13: 3 | CT13: 3 | CU13: 3 | CV13: 3 | CW13: 3 | CX13: 3 | CY13: 3 | CZ13: 2 | DA13: 1 | DB13: 2 | DC13: 2 | DD13: 2 | DE13: 2 | DF13: 3 | DG13: 2 | DH13: 2 | DI13: 3 | DJ13: 3 | DK13: 1 | DL13: 3 | DM13: 3 | DN13: 3 | DO13: 3 | DP13: 2 | DQ13: 1 | DR13: 3 | DS13: 2 | DT13: 3 | DU13: 2 | DV13: 2 | DW13: 1 | DX13: 1 | DY13: 1 | DZ13: 2 | EA13: 3 | EB13: 2 | EC13: 3 | ED13: 2 | EE13: 2 | EF13: 2 | EG13: 2 | EH13: 3 | EI13: 1 | EJ13: 2 | EK13: 2 | EL13: 1 | EM13: 3 | EO13: 1 | EP13: 3 | EQ13: 1 | ER13: 3 | EU13: 1 | EV13: 2 | EW13: 3 | EX13: 1 | EY13: 1 | EZ13: 1 | FA13: 3 | FB13: 2 | FC13: 3 | FD13: 2 | FE13: 2 | FF13: 1 | FG13: 3 | FH13: 3 | FI13: 3 | FJ13: 3 | FK13: 3 | FM13: 1 | FN13: 2 | FO13: 2 | FP13: 1 | FR13: 3 | FS13: 2 | FT13: 2 | FU13: 1 | FV13: 3 | FW13: 3 | FX13: 1 | FY13: 2 | FZ13: 3 | GA13: 2 | GB13: 2 | GC13: 1 | GD13: 1 | GE13: 3 | GF13: 1 | GG13: 3 | GH13: 3 | GI13: 2 | GJ13: 2 | GK13: 3 | GL13: 1 | GM13: 3 | GN13: 1 | GO13: 3 | GP13: 3 | GQ13: 3 | GR13: 1 | GS13: 3 | GT13: 3 | GU13: 3 | GV13: 3 | GW13: 3 | GX13: 1 | GY13: 3 | GZ13: 1 | HA13: 1 | HB13: 1 | HC13: 1 | HE13: 1 | HF13: 1 | HG13: 1 | HI13: 1 | HJ13: 1 | HK13: 3 | HM13: 1 | HN13: 1 | HO13: 1 | HP13: 2 | HQ13: 3 | HR13: 3 | HS13: 3 | HT13: 2 | HU13: 3 | HV13: 2 | HW13: 3 | HX13: 3 | HY13: 3 | HZ13: 3 | IA13: 3 | IB13: 3 | IC13: 1 | ID13: 1 | IE13: 1 | IF13: 1 | IG13: 2 | IH13: 3 | II13: 1 | IJ13: 1 | IK13: 3 | IL13: 2 | IM13: 2 | IN13: 2 | IP13: 3 | IQ13: 1
A14: Trade Name (Brazil) | C14: 2,4 D | D14: Ampligo; Vertimec | E14: Acero; Orthene | F14: Acetamiprido | G14: Kadette | H14: Bion | I14: Blazer | J14: Rufast | K14: Afidopiropeno | L14: Alaclor; Laço | M14: Fastac | N14: Gastoxin | O14: Zampo | P14: Ametrina | Q14: Amicarbazona; Dinamic | R14: Tordon Ultra | S14: Amitraz | T14: Asulam | U14: Atrazina; Primestra | V14: Azamax | W14: Gulliver | X14: Amistar; Elatus; Priori; Unizeb | Y14: Galben | Z14: Benforce; Pottente | AA14: Basagran; Doble | AB14: Totalit | AC14: Alade | AD14: Bulldock ; Turbo | AE14: Capture; Sperto; Talisman | AF14: Bispirabac; Riper | AG14: Hanaro | AH14: Cantus; Spot | AI14: Bromacila | AJ14: Condor | AK14: Applaud | AL14: Rugby | AM14: Captan; Merpan; Orthocide | AN14: Sevin | AO14: Derosal; Fungicarb; Tebuzin | AP14: Marshal | AQ14: Vitavax Thiram | AR14: Aurora; Rage; Savana | AS14: Cartarys | AT14: Altacor; Dermacor; Premio | AU14: Pirate | AV14: Atabron | AW14: Classic; Panzer; Twister | AX14: Cerconil; Cuprodil; Daconil; Glider; Zetanil | AY14: Clorpirifós; Klorpan; Losban | AZ14: Centurion; Poquer; Select | BA14: Topic | BB14: Reator | BC14: Pacto | BD14: Poncho | BE14: Contact | BF14: Oxicloreto de cobre | BG14: Sulfato de cobre | BH14: Benevia; Fortenza; Verimark | BI14: Hanami | BJ14: Hayate | BK14: Invest | BL14: Okay | BM14: Equation | BN14: Ametista; Commanche; Fury; Hero | BO14: Alto 100; Aproach; Artea; Sphere max; Verdadeiro | BP14: Truzon | BQ14: Trigard | BR14: Basamid | BS14: Decis; K-Obiol; K-Othrine | BT14: Diafentiuron; Polo | BU14: Dicamba; Rainvel | BV14: Spider | BW14: Flair; Prisma; Score | BX14: Diflumax; Dimilim | BY14: Dimexion | BZ14: Forum | CA14: Maxsan | CB14: Diquat; Reglone | CC14: Diquash; Reglone | CD14: Delan | CE14: Direx; Diuron; Karmex | CF14: Dodex | CG14: Proclaim | CH14: Abacus; Ópera; Prospect | CI14: Pirephos; Sumidan | CJ14: Gladium | CK14: Eleitto; Safety; Trebon | CL14: Smite | CM14: Etridiazole; Terrazole | CN14: Equation | CO14: Censor | CP14: Sumifog; Sumigran; Sumithion | CQ14: Podium; Rapsode; Selefen | CR14: Bold; Danimen; Meothrin | CS14: Fenpropimorph; Versatilis | CT14: Prolectus | CU14: Ortus | CV14: Mertin | CW14: Regente; Standak | CX14: Katana | CY14: Carbine | CZ14: Gapper | DA14: Fusilade; Pilot | DB14: Completo; Frowncide | DC14: Belt | DD14: Maxim XL | DE14: Cascade | DF14: Prevaiil; Scorpion | DG14: Radiant; Resource | DH14: Flumyzin; Sumyzin; Zethamaxx | DI14: Xavante | DJ14: Verango Prime | DK14: Sivanto | DL14: Atento | DM14: Arreio | DN14: Moncut | DO14: Celeiro; Impact; Skip; Tasker; Tornado; Zoom | DP14: Orkestra | DQ14: Folpan Agricur | DR14: Flex; Fusiflex | DS14: Equip Plus | DT14: Aliette | DU14: Cierto | DV14: Fentrol; Stalion | DW14: Fascinate; Finale; Liberty; Patrol | DX14: Glyphotal; Roundup; Trop | DY14: Texaro | DZ14: Sempra | EA14: Verdict-max | EB14: Hexanil; Magnus; Token | EC14: Talento | ED14: Imazacure; Magnate | EE14: Amplo; Raptor | EF14: Only; Imazapique | EG14: Contain | EH14: Imazaquim; Oneshot | EI14: Imazetapir; Zaphir | EJ14: Manage | EK14: Connect; Cropstar; Sombrero | EL14: Alion; Metribuzin; Provence Total | EM14: Avatar | EN14: Sugoy | EO14: Hussar | EP14: Rancona | EQ14: Attic; Certus; Rovral | ER14: Kenja | ES14: Isoxaflutol; Provence | ET14: Kasumin | EU14: Drible; Naja | EV14: Karate zeon | EW14: Afalon | EX14: Curyom; Game; Match | EY14: Malation; Nordick | EZ14: Dithane; Mancozeb; Manzate; Ridomil | FA14: Revus | FB14: Agritone | FC14: Belyan | FD14: Calisto | FE14: Alverde; Metaflimizona; Verismo | FF14: Maxim | FG14: Bunema | FH14: Ópera Ultra | FI14: Suprathion | FJ14: Bazuka; Brilhamte; Lannate | FK14: Intrepid | FL14: Brometo de metila | FM14: Polyram | FN14: Dual Gold; Sequence | FO14: Sencor; Tenace; Unimark | FP14: Accurate; Nufuron; Zartan | FQ14: Volcane | FR14: Systhane | FS14: Accent; Sanson; Stoy | FT14: Gallaxy; Novaluron; Rimon | FU14: Kelion | FV14: Ronstar | FW14: Zorvec | FX14: Goal | FY14: Gramoxone; Paraquat; Tocha | FZ14: Moceren | GA14: Herbadox | GB14: Raster | GC14: Fersol | GD14: Imidam | GE14: Campestre | GF14: Aproach Power | GG14: Graolin | GH14: Kaligreen | GI14: Rotaxil; Sumiguard; Sumilex | GJ14: Curyom | GK14: Aura; Profoxidim | GL14: Gesagard | GM14: Infinito | GN14: Stam | GO14: Omite | GP14: Juno; Stratego; Tilt | GQ14: Antracol | GR14: Fox | GS14: Miravis | GT14: Chess | GU14: Acronis; Comet | GV14: Sanmite | GW14: Erune | GX14: Blade; Cordial; Privilege; Tiger | GY14: Staple | GZ14: Yamato | HA14: Facet | HB14: Targa | HC14: Panther | HD14: Heat | HE14: Poast | HF14: Atrasimex | HG14: Exalt | HH14: Natular | HI14: Envidor | HJ14: Oberon | HK14: Boral; Kicker; Ponteiro; Solara | HL14: Mirex S | HM14: Ally | HN14: Expedition | HO14: Kumulus | HP14: Cronnos; Egan; Folicur; Fusão; Nativo; Tebuco | HQ14: Mimic | HR14: Aval; Butiron; Lava; Spike | HS14: Antrimo; Imunit; Nomolt | HT14: Soberan | HU14: Aramo | HV14: Counter | HW14: Terbumax | HX14: Eminent | HY14: Tecto | HZ14: Calypso | IA14: Actara; Cruiser; Engeo | IB14: Adengo | IC14: Captor; Futur; Larvim; Semevim | ID14: Cercobin; Support; Topsin | IE14: Anchor; Rhodiauram; Vitavax | IF14: Chaser | IG14: Baytan; Photon | IH14: Arbust | II14: Bim | IJ14: Flint | IK14: Envoke | IL14: Trifimine | IM14: Certero; Thorn; Wasp | IN14: Premelin; Trifluralina | IO14: Trix | IP14: Premis | IQ14: Zoxamida
A15: EIQ* Value (<58,33; 58,33 - 94,46; > 94,46) (low risk; medium alert; high alert) | C15: 38.7 | D15: 108.2 | E15: 47.3 | F15: 37.7 | G15: 32.7 | H15: 52.7 | I15: 31.7 | J15: 50.0 | K15: 34.0 | L15: 19.3 | M15: 63.0 | O15: 39.3 | P15: 21.5 | R15: 54.5 | S15: 56.3 | T15: 41.0 | U15: 50.0 | V15: 38.7 | W15: 36.3 | X15: 63.0 | Y15: 41.3 | Z15: 70.0 | AA15: 25.0 | AB15: 43.0 | AC15: 70.7 | AD15: 50.7 | AE15: 69.5 | AF15: 23.0 | AG15: 30.7 | AH15: 74.7 | AI15: 33.3 | AJ15: 75.7 | AK15: 54.7 | AL15: 143.2 | AM15: 51.2 | AN15: 58.0 | AO15: 60.7 | AP15: 68.7 | AQ15: 40.7 | AR15: 36.0 | AT15: 42.0 | AV15: 30.8 | AW15: 36.2 | AX15: 47.3 | AY15: 87.2 | AZ15: 37.3 | BA15: 29.3 | BB15: 34.0 | BC15: 22.7 | BD15: 115.3 | BE15: 50.0 | BF15: 44.3 | BG15: 39.3 | BH15: 57.8 | BI15: 50.7 | BJ15: 101.7 | BK15: 26.7 | BL15: 39.0 | BM15: 33.0 | BN15: 63.0 | BO15: 89.3 | BP15: 56.7 | BQ15: 61.8 | BR15: 40.3 | BS15: 67.3 | BT15: 33.0 | BU15: 42.5 | BV15: 29.7 | BW15: 64.7 | BX15: 65.3 | BY15: 52.5 | BZ15: 56.0 | CA15: 90.7 | CB15: 52.3 | CC15: 47.0 | CD15: 55.0 | CE15: 46.2 | CF15: 39.7 | CG15: 64.0 | CH15: 94.3 | CI15: 56.0 | CJ15: 35.0 | CK15: 40.3 | CL15: 36.7 | CN15: 88.0 | CO15: 37.7 | CP15: 89.3 | CQ15: 30.3 | CR15: 51.0 | CS15: 36.7 | CT15: 52.0 | CU15: 57.0 | CV15: 69.8 | CW15: 80.0 | CX15: 52.3 | CY15: 33.0 | CZ15: 32.2 | DA15: 36.7 | DB15: 56.7 | DC15: 60.5 | DD15: 55.0 | DE15: 70.7 | DF15: 23.7 | DG15: 23.3 | DH15: 46.3 | DI15: 64.3 | DJ15: 65.0 | DK15: 69.0 | DM15: 42.7 | DN15: 57.3 | DO15: 118.0 | DP15: 65.0 | DQ15: 48.7 | DR15: 49.2 | DS15: 29.0 | DT15: 37.7 | DU15: 49.0 | DV15: 78.8 | DW15: 27.7 | DX15: 41.3 | DY15: 42.7 | DZ15: 29.3 | EA15: 19.3 | EC15: 54.0 | ED15: 80.0 | EE15: 75.3 | EG15: 22.3 | EH15: 62.7 | EI15: 25.5 | EJ15: 27.7 | EK15: 70.0 | EL15: 39.2 | EM15: 65.3 | EO15: 40.7 | EP15: 64.3 | EQ15: 55.0 | ER15: 49.5 | ES15: 26.3 | ET15: 43.0 | EV15: 69.8 | EW15: 56.7 | EX15: 49.7 | EY15: 40.0 | EZ15: 46.0 | FA15: 26.3 | FB15: 38.7 | FC15: 86.0 | FD15: 44.0 | FE15: 50.7 | FF15: 32.0 | FG15: 34.7 | FH15: 62.0 | FI15: 77.3 | FJ15: 53.8 | FK15: 52.7 | FL15: 53.6 | FM15: 46.7 | FN15: 36.2 | FO15: 44.7 | FP15: 32.0 | FR15: 76.7 | FS15: 28.7 | FT15: 36.7 | FU15: 41.0 | FV15: 48.7 | FW15: 51.8 | FX15: 34.0 | FY15: 54.3 | FZ15: 35.3 | GA15: 68.7 | GB15: 37.3 | GC15: 66.3 | GD15: 47.7 | GE15: 50.3 | GF15: 59.0 | GG15: 52.7 | GH15: 22.0 | GI15: 54.0 | GJ15: 50.0 | GL15: 50.7 | GM15: 64.0 | GN15: 46.0 | GO15: 61.0 | GP15: 61.3 | GQ15: 32.2 | GR15: 49.3 | GS15: 63.0 | GT15: 31.7 | GU15: 67.0 | GV15: 61.0 | GW15: 54.3 | GX15: 59.7 | GZ15: 30.5 | HA15: 45.3 | HB15: 37.3 | HC15: 31.7 | HD15: 37.0 | HE15: 28.0 | HF15: 32.3 | HG15: 45.7 | HH15: 68.3 | HI15: 46.0 | HJ15: 40.7 | HK15: 51.0 | HM15: 25.7 | HN15: 44.7 | HO15: 29.7 | HP15: 50.5 | HQ15: 43.7 | HR15: 51.3 | HS15: 74.8 | HT15: 23.0 | HU15: 40.7 | HV15: 102.7 | HW15: 47.3 | HX15: 59.0 | HY15: 71.3 | HZ15: 54.5 | IA15: 34.3 | IB15: 52.3 | IC15: 74.0 | ID15: 62.3 | IE15: 39.0 | IF15: 42.7 | IG15: 91.3 | IH15: 48.2 | II15: 47.3 | IJ15: 54.0 | IK15: 32.7 | IM15: 56.7 | IN15: 54.0 | IO15: 17.7 | IP15: 80.7 | IQ15: 26.0
A16: Farm worker (< 80; 80 - 128; > 128) | C16: 90.0 | D16: 150.0 | E16: 40.0 | F16: 32.0 | G16: 60.0 | H16: 80.0 | I16: 48.0 | J16: 56.0 | K16: 56.0 | L16: 24.0 | M16: 80.0 | O16: 64.0 | P16: 24.0 | R16: 80.0 | S16: 120.0 | T16: 80.0 | U16: 80.0 | V16: 56.0 | W16: 64.0 | X16: 72.0 | Y16: 56.0 | Z16: 80.0 | AA16: 32.0 | AB16: 80.0 | AC16: 64.0 | AD16: 60.0 | AE16: 80.0 | AF16: 32.0 | AG16: 32.0 | AH16: 72.0 | AI16: 48.0 | AJ16: 80.0 | AK16: 72.0 | AL16: 250.0 | AM16: 90.0 | AN16: 80.0 | AO16: 80.0 | AP16: 70.0 | AQ16: 64.0 | AR16: 64.0 | AT16: 48.0 | AV16: 48.0 | AW16: 64.0 | AX16: 80.0 | AY16: 105.0 | AZ16: 64.0 | BA16: 48.0 | BB16: 60.0 | BC16: 32.0 | BD16: 100.0 | BE16: 64.0 | BF16: 64.0 | BG16: 64.0 | BH16: 40.0 | BI16: 80.0 | BJ16: 80.0 | BK16: 32.0 | BL16: 64.0 | BM16: 60.0 | BN16: 80.0 | BO16: 100.0 | BP16: 72.0 | BQ16: 100.0 | BR16: 72.0 | BS16: 80.0 | BT16: 28.0 | BU16: 72.0 | BV16: 32.0 | BW16: 72.0 | BX16: 100.0 | BY16: 70.0 | BZ16: 64.0 | CA16: 72.0 | CB16: 48.0 | CC16: 32.0 | CD16: 80.0 | CE16: 60.0 | CF16: 56.0 | CG16: 72.0 | CH16: 100.0 | CI16: 60.0 | CJ16: 64.0 | CK16: 60.0 | CL16: 64.0 | CN16: 80.0 | CO16: 56.0 | CP16: 135.0 | CQ16: 48.0 | CR16: 48.0 | CS16: 48.0 | CT16: 64.0 | CU16: 70.0 | CV16: 128.0 | CW16: 105.0 | CX16: 80.0 | CY16: 56.0 | CZ16: 32.0 | DA16: 64.0 | DB16: 64.0 | DC16: 70.0 | DD16: 72.0 | DE16: 100.0 | DF16: 32.0 | DG16: 32.0 | DH16: 80.0 | DI16: 64.0 | DJ16: 72.0 | DK16: 64.0 | DM16: 80.0 | DN16: 40.0 | DO16: 150.0 | DP16: 72.0 | DQ16: 90.0 | DR16: 96.0 | DS16: 32.0 | DT16: 64.0 | DU16: 90.0 | DV16: 120.0 | DW16: 60.0 | DX16: 80.0 | DY16: 80.0 | DZ16: 56.0 | EA16: 24.0 | EC16: 80.0 | ED16: 100.0 | EE16: 80.0 | EG16: 32.0 | EH16: 80.0 | EI16: 32.0 | EJ16: 32.0 | EK16: 60.0 | EL16: 60.0 | EM16: 70.0 | EO16: 80.0 | EP16: 80.0 | EQ16: 90.0 | ER16: 80.0 | ES16: 48.0 | ET16: 80.0 | EV16: 84.0 | EW16: 80.0 | EX16: 72.0 | EY16: 60.0 | EZ16: 80.0 | FA16: 14.0 | FB16: 64.0 | FC16: 72.0 | FD16: 80.0 | FE16: 60.0 | FF16: 36.0 | FG16: 60.0 | FH16: 64.0 | FI16: 120.0 | FJ16: 70.0 | FK16: 64.0 | FL16: 74.0 | FM16: 80.0 | FN16: 30.0 | FO16: 80.0 | FP16: 64.0 | FR16: 80.0 | FS16: 48.0 | FT16: 40.0 | FU16: 80.0 | FV16: 60.0 | FW16: 64.0 | FX16: 48.0 | FY16: 64.0 | FZ16: 48.0 | GA16: 100.0 | GB16: 64.0 | GC16: 90.0 | GD16: 90.0 | GE16: 90.0 | GF16: 72.0 | GG16: 70.0 | GH16: 32.0 | GI16: 90.0 | GJ16: 90.0 | GL16: 80.0 | GM16: 90.0 | GN16: 80.0 | GO16: 90.0 | GP16: 80.0 | GQ16: 56.0 | GR16: 80.0 | GS16: 96.0 | GT16: 60.0 | GU16: 80.0 | GV16: 64.0 | GW16: 64.0 | GX16: 80.0 | GZ16: 48.0 | HA16: 64.0 | HB16: 60.0 | HC16: 60.0 | HD16: 64.0 | HE16: 32.0 | HF16: 60.0 | HG16: 70.0 | HH16: 80.0 | HI16: 72.0 | HJ16: 64.0 | HK16: 80.0 | HM16: 36.0 | HN16: 56.0 | HO16: 32.0 | HP16: 70.0 | HQ16: 40.0 | HR16: 64.0 | HS16: 80.0 | HT16: 48.0 | HU16: 80.0 | HV16: 200.0 | HW16: 64.0 | HX16: 64.0 | HY16: 64.0 | HZ16: 90.0 | IA16: 28.0 | IB16: 100.0 | IC16: 100.0 | ID16: 100.0 | IE16: 64.0 | IF16: 32.0 | IG16: 100.0 | IH16: 90.0 | II16: 40.0 | IJ16: 80.0 | IK16: 32.0 | IM16: 80.0 | IN16: 70.0 | IO16: 24.0 | IP16: 80.0 | IQ16: 32.0
A17: Consumer (< 20,5; 20,5 - 36,25; > 36,25) | C17: 9.0 | D17: 19.5 | E17: 33.0 | F17: 15.0 | G17: 8.0 | H17: 32.0 | I17: 11.0 | J17: 9.0 | K17: 20.0 | L17: 7.0 | M17: 13.5 | O17: 10.0 | P17: 6.0 | R17: 18.0 | S17: 13.0 | T17: 13.0 | U17: 19.0 | V17: 21.0 | W17: 16.0 | X17: 45.0 | Y17: 26.0 | Z17: 32.0 | AA17: 9.0 | AB17: 13.0 | AC17: 50.0 | AD17: 8.5 | AE17: 13.5 | AF17: 7.0 | AG17: 13.0 | AH17: 56.0 | AI17: 12.0 | AJ17: 63.0 | AK17: 16.0 | AL17: 20.5 | AM17: 15.5 | AN17: 13.0 | AO17: 39.5 | AP17: 32.0 | AQ17: 28.0 | AR17: 11.0 | AT17: 39.0 | AV17: 8.0 | AW17: 13.0 | AX17: 12.0 | AY17: 19.5 | AZ17: 10.0 | BA17: 6.0 | BB17: 10.5 | BC17: 8.0 | BD17: 78.0 | BE17: 25.0 | BF17: 27.0 | BG17: 10.0 | BH17: 24.0 | BI17: 14.0 | BJ17: 63.0 | BK17: 6.0 | BL17: 9.0 | BM17: 18.0 | BN17: 13.5 | BO17: 70.5 | BP17: 38.0 | BQ17: 25.5 | BR17: 8.0 | BS17: 16.0 | BT17: 4.0 | BU17: 14.0 | BV17: 10.0 | BW17: 50.0 | BX17: 17.0 | BY17: 26.5 | BZ17: 38.0 | CA17: 52.0 | CB17: 9.0 | CC17: 9.0 | CD17: 14.0 | CE17: 15.5 | CF17: 19.0 | CG17: 13.0 | CH17: 77.0 | CI17: 11.0 | CJ17: 11.0 | CK17: 6.0 | CL17: 10.0 | CN17: 50.0 | CO17: 21.0 | CP17: 14.5 | CQ17: 5.0 | CR17: 7.0 | CS17: 20.0 | CT17: 17.0 | CU17: 16.0 | CV17: 12.0 | CW17: 17.0 | CX17: 19.0 | CY17: 23.0 | CZ17: 8.0 | DA17: 10.0 | DB17: 15.0 | DC17: 19.5 | DD17: 19.0 | DE17: 21.0 | DF17: 10.0 | DG17: 8.0 | DH17: 15.5 | DI17: 51.0 | DJ17: 57.0 | DK17: 40.0 | DM17: 14.0 | DN17: 33.0 | DO17: 78.0 | DP17: 57.0 | DQ17: 15.5 | DR17: 18.0 | DS17: 9.0 | DT17: 29.0 | DU17: 18.0 | DV17: 13.5 | DW17: 8.0 | DX17: 12.0 | DY17: 12.0 | DZ17: 11.0 | EA17: 6.0 | EC17: 16.0 | ED17: 62.0 | EE17: 64.0 | EG17: 9.0 | EH17: 20.0 | EI17: 11.0 | EJ17: 13.0 | EK17: 48.0 | EL17: 15.5 | EM17: 17.0 | EO17: 14.0 | EP17: 47.0 | EQ17: 18.0 | ER17: 14.5 | ES17: 7.0 | ET17: 16.0 | EV17: 15.0 | EW17: 18.0 | EX17: 31.0 | EY17: 7.0 | EZ17: 13.0 | FA17: 8.0 | FB17: 12.0 | FC17: 56.0 | FD17: 13.0 | FE17: 13.5 | FF17: 18.0 | FG17: 9.0 | FH17: 44.0 | FI17: 13.0 | FJ17: 26.5 | FK17: 19.0 | FL17: 10.4 | FM17: 13.0 | FN17: 15.5 | FO17: 14.0 | FP17: 11.0 | FR17: 63.0 | FS17: 10.0 | FT17: 10.0 | FU17: 13.0 | FV17: 17.0 | FW17: 44.0 | FX17: 8.0 | FY17: 17.0 | FZ17: 12.0 | GA17: 26.0 | GB17: 14.0 | GC17: 13.5 | GD17: 7.0 | GE17: 19.0 | GF17: 39.0 | GG17: 12.0 | GH17: 9.0 | GI17: 40.5 | GJ17: 7.0 | GL17: 18.0 | GM17: 48.0 | GN17: 13.0 | GO17: 18.5 | GP17: 47.0 | GQ17: 9.0 | GR17: 32.0 | GS17: 53.0 | GT17: 19.0 | GU17: 47.0 | GV17: 13.0 | GW17: 39.0 | GX17: 37.0 | GZ17: 9.0 | HA17: 20.0 | HB17: 13.0 | HC17: 8.0 | HD17: 15.0 | HE17: 8.0 | HF17: 13.0 | HG17: 8.5 | HH17: 13.0 | HI17: 11.0 | HJ17: 9.0 | HK17: 24.0 | HM17: 10.0 | HN17: 22.0 | HO17: 7.0 | HP17: 39.5 | HQ17: 31.0 | HR17: 20.0 | HS17: 55.0 | HT17: 8.0 | HU17: 14.0 | HV17: 33.0 | HW17: 15.0 | HX17: 38.0 | HY17: 50.0 | HZ17: 14.5 | IA17: 19.0 | IB17: 20.0 | IC17: 17.0 | ID17: 48.0 | IE17: 11.0 | IF17: 5.0 | IG17: 78.0 | IH17: 16.5 | II17: 33.0 | IJ17: 32.0 | IK17: 9.0 | IM17: 16.0 | IN17: 16.0 | IO17: 5.0 | IP17: 63.0 | IQ17: 6.0
A18: Ecology (< 75; 75 - 136,5; > 136,5) | C18: 17.0 | D18: 155.0 | E18: 69.0 | F18: 66.0 | G18: 30.0 | H18: 46.0 | I18: 36.0 | J18: 85.0 | K18: 26.0 | L18: 27.0 | M18: 95.5 | O18: 44.0 | P18: 34.5 | R18: 65.5 | S18: 36.0 | T18: 30.0 | U18: 51.0 | V18: 39.0 | W18: 29.0 | X18: 72.0 | Y18: 42.0 | Z18: 98.0 | AA18: 34.0 | AB18: 36.0 | AC18: 98.0 | AD18: 83.5 | AE18: 115.0 | AF18: 30.0 | AG18: 47.0 | AH18: 96.0 | AI18: 40.0 | AJ18: 84.0 | AK18: 76.0 | AL18: 159.0 | AM18: 48.0 | AN18: 81.0 | AO18: 62.5 | AP18: 104.0 | AQ18: 30.0 | AR18: 33.0 | AT18: 39.0 | AV18: 36.5 | AW18: 31.5 | AX18: 50.0 | AY18: 137.0 | AZ18: 38.0 | BA18: 34.0 | BB18: 31.5 | BC18: 28.0 | BD18: 168.0 | BE18: 61.0 | BF18: 42.0 | BG18: 44.0 | BH18: 109.5 | BI18: 58.0 | BJ18: 162.0 | BK18: 42.0 | BL18: 44.0 | BM18: 21.0 | BN18: 95.5 | BO18: 97.5 | BP18: 60.0 | BQ18: 60.0 | BR18: 41.0 | BS18: 106.0 | BT18: 67.0 | BU18: 41.5 | BV18: 47.0 | BW18: 72.0 | BX18: 79.0 | BY18: 61.0 | BZ18: 66.0 | CA18: 148.0 | CB18: 100.0 | CC18: 100.0 | CD18: 71.0 | CE18: 63.0 | CF18: 44.0 | CG18: 107.0 | CH18: 106.0 | CI18: 97.0 | CJ18: 30.0 | CK18: 55.0 | CL18: 36.0 | CN18: 134.0 | CO18: 36.0 | CP18: 118.5 | CQ18: 38.0 | CR18: 98.0 | CS18: 42.0 | CT18: 75.0 | CU18: 85.0 | CV18: 69.5 | CW18: 118.0 | CX18: 58.0 | CY18: 20.0 | CZ18: 56.5 | DA18: 36.0 | DB18: 91.0 | DC18: 92.0 | DD18: 74.0 | DE18: 91.0 | DF18: 29.0 | DG18: 30.0 | DH18: 43.5 | DI18: 78.0 | DJ18: 66.0 | DK18: 103.0 | DM18: 34.0 | DN18: 99.0 | DO18: 126.0 | DP18: 66.0 | DQ18: 40.5 | DR18: 33.5 | DS18: 46.0 | DT18: 20.0 | DU18: 39.0 | DV18: 103.0 | DW18: 15.0 | DX18: 32.0 | DY18: 36.0 | DZ18: 21.0 | EA18: 28.0 | EC18: 66.0 | ED18: 78.0 | EE18: 82.0 | EG18: 26.0 | EH18: 88.0 | EI18: 33.5 | EJ18: 38.0 | EK18: 102.0 | EL18: 42.0 | EM18: 109.0 | EO18: 28.0 | EP18: 66.0 | EQ18: 57.0 | ER18: 54.0 | ES18: 24.0 | ET18: 33.0 | EV18: 110.5 | EW18: 72.0 | EX18: 46.0 | EY18: 53.0 | EZ18: 45.0 | FA18: 57.0 | FB18: 40.0 | FC18: 130.0 | FD18: 39.0 | FE18: 78.5 | FF18: 42.0 | FG18: 35.0 | FH18: 78.0 | FI18: 99.0 | FJ18: 65.0 | FK18: 75.0 | FL18: 76.3 | FM18: 47.0 | FN18: 63.0 | FO18: 40.0 | FP18: 21.0 | FR18: 87.0 | FS18: 28.0 | FT18: 60.0 | FU18: 30.0 | FV18: 69.0 | FW18: 47.5 | FX18: 46.0 | FY18: 82.0 | FZ18: 46.0 | GA18: 80.0 | GB18: 34.0 | GC18: 95.5 | GD18: 46.0 | GE18: 42.0 | GF18: 66.0 | GG18: 76.0 | GH18: 25.0 | GI18: 31.5 | GJ18: 53.0 | GL18: 54.0 | GM18: 54.0 | GN18: 45.0 | GO18: 74.5 | GP18: 57.0 | GQ18: 31.5 | GR18: 36.0 | GS18: 40.0 | GT18: 16.0 | GU18: 74.0 | GV18: 106.0 | GW18: 60.0 | GX18: 62.0 | GZ18: 34.5 | HA18: 52.0 | HB18: 39.0 | HC18: 27.0 | HD18: 32.0 | HE18: 44.0 | HF18: 24.0 | HG18: 58.5 | HH18: 112.0 | HI18: 55.0 | HJ18: 49.0 | HK18: 49.0 | HM18: 31.0 | HN18: 56.0 | HO18: 50.0 | HP18: 42.0 | HQ18: 60.0 | HR18: 70.0 | HS18: 89.5 | HT18: 13.0 | HU18: 28.0 | HV18: 75.0 | HW18: 63.0 | HX18: 75.0 | HY18: 100.0 | HZ18: 59.0 | IA18: 56.0 | IB18: 37.0 | IC18: 105.0 | ID18: 39.0 | IE18: 42.0 | IF18: 91.0 | IG18: 96.0 | IH18: 38.0 | II18: 69.0 | IJ18: 50.0 | IK18: 57.0 | IM18: 74.0 | IN18: 76.0 | IO18: 24.0 | IP18: 99.0 | IQ18: 40.0
A19: PAN International consolidated list of banned pesticides - EU (X) | E19: x | G19: x | I19: x | J19: x | L19: x | M19: x | P19: x | Q19: x | S19: x | T19: x | U19: x | Y19: x | Z19: x | AD19: x | AE19: x | AI19: x | AL19: x | AN19: x | AO19: x | AP19: x | AS19: x | AU19: x | AV19: x | AX19: x | AY19: x | BD19: x | BJ19: x | BK19: x | BN19: x | BO19: x | BT19: x | BY19: x | CA19: x | CB19: x | CC19: x | CE19: x | CH19: x | CJ19: x | CN19: x | CO19: x | CP19: x | CR19: x | CS19: x | CW19: x | DE19: x | DF19: x | DR19: x | DW19: x | EA19: x | EB19: x | EF19: x | EG19: x | EH19: x | EI19: x | EK19: x | EL19: x | EQ19: x | ET19: x | EU19: x | EW19: x | EX19: x | EY19: x | EZ19: x | FI19: x | FJ19: x | FL19: x | FN19: x | FT19: x | FU19: x | FV19: x | FY19: x | GC19: x | GD19: x | GF19: x | GI19: x | GJ19: x | GK19: x | GL19: x | GN19: x | GO19: x | GP19: x | GQ19: x | GT19: x | GY19: x | HB19: x | HE19: x | HF19: x | HL19: x | HR19: x | HU19: x | HV19: x | HZ19: x | IA19: x | IC19: x | ID19: x | IE19: x | IF19: x | IG19: x | II19: x | IL19: x | IM19: x | IN19: x
A20: Number of active principle registered in Brazil (2019-2022) | C20: 49 | D20: 14 | E20: 11 | F20: 25 | M20: 6 | N20: 2 | O20: 4 | P20: 31 | Q20: 10 | U20: 52 | X20: 66 | AC20: 5 | AD20: 1 | AE20: 41 | AF20: 6 | AG20: 2 | AH20: 5 | AK20: 2 | AM20: 3 | AO20: 17 | AR20: 3 | AS20: 1 | AT20: 4 | AU20: 14 | AV20: 2 | AW20: 15 | AX20: 28 | AY20: 27 | AZ20: 24 | BB20: 24 | BC20: 1 | BD20: 1 | BE20: 4 | BF20: 6 | BH20: 11 | BJ20: 6 | BM20: 8 | BN20: 3 | BO20: 44 | BP20: 3 | BS20: 3 | BT20: 13 | BU20: 31 | BV20: 2 | BW20: 38 | BX20: 13 | BZ20: 10 | CA20: 9 | CB20: 4 | CC20: 22 | CE20: 24 | CG20: 1 | CH20: 8 | CI20: 1 | CN20: 1 | CP20: 1 | CS20: 3 | CT20: 3 | CW20: 49 | CX20: 1 | CZ20: 4 | DA20: 2 | DB20: 16 | DC20: 4 | DD20: 10 | DE20: 1 | DH20: 26 | DJ20: 4 | DK20: 1 | DL20: 1 | DM20: 26 | DN20: 1 | DO20: 10 | DP20: 13 | DQ20: 1 | DR20: 12 | DT20: 1 | DW20: 64 | DX20: 44 | DY20: 3 | EA20: 6 | EB20: 30 | EC20: 1 | ED20: 1 | EE20: 2 | EF20: 10 | EG20: 9 | EI20: 19 | EK20: 25 | EM20: 23 | EN20: 4 | EP20: 1 | EQ20: 1 | ER20: 4 | ES20: 22 | ET20: 1 | EU20: 2 | EV20: 19 | EX20: 10 | EY20: 9 | EZ20: 33 | FA20: 5 | FC20: 5 | FD20: 22 | FF20: 8 | FJ20: 19 | FK20: 11 | FN20: 29 | FO20: 6 | FP20: 6 | FS20: 12 | FT20: 10 | FW20: 6 | FX20: 1 | GA20: 2 | GB20: 2 | GC20: 1 | GE20: 27 | GF20: 13 | GH20: 1 | GI20: 3 | GJ20: 5 | GN20: 3 | GP20: 3 | GR20: 27 | GS20: 5 | GT20: 7 | GU20: 24 | GW20: 1 | GX20: 17 | GZ20: 5 | HB20: 3 | HD20: 2 | HF20: 14 | HI20: 20 | HJ20: 1 | HK20: 33 | HM20: 3 | HN20: 12 | HO20: 2 | HP20: 35 | HR20: 17 | HW20: 6 | HX20: 2 | HY20: 8 | HZ20: 1 | IA20: 13 | IB20: 2 | IC20: 13 | ID20: 17 | IE20: 2 | IF20: 5 | IH20: 22 | II20: 2 | IJ20: 11 | IK20: 2 | IM20: 3 | IO20: 16
A21: * Environmental Impact Quocient (Kovach et al., 1992)
A22: DATABASE (QUESTIONNAIRE; INDICATORS; REPORT) | C22: S2DATA | D22: S3INTERVIEWER_NAME | E22: S3INTERVIEWER_ID | F22: S4FARMER_NAME | G22: S4FARMER_ID | H22: S4FARMER_AGE | I22: S5FARM_LOCATION | J22: S5Municipality | K22: S5STATE | L22: S5Watershed | M22: S6OWNERSHIP | N22: S6Succession_process | O22: S6WOMEN_PARTICIPATION | P22: S7Farm_identification | Q22: S7AREA | R22: S7Small_scale_agriculture | S22: S7Non_contiguous_areas | T22: S7Non_contiguous_areas_ha | U22: S8Permanent_crops | V22: S8Annual_crops | W22: S8Pastures | X22: S8Forestry | Y22: S8Non_agricultural_area | Z22: S8Fallow | AA22: S8Water_courses | AB22: S8Native_vegetation | AC22: S8Unsuitable_areas | AD22: S8Total_Area | AE22: S9PPA_AREA_TOTAL | AF22: S9PPA_area_to_be_recovered | AG22: S10CONSERVATION_RESERVE_AREA_CRA | AH22: S10Native_vegetation_exceeding_CRA | AI22: S11Water_courses | AJ22: S11Springs | AK22: S11Natural_lakes_ponds | AL22: S11Dams | AM22: S11USE_OF_SUPERFICIAL_WATER | AN22: S11USE_OF_UNDERGROUND_WATER | AO22: S11Water_quality_availability_problems | AP22: S11PROBLEMS.DESCRIPTION | AQ22: S12Water_Use_Regularization | AR22: S12Environmental_License | AS22: S13FARM_CRITICAL_POINT1 | AT22: S13FARM_CRITICAL_POINT2 | AU22: S13FARM_CRITICAL_POINT3 | AV22: I1GROSS_INCOME_ACTIVITY1_DESCRIPTION | AW22: I1GROSS_INCOME_ACTIVITY1 | AX22: I1GROSS_INCOME_ACTIVITY2_DESCRIPTION | AY22: I1GROSS_INCOME_ACTIVITY2 | AZ22: I1GROSS_INCOME_ACTIVITY3_DESCRIPTION | BA22: I1GROSS_INCOME_ACTIVITY3 | BB22: I1ACTIVITY1_DESCRIPTION | BC22: I1ACTIVITY1_UNIT | BD22: I1ACTIVITY1_PRODUCTIVITY | BE22: I1ACTIVITY1_SALES_PRICE | BF22: I1ACTIVITY1_REGIONAL_PRODUCTIVITY | BG22: I1ACTIVITY1_REGIONAL_SALES_PRICE | BH22: I1ACTIVITY2_DESCRIPTION | BI22: I1ACTIVITY2_UNIT | BJ22: I1ACTIVITY2_PRODUCTIVITY | BK22: I1ACTIVITY2_SALES_PRICE | BL22: I1ACTIVITY2_REGIONAL_PRODUCTIVITY | BM22: I1ACTIVITY2_REGIONAL_SALES_PRICE | BN22: I1ACTIVITY3_DESCRIPTION | BO22: I1ACTIVITY3_UNIT | BP22: I1ACTIVITY3_PRODUCTIVITY | BQ22: I1ACTIVITY3_SALES_PRICE | BR22: I1ACTIVITY3_REGIONAL_PRODUCTIVITY | BS22: I1ACTIVITY3_REGIONAL_SALES_PRICE | BT22: I1RESULT | BU22: I2Activity1_description | BV22: I2Activity1_value | BW22: I2Activity2_description | BX22: I2Activity2_value | BY22: I2Activity3_description | BZ22: I2Activity3_value | CA22: I2Pension_retirement_financial_aid | CB22: I2Other_activities | CC22: I2Agricultural_livestock_forestry_activities_on_the_farm | CD22: I2Other_activities_on_the_farm | CE22: I2Off-site_activities | CF22: I2Retirement_pension_financial_help_other_sources | CG22: I2Concentration_in_a_single_activity | CH22: I2RESULT | CI22: I3EQUITY_DEVELOPMENT_ASSESSMENT_PERIOD | CJ22: I3Constructions_carried_out_in_the_recent_period_DESCRIPTION | CK22: I3RECENT_IMPROVEMENTS_VALUE | CL22: I3CONSTUCTIONS_HISTORIC_DESCRIPTION | CM22: I3CONSTRUCTIONS_HISTORIC_VALUE | CN22: I3CONSTRUCTIONS_TOTAL_VALUE | CO22: I3RECENT_EQUIPMENT_DESCRIPTION | CP22: I3RECENT_EQUIPMENT_VALUE | CQ22: I3EQUIPMENT_HISTORIC_DESCRIPTION | CR22: I3EQUIPMENT_HISTORIC_VALUE | CS22: I3EQUIPMENT_TOTAL_VALUE | CT22: I3STOCK_LIVESTOCK_TOTAL_VALUE | CU22: I3STOCK_LIVESTOCK_TOTAL_HISTORIC_VALUE | CV22: I3IRRIGATION_TYPE | CW22: I3IRRIGATION_AREA | CX22: I3.4.3.3.IRRIGATION.HISTORIC.AREA | CY22: I3TOTAL_LAND_USE | CZ22: I3TOTAL_LAND_HISTORIC_USE | DA22: I3.LAND_VALUE | DB22: I3.LAND_HISTORIC_VALUE | DC22: I3Estimated_total_asset_values | DD22: I3Estimated_total_historic_asset_values | DE22: I3ASSET_EVOLUTION_LAND_VALUATION | DF22: I3ASSET_EVOLUTION_BUILDINGS | DG22: I3ASSET_EVOLUTION_EQUIPMENTS | DH22: I3ASSET_EVOLUTION_LIVESTOCK | DI22: I3ASSET_EVOLUTION_IRRIGATION_AGRICULTURE_AREA | DJ22: I3TOTAL_ASSET_EVOLUTION | DK22: I3TOTAL_ASSET_EVOLUTION_DISCOUNTING_LAND_APPRECIATION | DL22: I3PARTIALRESULT1 | DM22: I3FINANCING_FINANCIAL_COMMITMENTS_VALUE | DN22: I3FINANCING_FINANCIAL_COMMITMENTS_ESTIMATED_ASSET | DO22: I3PARTIALRESULT2 | DP22: I3RESULT | DQ22: I4NUMBER_OF_RESIDENTS | DR22: I4Water_availability | DS22: I4Electricity | DT22: I4Regular_road_access | DU22: I4Access_to_health_care | DV22: I4School_transportation | DW22: I4Security | DX22: I4Internet | DY22: I4Waste_collection | DZ22: I4PARTIAL_RESULT1 | EA22: I4Vegetables | EB22: I4Orchard | EC22: I4Milk_eggs_meat_production | ED22: I4PARTIAL_RESULT2 | EE22: I4.RESULT | EF22: I5FAMILY_MEMBERS_NUMBER | EG22: I5Less_than_9years_of_study | EH22: I5Complete_primary_education | EI22: I5Complete_high_school | EJ22: I5College_University | EK22: I5Permanent_workers_number | EL22: I5Workers_Less_than_9years_of_study | EM22: I5Workers_Complete_primary_education | EN22: I5Workers_Complete_high_school | EO22: I5Workers_College_University | EP22: I5Short_training_courses | EQ22: I5Long_training_courses | ER22: I5Workers_short_training_courses | ES22: I5Workers_long_training_courses | ET22: I5children_number | EU22: I5Who_go_to_school | EV22: I5Workers_children_number_living_in_the_farm | EW22: I5Workers_children_who_go_to_school | EX22: I5RESULT | EY22: I6Employees_number | EZ22: I6Employee_registration | FA22: I6Overtime_payment_or_abscense_of_overtime | FB22: I6Above_minimum_wage | FC22: I6Food_supplementation | FD22: I6Housing_assistance | FE22: I6Education_and_transportation_assistance | FF22: I6Profit_sharing | FG22: I6Accident_insurance | FH22: I6Access_to_leisure | FI22: I6Space_for_growing_food | FJ22: I6Temporary_employees_(%) | FK22: I6RESULT | FL22: I7Cash_flow | FM22: I7Production_cost | FN22: I7Access_to_technical_assistance | FO22: I7Rural_associations_farmer_participation | FP22: I7Environmental_regularization | FQ22: I7Investment_credit | FR22: I7Credit_for_the_farm_activities | FS22: I7Credit_for_commercialization | FT22: I7RESULT | FU22: I8Search_information_diversify_buyers | FV22: I8Generates_certified_products_aggregate_value | FW22: I8Adoption_of_innovative_techniques | FX22: I8Description_innovative_techniques | FY22: I8Ability_to_innovate_or_leadership | FZ22: I8Description_innovative_or_leadership | GA22: I8Bioinputs | GB22: I8Bioinputs_proportion | GC22: I8Cover_crops_perennials_for_shading | GD22: I8Cover_crops_perennials_for_shading_proportion | GE22: I8RESULT | GF22: I9Sewage_destination1 | GG22: I9Sewage_destination2 | GH22: I9Garbage_destination1 | GI22: I9Garbage_destination2 | GJ22: I9Composting_reuse_of_organic_solid_waste | GK22: I9Adequate_allocation_and_treatment_of_liquid_effluents | GL22: I9Adequate_allocation_and_treatment_of_gaseous_effluents | GM22: I9Critical_point | GN22: I9Critical_point_description | GO22: I9.RESULT | GP22: I10Plot_identification | GQ22: I10Clay_content | GR22: I10SOM_DAGKG-1 | GS22: I10SOM | GT22: I10P_MGDM-3 | GU22: I10P | GV22: I10Ca_CMOLDM-3 | GW22: I10Ca | GX22: I10Mg_CMOLDM-3 | GY22: I10Mg | GZ22: I10K_MGDM-3 | HA22: I10K | HB22: I10PH_UNIT | HC22: I10PH | HD22: I10.Al_CMOLDM-3 | HE22: I10.Al | HF22: I10CEC_CMOLDM-3 | HG22: I10CEC | HH22: I10BASE_SATURATION_% | HI22: I10BASE_SATURATION | HJ22: I10PARTIAL_RESULT1 | HK22: I10ARYL_MGPNITROFENOLKG-1H-1 | HL22: I10BETA_MGPNITROFENOLKG-1H-1 | HM22: I10SOM_DAGKG-1 | HN22: I10Biological_soil_quality_index | HO22: I10Nutrient_storage_index | HP22: I10Nutrient_supply_index | HQ22: I10Chemical_soil_quality_index | HR22: I10FertBio_index | HS22: I10PARTIAL_RESULT2 | HT22: I10.RESULT | HU22: I11Degradation_stage | HV22: I11Area | HW22: I11Area_proportion | HX22: I11Trend_of_process_behavior | HY22: I11.PARTIALRESULT1 | HZ22: I11Drainage | IA22: I11Bumps_grooves | IB22: I11Infiltration_structures | IC22: I11Holes | ID22: I11Erosion_grooves | IE22: I11Critical_point | IF22: I11Critical_point_description | IG22: I11.PARTIALRESULT2 | IH22: I11.RESULT | II22: I12Occupation_of_the_river_banks_upstream | IJ22: I12Occupation_of_the_river_banks_downstream | IK22: I12Anthropogenic_changes_up | IL22: I12Anthropogenic_changes_down | IM22: I12Shading_up | IN22: I12Shading_down | IO22: I12Erosion_signals_up | IP22: I12Erosion_signals_down | IQ22: I12Water_transparency_up | IR22: I12Water_transparency_down | IS22: I12Water_odor_up | IT22: I12Water_odor_down | IU22: I12Bottom_of_the_river_up | IV22: I12Bottom_of_the_river_down | IW22: I12Aquatic_Ecosystem_assessment_results_upstream | IX22: I12Aquatic_Ecosystem_assessment_results_downstream | IY22: I12Surface_water_quality_up | IZ22: I12Surface_water_quality_down | JA22: I12Surface_groundwater_quality | JB22: I12RESULT | JC22: I13Product1 | JD22: I13Land_use_crop1 | JE22: I13Area1 | JF22: I13Pesticide_volume1 | JG22: I13Pesticide_total_volume1 | JH22: I13Product_active_principle1 | JI22: I13Potential_contamination1 | JJ22: I13Field_vulnerability1 | JK22: I13Contamination_risk1 | JL22: I13Product2 | JM22: I13Land_use_crop2 | JN22: I13Area2 | JO22: I13Pesticide_volume2 | JP22: I13Pesticide_total_volume2 | JQ22: I13Product_active_principle2 | JR22: I13Potential_contamination2 | JS22: I1Field_vulnerability2 | JT22: I13Contamination_risk2 | JU22: I13Product3 | JV22: I13Land_use_crop3 | JW22: I13Area3 | JX22: I13Pesticide_volume3 | JY22: I13Pesticide_total_volume3 | JZ22: I13Product_active_principle3 | KA22: I13Potential_contamination3 | KB22: I143ield_vulnerability3 | KC22: I13Contamination_risk3 | KD22: I13Crop_description1 | KE22: I13Crop_area1 | KF22: I13Maximum_risk_identified1 | KG22: I13Crop_description2 | KH22: I13Crop_area2 | KI22: I13Maximum_risk_identified2 | KJ22: I13Crop_description2 | KK22: I13Crop_area2 | KL22: I13Maximum_risk_identified2 | KM22: I13.PARTIALRESULT1 | KN22: I13How_many_people_operate_pesticides | KO22: I13Personal_protective_equipment_properly | KP22: I13Proper_storage_of_pesticides | KQ22: I13Return_of_pesticide_packaging | KR22: I13.PARTIALRESULT2 | KS22: I13RESULT | KT22: I14Soil_conservation_Sufficient | KU22: I14Soil_conservation_Insufficient | KV22: I14Soil_conservation_Critical | KW22: I14Critical_situation | KX22: I14Water_conservation_strategies | KY22: I14RESULT | KZ22: I15Practices_that_improve_agrobiodiversity_Sufficient | LA22: I15Practices_that_improve_agrobiodiversity_insufficient | LB22: I15Practices_that_improve_agrobiodiversity_critical | LC22: I15Critical_situation | LD22: I15Partial_result1 | LE22: I15Shanon_Index | LF22: I15Partial_result2 | LG22: I15High_proportion_of_monocultures | LH22: I15.RESULT | LI22: I16Phytophysiognomie1 | LJ22: I16Phytophysiognomie_sucessional_advanced_stage1 | LK22: I16Phytophysiognomie_sucessional_midle_stage1 | LL22: I16Phytophysiognomie_sucessional_early_stage1 | LM22: I16Phytophysiognomie2 | LN22: I16Phytophysiognomie_sucessional_advanced_stage2 | LO22: I16Phytophysiognomie_sucessional_midle_stage2 | LP22: I16Phytophysiognomie_sucessional_early_stage2 | LQ22: I16Phytophysiognomie3 | LR22: I16Phytophysiognomie_sucessional_advanced_stage3 | LS22: I16Phytophysiognomie_sucessional_midle_stage3 | LT22: I16Phytophysiognomie_sucessional_early_stage3 | LU22: I16Phytophysiognomie4 | LV22: I16Phytophysiognomie_sucessional_advanced_stage4 | LW22: I16Phytophysiognomie_sucessional_midle_stage4 | LX22: I16Phytophysiognomie_sucessional_early_stage4 | LY22: I16Number_of_fragments | LZ22: I16Connection_with_native_vegetation_of_neighboring | MA22: I16Protection_grazing_and_fire | MB22: I16.RESULT | MC22: I17Native vegetation | MD22: I17Area_indicated_for_recomposition | ME22: I17Proportion_of_PAs_effectively_protected | MF22: I17.PARTIALRESULT1 | MG22: I17CRA_AREA | MH22: I17Surplus_native_vegetation | MI22: I17CRA_outside_the_farm | MJ22: I17CRA_not_subject_to_recomposition | MK22: I17CRA_requires_recomposition | ML22: I17PARTIALRESULT2 | MM22: I17.RESULT | MN22: FINAL_INDEX | MO22: Standard_deviation | MP22: 1.Productivity_and_Sales_Prices | MQ22: 2.Income_Diversity | MR22: 3.Asset_Development_and_Indebtedness | MS22: 4.Public_Services | MT22: 5.Education_and_Courses | MU22: 6.Employment_Quality | MV22: 7.Business_Management | MW22: 8.Commercialization_and_Innovation | MX22: 9.Waste_Residues_Management | MY22: 10.Soil_Fertility | MZ22: 11.Soil_Erosion_and_Road_Maintenance | NA22: 12.Water_Quality | NB22: 13.Water_contamination_risk_and_Pesticides | NC22: 14.Soil_and_Water_Conservation | ND22: 15.Biodiversity_Conservation | NE22: 16.Natural_Habitats | NF22: 17.Preservation_and_Conservation_Reserve_Areas | NG22: R1ANNUAL_INCOME | NH22: R2ANNUAL_INCOME_HECTARE-1 | NI22: R3ANNUAL_GROSS_INCOME_ESTIMATED_ASSET-1 | NJ22: R4LAND_REFERENCE_VALUE | NK22: R5ESTIMATED_ASSET | NL22: R6Anual_asset_development_discounting_land_appreciation | NM22: R7Amount_of_pesticides_cultivated_area-1_L_ha_year | NN22: R8EIQ_Final_Index | NO22: R9Pesticides_Number_of_commercial_products | NP22: R10Pesticides_EIQ_average | NQ22: R11Pesticides_EIQ_max | NR22: R12EIQ_Farm_worker_component_average | NS22: R13EIQ_Farm_worker_component_max | NT22: R14EIQ_Consumer_component_average | NU22: R15EIQ_Consumer_component_max | NV22: R16EIQ_Ecological_component_average | NW22: R17EIQ_Ecological_component_max | NX22: R18Pesticides_proportion_of_products_used_in_the_farm_banned_by_the_European_Union
A23: =COUNTA(C22:NX22) -> 386 | C23: ='1 Survey'!C34 -> 00:00:00 | D23: ='1 Survey'!C38 -> 0 | E23: ='1 Survey'!C40 -> 0 | F23: ='1 Survey'!C44 -> 0 | G23: ='1 Survey'!C46 -> 0 | H23: ='1 Survey'!C48 -> 0 | I23: ='1 Survey'!C52 -> 0 | J23: ='1 Survey'!C54 -> 0 | K23: ='1 Survey'!C56 -> 0 | L23: ='1 Survey'!C58 -> 0 | M23: ='1 Survey'!D62 -> 0 | N23: ='1 Survey'!D64 -> 0 | O23: ='1 Survey'!D66 -> 0 | P23: ='1 Survey'!D70 -> 0 | Q23: ='1 Survey'!D72 -> 0 | R23: ='1 Survey'!D74 -> 0 | S23: ='1 Survey'!D77 -> 0 | T23: ='1 Survey'!D79 -> 0 | U23: ='1 Survey'!D84 -> 0 | V23: ='1 Survey'!D85 -> 0 | W23: ='1 Survey'!D86 -> 0 | X23: ='1 Survey'!D87 -> 0 | Y23: ='1 Survey'!D88 -> 0 | Z23: ='1 Survey'!D89 -> 0 | AA23: ='1 Survey'!D90 -> 0 | AB23: ='1 Survey'!D91 -> 0 | AC23: ='1 Survey'!D92 -> 0 | AD23: ='1 Survey'!H92 -> 0.00 | AE23: ='1 Survey'!D97 -> 0.00 | AF23: ='1 Survey'!D98 -> 0.00 | AG23: ='1 Survey'!D72*'1 Survey'!E103 -> 0.00 | AH23: ='1 Survey'!E104 -> 0.00 | AI23: ='1 Survey'!E108 -> 0 | AJ23: ='1 Survey'!E109 -> 0 | AK23: ='1 Survey'!E110 -> 0 | AL23: ='1 Survey'!E111 -> 0 | AM23: ='1 Survey'!E114 -> 0 | AN23: ='1 Survey'!E115 -> 0 | AO23: ='1 Survey'!E118 -> 0 | AP23: ='1 Survey'!E120 -> 0 | AQ23: ='1 Survey'!E124 -> 0 | AR23: ='1 Survey'!E126 -> 0 | AS23: ='1 Survey'!C131 -> 0 | AT23: ='1 Survey'!C133 -> 0 | AU23: ='1 Survey'!C135 -> 0 | AV23: ='2 Indicators'!C9 -> 0 | AW23: ='2 Indicators'!D9 -> $0.00 | AX23: ='2 Indicators'!C10 -> 0 | AY23: ='2 Indicators'!D10 -> $0.00 | AZ23: ='2 Indicators'!C11 -> 0 | BA23: ='2 Indicators'!D11 -> $0.00 | BB23: ='2 Indicators'!D15 -> 0 | BC23: ='2 Indicators'!D16 -> 0 | BD23: ='2 Indicators'!D17 -> 0 | BE23: ='2 Indicators'!D18 -> 0 | BF23: ='2 Indicators'!D19 -> 0 | BG23: ='2 Indicators'!D20 -> 0 | BH23: ='2 Indicators'!E15 -> 0 | BI23: ='2 Indicators'!E16 -> 0 | BJ23: ='2 Indicators'!E17 -> 0 | BK23: ='2 Indicators'!E18 -> 0 | BL23: ='2 Indicators'!E19 -> 0 | BM23: ='2 Indicators'!E20 -> 0 | BN23: ='2 Indicators'!F15 -> 0 | BO23: ='2 Indicators'!F16 -> 0 | BP23: ='2 Indicators'!F17 -> 0 | BQ23: ='2 Indicators'!F18 -> 0 | BR23: ='2 Indicators'!F19 -> 0 | BS23: ='2 Indicators'!F20 -> 0 | BT23: ='2 Indicators'!C22 -> 0.00 | BU23: ='2 Indicators'!C28 -> 0 | BV23: ='2 Indicators'!D28 -> $0.00 | BW23: ='2 Indicators'!C29 -> 0 | BX23: ='2 Indicators'!D29 -> $0.00 | BY23: ='2 Indicators'!C30 -> 0 | BZ23: ='2 Indicators'!D30 -> $0.00 | CA23: ='2 Indicators'!D34 -> 0 | CB23: ='2 Indicators'!D35 -> 0 | CC23: ='2 Indicators'!F39 ->  | CD23: ='2 Indicators'!F40 ->  | CE23: ='2 Indicators'!F41 ->  | CF23: ='2 Indicators'!F42 ->  | CG23: ='2 Indicators'!F43:F43 ->  | CH23: ='2 Indicators'!C45 ->  | CI23: ='2 Indicators'!D49 -> 0 | CJ23: ='2 Indicators'!B54 -> 0 | CK23: ='2 Indicators'!C54 -> $0.00 | CL23: ='2 Indicators'!B58 -> 0 | CM23: ='2 Indicators'!C58 -> $0.00 | CN23: ='2 Indicators'!D59 -> $0.00 | CO23: ='2 Indicators'!B62 -> 0 | CP23: ='2 Indicators'!C62 -> $0.00 | CQ23: ='2 Indicators'!B66 -> 0 | CR23: ='2 Indicators'!C66 -> $0.00 | CS23: ='2 Indicators'!D67 -> $0.00 | CT23: ='2 Indicators'!D73 -> $0.00 | CU23: ='2 Indicators'!F73 -> $0.00 | CV23: ='2 Indicators'!B77 -> 0 | CW23: ='2 Indicators'!C77 -> 0.0 | CX23: ='2 Indicators'!D77 -> 0.0 | CY23: ='2 Indicators'!C89 -> 0 | CZ23: ='2 Indicators'!D89 -> 0 | DA23: ='2 Indicators'!C92 -> $0.00 | DB23: ='2 Indicators'!D92 -> $0.00 | DC23: ='2 Indicators'!C95 ->  | DD23: ='2 Indicators'!D95 ->  | DE23: ='2 Indicators'!F100 ->  | DF23: ='2 Indicators'!F101 -> 100.0% | DG23: ='2 Indicators'!F102 -> 100.0% | DH23: ='2 Indicators'!F103 ->  | DI23: ='2 Indicators'!F104 ->  | DJ23: ='2 Indicators'!F105 ->  | DK23: ='2 Indicators'!F106 ->  | DL23: ='2 Indicators'!C107 ->  | DM23: ='2 Indicators'!E111 -> $0.00 | DN23: ='2 Indicators'!E112 ->  | DO23: ='2 Indicators'!C113 ->  | DP23: ='2 Indicators'!C115 ->  | DQ23: ='2 Indicators'!D119 -> 0 | DR23: =IF(SUM('2 Indicators'!$E$123:$E$130)=0,'2 Indicators'!D123,('2 Indicators'!D123+'2 Indicators'!E123)/2) -> 0 | DS23: =IF(SUM('2 Indicators'!$E$123:$E$130)=0,'2 Indicators'!D124,('2 Indicators'!D124+'2 Indicators'!E124)/2) -> 0 | DT23: =IF(SUM('2 Indicators'!$E$123:$E$130)=0,'2 Indicators'!D125,('2 Indicators'!D125+'2 Indicators'!E125)/2) -> 0 | DU23: =IF(SUM('2 Indicators'!$E$123:$E$130)=0,'2 Indicators'!D126,('2 Indicators'!D126+'2 Indicators'!E126)/2) -> 0 | DV23: =IF(SUM('2 Indicators'!$E$123:$E$130)=0,'2 Indicators'!D127,('2 Indicators'!D127+'2 Indicators'!E127)/2) -> 0 | DW23: =IF(SUM('2 Indicators'!$E$123:$E$130)=0,'2 Indicators'!D128,('2 Indicators'!D128+'2 Indicators'!E128)/2) -> 0 | DX23: =IF(SUM('2 Indicators'!$E$123:$E$130)=0,'2 Indicators'!D129,('2 Indicators'!D129+'2 Indicators'!E129)/2) -> 0 | DY23: =IF(SUM('2 Indicators'!$E$123:$E$130)=0,'2 Indicators'!D130,('2 Indicators'!D130+'2 Indicators'!E130)/2) -> 0 | DZ23: ='2 Indicators'!C132 -> 0.00 | EA23: =IF(SUM('2 Indicators'!$E$136:$E$138)=0,'2 Indicators'!D136,('2 Indicators'!D136+'2 Indicators'!E136)/2) -> 0 | EB23: =IF(SUM('2 Indicators'!$E$136:$E$138)=0,'2 Indicators'!D137,('2 Indicators'!D137+'2 Indicators'!E137)/2) -> 0 | EC23: =IF(SUM('2 Indicators'!$E$136:$E$138)=0,'2 Indicators'!D138,('2 Indicators'!D138+'2 Indicators'!E138)/2) -> 0 | ED23: ='2 Indicators'!C140 -> 0.00 | EE23: ='2 Indicators'!C142 -> 0.00 | EF23: ='2 Indicators'!D147 -> 0 | EG23: ='2 Indicators'!D148 -> 0 | EH23: ='2 Indicators'!D149 -> 0 | EI23: ='2 Indicators'!D150 -> 0 | EJ23: ='2 Indicators'!D151 -> 0 | EK23: ='2 Indicators'!E147 -> 0 | EL23: ='2 Indicators'!E148 -> 0 | EM23: ='2 Indicators'!E149 -> 0 | EN23: ='2 Indicators'!E150 -> 0 | EO23: ='2 Indicators'!E151 -> 0 | EP23: ='2 Indicators'!D155 -> 0 | EQ23: ='2 Indicators'!D156 -> 0 | ER23: ='2 Indicators'!E155 -> 0 | ES23: ='2 Indicators'!E156 -> 0 | ET23: ='2 Indicators'!D161 -> 0 | EU23: ='2 Indicators'!D162 -> 0 | EV23: ='2 Indicators'!E161 -> 0 | EW23: ='2 Indicators'!E162 -> 0 | EX23: ='2 Indicators'!C164 ->  | EY23: ='2 Indicators'!D170+'2 Indicators'!E170 -> 0 | EZ23: ='2 Indicators'!D171+'2 Indicators'!E171 -> 0 | FA23: ='2 Indicators'!D172+'2 Indicators'!E172 -> 0 | FB23: ='2 Indicators'!D177 -> 0 | FC23: ='2 Indicators'!D178 -> 0 | FD23: ='2 Indicators'!D179 -> 0 | FE23: ='2 Indicators'!D180 -> 0 | FF23: ='2 Indicators'!D181 -> 0 | FG23: ='2 Indicators'!D182 -> 0 | FH23: ='2 Indicators'!D183 -> 0 | FI23: ='2 Indicators'!D184 -> 0 | FJ23: =IF('2 Indicators'!E170>0,'2 Indicators'!E170/('2 Indicators'!E170+'2 Indicators'!D170),"") ->  | FK23: ='2 Indicators'!C186 -> 0.70 | FL23: ='2 Indicators'!E191 -> 0 | FM23: ='2 Indicators'!E192 -> 0 | FN23: ='2 Indicators'!E193 -> 0 | FO23: ='2 Indicators'!E194 -> 0 | FP23: ='2 Indicators'!E195 -> 0 | FQ23: ='2 Indicators'!E196 -> 0 | FR23: ='2 Indicators'!E197 -> 0 | FS23: ='2 Indicators'!E198 -> 0 | FT23: ='2 Indicators'!C200 -> 0.00 | FU23: ='2 Indicators'!E205 -> 0 | FV23: ='2 Indicators'!E206 -> 0 | FW23: ='2 Indicators'!E209 -> 0 | FX23: ='2 Indicators'!E210 -> 0 | FY23: ='2 Indicators'!E211 -> 0 | FZ23: ='2 Indicators'!E212 -> 0 | GA23: ='2 Indicators'!D215 -> 0 | GB23: ='2 Indicators'!E215 -> 0% | GC23: ='2 Indicators'!D216 -> 0 | GD23: ='2 Indicators'!E216 -> 0% | GE23: ='2 Indicators'!C218 -> 0.00 | GF23: ='2 Indicators'!D223 -> 0 | GG23: ='2 Indicators'!E223 -> 0 | GH23: ='2 Indicators'!D224 -> 0 | GI23: ='2 Indicators'!E224 -> 0 | GJ23: ='2 Indicators'!E227 -> 0% | GK23: =IF('2 Indicators'!E230="","sem efluente",'2 Indicators'!E230) -> sem efluente | GL23: =IF('2 Indicators'!E231="","sem efluente",'2 Indicators'!E231) -> sem efluente | GM23: ='2 Indicators'!E234 -> 0 | GN23: ='2 Indicators'!E235 -> 0 | GO23: ='2 Indicators'!C236 -> 0.70 | GP23: ='2 Indicators'!C240 -> 0 | GQ23: ='2 Indicators'!C242/100 -> 0% | GR23: ='2 Indicators'!C243 -> 0.00 | GS23: ='2 Indicators'!E243 -> 0.00 | GT23: ='2 Indicators'!C244 -> 0.00 | GU23: ='2 Indicators'!E244 -> 0.00 | GV23: ='2 Indicators'!C245 -> 0 | GW23: ='2 Indicators'!E245 -> 0.00 | GX23: ='2 Indicators'!C246 -> 0 | GY23: ='2 Indicators'!E246 -> 0.00 | GZ23: ='2 Indicators'!C247 -> 0 | HA23: ='2 Indicators'!E247 -> 0.00 | HB23: ='2 Indicators'!C248 -> 0 | HC23: ='2 Indicators'!E248 -> 0.00 | HD23: ='2 Indicators'!C249 -> 0 | HE23: ='2 Indicators'!E249 -> 0.00 | HF23: ='2 Indicators'!C250 -> 0 | HG23: ='2 Indicators'!E250 -> 0.00 | HH23: ='2 Indicators'!C251 -> 0 | HI23: ='2 Indicators'!E251 -> 0.00 | HJ23: ='2 Indicators'!C265 -> 0.00 | HK23: ='2 Indicators'!C255 -> 0 | HL23: ='2 Indicators'!C256 -> 0 | HM23: ='2 Indicators'!C257 -> 0.00 | HN23: ='2 Indicators'!C258 -> 0.00 | HO23: ='2 Indicators'!C259 -> 0.00 | HP23: ='2 Indicators'!C260 -> 0.00 | HQ23: ='2 Indicators'!C261 -> 0.00 | HR23: ='2 Indicators'!C262 -> 0.00 | HS23: ='2 Indicators'!C263 -> 0.00 | HT23: ='2 Indicators'!C265 -> 0.00 | HU23: ='2 Indicators'!D270 -> 0.00 | HV23: ='2 Indicators'!E270 -> 0.00 | HW23: ='2 Indicators'!F270 ->  | HX23: ='2 Indicators'!D273 -> 0 | HY23: ='2 Indicators'!C275 -> 0.70 | HZ23: ='2 Indicators'!E278 -> 0% | IA23: ='2 Indicators'!E279 -> 0% | IB23: ='2 Indicators'!E280 -> 0% | IC23: ='2 Indicators'!E282 -> 0% | ID23: ='2 Indicators'!E283 -> 0% | IE23: =IF('2 Indicators'!E285="x",1,0) -> 0 | IF23: ='2 Indicators'!E286 -> 0 | IG23: ='2 Indicators'!C287 -> 0.00 | IH23: ='2 Indicators'!C289 -> 0.35 | II23: ='2 Indicators'!D295 -> 0 | IJ23: ='2 Indicators'!D296 -> 0 | IK23: ='2 Indicators'!D297 -> 0 | IL23: ='2 Indicators'!D298 -> 0 | IM23: ='2 Indicators'!D299 -> 0 | IN23: ='2 Indicators'!D300 -> 0 | IO23: ='2 Indicators'!D301 -> 0 | IP23: ='2 Indicators'!D302 -> 0 | IQ23: ='2 Indicators'!D303 -> 0 | IR23: ='2 Indicators'!D304 -> 0 | IS23: ='2 Indicators'!D305 -> 0 | IT23: ='2 Indicators'!D306 -> 0 | IU23: ='2 Indicators'!D307 -> 0 | IV23: ='2 Indicators'!D308 -> 0 | IW23: ='2 Indicators'!D322 -> 0.00 | IX23: ='2 Indicators'!D323 -> 0.00 | IY23: ='2 Indicators'!D325 -> 0.00 | IZ23: ='2 Indicators'!D326 -> 0.00 | JA23: ='2 Indicators'!D334 ->  | JB23: ='2 Indicators'!C336 -> 0.00 | JC23: ='2 Indicators'!D341 -> 0 | JD23: ='2 Indicators'!D343 -> 0 | JE23: ='2 Indicators'!D344 -> 0 | JF23: ='2 Indicators'!D345 -> 0 | JG23: ='2 Indicators'!D346 -> 0 | JH23: ='2 Indicators'!D347 ->  | JI23: ='2 Indicators'!D354 ->  | JJ23: ='2 Indicators'!D364 ->  | JK23: ='2 Indicators'!D365 ->  | JL23: ='2 Indicators'!E341 -> 0 | JM23: ='2 Indicators'!E343 -> 0 | JN23: ='2 Indicators'!E344 -> 0 | JO23: ='2 Indicators'!E345 -> 0 | JP23: ='2 Indicators'!E346 -> 0 | JQ23: ='2 Indicators'!E347 ->  | JR23: ='2 Indicators'!E354 ->  | JS23: ='2 Indicators'!E364 ->  | JT23: ='2 Indicators'!E365 ->  | JU23: ='2 Indicators'!F341 -> 0 | JV23: ='2 Indicators'!F343 -> 0 | JW23: ='2 Indicators'!F344 -> 0 | JX23: ='2 Indicators'!F345 -> 0 | JY23: ='2 Indicators'!F346 -> 0 | JZ23: ='2 Indicators'!F347 ->  | KA23: ='2 Indicators'!F354 ->  | KB23: ='2 Indicators'!F364 ->  | KC23: ='2 Indicators'!F365 ->  | KD23: ='2 Indicators'!D367 -> 0 | KE23: ='2 Indicators'!D368 -> 0 | KF23: ='2 Indicators'!D369 -> 0 | KG23: ='2 Indicators'!E367 -> 0 | KH23: ='2 Indicators'!E368 -> 0 | KI23: ='2 Indicators'!E369 -> 0 | KJ23: ='2 Indicators'!F367 -> 0 | KK23: ='2 Indicators'!F368 -> 0 | KL23: ='2 Indicators'!F369 -> 0 | KM23: ='2 Indicators'!C371 -> 1.00 | KN23: ='2 Indicators'!E374 -> 0 | KO23: ='2 Indicators'!E375 -> 0 | KP23: ='2 Indicators'!E377 -> 0 | KQ23: ='2 Indicators'!E378 -> 0 | KR23: ='2 Indicators'!C380 -> 1.00 | KS23: ='2 Indicators'!C382 -> 1.00 | KT23: =SUM('2 Indicators'!D388:G388) -> 0.00 | KU23: =SUM('2 Indicators'!D390:G390) -> 0.00 | KV23: =SUM('2 Indicators'!D391:G391) -> 0.00 | KW23: ='2 Indicators'!D392 -> 0 | KX23: ='2 Indicators'!D395 -> 0 | KY23: ='2 Indicators'!C398 ->  | KZ23: =SUM('2 Indicators'!D404:G404) -> 0.00 | LA23: =SUM('2 Indicators'!D406:G406) -> 0.00 | LB23: =SUM('2 Indicators'!D407:G407) -> 0.00 | LC23: ='2 Indicators'!D408 -> 0 | LD23: ='2 Indicators'!C411 ->  | LE23: ='2 Indicators'!E413 ->  | LF23: ='2 Indicators'!C414 ->  | LG23: =IF('2 Indicators'!F416="x",1,0) -> 0 | LH23: ='2 Indicators'!C418 ->  | LI23: ='2 Indicators'!D422 -> 0 | LJ23: ='2 Indicators'!D423 -> 0 | LK23: ='2 Indicators'!D424 -> 0 | LL23: ='2 Indicators'!D425 -> 0 | LM23: ='2 Indicators'!E422 -> 0 | LN23: ='2 Indicators'!E423 -> 0 | LO23: ='2 Indicators'!E424 -> 0 | LP23: ='2 Indicators'!E425 -> 0 | LQ23: ='2 Indicators'!F422 -> 0 | LR23: ='2 Indicators'!F423 -> 0 | LS23: ='2 Indicators'!F424 -> 0 | LT23: ='2 Indicators'!F425 -> 0 | LU23: ='2 Indicators'!G422 -> 0 | LV23: ='2 Indicators'!G423 -> 0 | LW23: ='2 Indicators'!G424 -> 0 | LX23: ='2 Indicators'!G425 -> 0 | LY23: ='2 Indicators'!F429 -> 0 | LZ23: ='2 Indicators'!F432 -> 0 | MA23: ='2 Indicators'!F434 -> 0 | MB23: ='2 Indicators'!C436 -> 0.00 | MC23: ='2 Indicators'!F441 -> 0.00 | MD23: ='2 Indicators'!F442 -> 0.00 | ME23: ='2 Indicators'!F445 -> 0.0% | MF23: ='2 Indicators'!C447 -> 0.00 | MG23: ='1 Survey'!D72*'1 Survey'!E103 -> 0.00 | MH23: ='2 Indicators'!F453 -> 0.00 | MI23: ='2 Indicators'!F454 -> 0.00 | MJ23: ='2 Indicators'!F455 -> 0.00 | MK23: ='2 Indicators'!F456 -> 0.00 | ML23: ='2 Indicators'!C458 ->  | MM23: ='2 Indicators'!C460 ->  | MN23: ='3 Report'!Q65 ->  | MO23: ='3 Report'!P64 ->  | MP23: ='3 Report'!Q66 -> 0.00 | MQ23: ='3 Report'!Q67 ->  | MR23: ='3 Report'!Q68 ->  | MS23: ='3 Report'!Q69 -> 0.00 | MT23: ='3 Report'!Q70 ->  | MU23: ='3 Report'!Q71 -> 0.70 | MV23: ='3 Report'!Q72 -> 0.00 | MW23: ='3 Report'!Q73 -> 0.00 | MX23: ='3 Report'!Q74 -> 0.70 | MY23: ='3 Report'!Q75 -> 0.00 | MZ23: ='3 Report'!Q76 -> 0.35 | NA23: ='3 Report'!Q77 -> 0.00 | NB23: ='3 Report'!Q78 -> 1.00 | NC23: ='3 Report'!Q79 ->  | ND23: ='3 Report'!Q80 ->  | NE23: ='3 Report'!Q81 -> 0.00 | NF23: ='3 Report'!Q82 ->  | NG23: ='3 Report'!K38 ->  | NH23: ='3 Report'!K35 ->  | NI23: ='3 Report'!K37 ->  | NJ23: ='3 Report'!J92 -> $0.00 | NK23: ='3 Report'!J93 -> $0.00 | NL23: ='3 Report'!J95 -> 0.0% | NM23: ='3 Report'!K44 ->  | NN23: ='3 Report'!K46 -> 0 | NO23: =COUNTA('2 Indicators'!D341:F341,Formulas!D411:L411,Formulas!D440:L440,Formulas!D468:I468) -> 0 | NP23: =NN23/NO23 ->  | NQ23: =MAX('2 Indicators'!D358:F358,Formulas!D429:L429,Formulas!D458:L458,Formulas!D486:I486) -> 0.0 | NR23: =AVERAGE('2 Indicators'!D355:F355,Formulas!D426:L426,Formulas!D455:L455,Formulas!D483:I483) ->  | NS23: =MAX('2 Indicators'!D355:F355,Formulas!D426:L426,Formulas!D455:L455,Formulas!D483:I483) -> 0.0 | NT23: =AVERAGE('2 Indicators'!D356:F356,Formulas!D427:L427,Formulas!D456:L456,Formulas!D484:I484) ->  | NU23: =MAX('2 Indicators'!D356:F356,Formulas!D427:L427,Formulas!D456:L456,Formulas!D484:I484) -> 0.0 | NV23: =AVERAGE('2 Indicators'!D357:F357,Formulas!D428:L428,Formulas!D457:L457,Formulas!D485:I485) ->  | NW23: =MAX('2 Indicators'!D357:F357,Formulas!D428:L428,Formulas!D457:L457,Formulas!D485:I485) -> 0.0 | NX23: =Formulas!N488/'Data base'!NO23 -> 
U25: Unsuitable areas | V25: =AC23/AD23 ->  | KU25: =KT23 -> 0.0 | KV25: =KU23 -> 0.0 | KW25: =KV23 -> 0.0 | LA25: =KZ23 -> 0.0 | LB25: =LA23 -> 0.0 | LC25: =LB23 -> 0.0
C26: REFERENCES | U26: Fallow | V26: =Z23/AD23 ->  | DQ26: Waste collection | DR26: =DY23 -> 0.0% | IB26: Transverse slope | IC26: =HZ23 -> 0% | IJ26: Upstream | KU26: =KU25 -> 0.0 | KV26: =KV25 -> 0.0 | KW26: =KW25 -> 0.0 | LA26: =LA25 -> 0.0 | LB26: =LB25 -> 0.0 | LC26: =LC25 -> 0.0
U27: Non-agricultural area | V27: =Y23/AD23 ->  | DE27: Value of land in the region | DF27: =DE23 ->  | DQ27: Security in the local area | DR27: =DW23 -> 0.0% | EO27: Family members - Short training season | EP27: Family members - Long-term training | EQ27: Rural workers - Short training season | ER27: Rural workers - Long-term training | FK27: Access credit for commercialization | FL27: =FS23 -> 0.0% | FT27: Search information / diversify buyers | FU27: =FU23 -> 0 | IB27: Bumps/grooves | IC27: =IA23 -> 0% | IJ27: Occupation of the river banks | IK27: =II23 -> 0.00 | KU27: =KU26/$KU$28 ->  | KV27: =KV26/$KU$28 ->  | KW27: =KW26/$KU$28 ->  | LA27: =LA26/$KU$28 ->  | LB27: =LB26/$KU$28 ->  | LC27: =LC26/$KU$28 -> 
C28: Astier, M., García-Barrios, L., Galván-Miyoshi, Y., González-Esquivel, C. E., & Masera, O. R. (2012). Assessing the sustainability of small farmer natural resource management systems. A critical analysis of the MESMIS program (1995-2010). Ecology and society, 17(3). http://dx.doi.org/10.5751/ES-04910-170325 | U28: Water courses | V28: =AA23/AD23 ->  | CF28: Retirement, pension, financial help, other sources | CG28: =CF23 ->  | CJ28: Constructions | CK28: =CN23 -> R$ 0.00 | CL28: =CK28/$CK$32 ->  | DE28: Buildings (including renovation or improvements) | DF28: =DF23 -> 100.0% | DQ28: Internet | DR28: =DX23 -> 0.0% | EO28: =IF(EF23=0,"",EP23/EF23) ->  | EP28: =IF(EF23=0,"",EQ23/EF23) ->  | EQ28: =IF(EK23=0,"",ER23/EK23) ->  | ER28: =IF(EK23=0,"",ES23/EK23) ->  | FK28: Access credit for the farm activities | FL28: =FR23 -> 0.0% | FT28: Adoption of innovative techniques | FU28: =FW23 -> 0 | GK28: Treatment of gaseous effluents (generated in boilers, biodigesters, charcoal) | GL28: =IF('2 Indicators'!E231="","",'2 Indicators'!E231) ->  | IB28: Infiltration structures | IC28: =IB23 -> 0% | IJ28: Anthropogenic changes | IK28: =IK23 -> 0.00 | KU28: =SUM(KU25:KW25) -> 0.00 | LA28: =SUM(LA26:LC26) -> 0.00
C29: Callisto, M., Ferreira, W. R., Moreno, P., Goulart, M., & Petrucio, M. (2002). Aplicação de um protocolo de avaliação rápida da diversidade de habitats em atividade de ensino e pesquisa (MG-RJ). Acta Limnologica Brasiliensia. | U29: Native vegetation | V29: =AB23/AD23 ->  | CF29: Off-site activities | CG29: =CE23 ->  | CJ29: Equipments | CK29: =CS23 -> R$ 0.00 | CL29: =CK29/$CK$32 ->  | DE29: Equipment | DF29: =DG23 -> 100.0% | DQ29: Access to health care | DR29: =DU23 -> 0.0% | FK29: Access investment credit | FL29: =FQ23 -> 0.0% | FT29: Ability to innovate or leadership | FU29: =FY23 -> 0 | GK29: Adequate allocation and treatment of liquid effluents | GL29: =IF('2 Indicators'!E230="","",'2 Indicators'!E230) ->  | IJ29: Vegetal cover in the margins | IK29: =IM23 -> 0.00
C30: Chaves, H. M. L., & Souza, M. A. (2015). Índice para a avaliação do risco de contaminação da água por pesticidas: desenvolvimento e validação. Revista Brasileira de Recursos Hídricos, 20(2), 286-297. | U30: Forestry | V30: =X23/AD23 ->  | CF30: Other activities on the farm | CG30: =CD23 ->  | CJ30: Livestock | CK30: =CT23 -> 0 | CL30: =CK30/$CK$32 ->  | DE30: Animals / Grain stock | DF30: =DH23 ->  | DQ30: Regular road access to the farm | DR30: =DT23 -> 0.0% | FK30: Production's cost | FL30: =FM23 -> 0.0% | FT30: Generates certified products / aggregate value | FU30: =FV23 -> 0 | GK30: Proper sewage treatment and destination | GL30: ='2 Indicators'!F223 ->  | IB30: Presence of holes | IC30: =IC23 -> 0% | IJ30: Erosion signals next to the banks | IK30: =IO23 -> 0.00 | KU30: Sufficient | KV30: Insufficient | KW30: Critical situation | LA30: Sufficient | LB30: Insufficient | LC30: Critical situation
C31: Deponti, C.M.; Eckert, C.; Azambuja, J.L.B (2002). Strategy for building indicators for assessing sustainability and monitoring systems. Agroecology and Sustainable Rural Development, Porto Alegre, v.3, n.4, p.44-52. | U31: Permanent crops | V31: =U23/$AD$23 ->  | CF31: Agricultural, livestock and or forestry activities on the farm | CG31: =CC23 ->  | CJ31: Land value | CK31: =CY23*DA23 -> 0 | CL31: =CK31/$CK$32 ->  | DE31: Increase in the agriculture area and/or irrigation area | DF31: =DI23 ->  | DQ31: Access to electricity | DR31: =DS23 -> 0.0% | FK31: Cash flow (income / expense) | FL31: =FL23 -> 0.0% | GK31: Proper garbage destination | GL31: ='2 Indicators'!F224 ->  | IB31: Presence of erosion grooves | IC31: =ID23 -> 0% | IJ31: Water transparency | IK31: =IQ23 -> 0.00 | KU31: =KU27 ->  | KV31: =KV27 ->  | KW31: =KW27 ->  | LA31: =LA27 ->  | LB31: =LB27 ->  | LC31: =LC27 -> 
C32: Corrêa, I. V. (2007). Indicadores de sustentabilidade para agroecossistemas em transição agroecológica na região sul do Rio Grande do Sul. Pelotas-RS: UFPel-Universidade Federal de Pelotas. | U32: Annual crops | V32: =V23/AD23 ->  | CJ32: Asset value | CK32: =DC23 ->  | DQ32: Regular access to school transportation | DR32: =DV23 -> 0.0% | FK32: Existence of rural associations and the farmer's participation | FL32: =FO23 -> 0.0% | GK32: Composting/use of organic solid waste | GL32: ='2 Indicators'!E227 -> 0.0% | IJ32: Water Odor | IK32: =IS23 -> 0.00
C33: Fidalski, J. (1997). Diagnóstico de manejo e conservação do solo e da água na região noroeste do Paraná. R. Unimar, 19, 845-851. | U33: Pastures | V33: =W23/$AD$23 ->  | DE33: Anual asset development | DF33: =DJ23 ->  | DQ33: Water availability (quantity and quality) | DR33: =DR23 -> 0.0% | FK33: Access to technical assistance | FL33: =FN23 -> 0.0% | IJ33: Characterization of the bottom | IK33: =IU23 -> 0.00
C34: Gitman, L. J., & Zutter, C. J. (2012). Principles of managerial finance 13th edition. Massachusetts: Addison-Wesley Publishing Company. | DE34: Anual asset development discounting land appreciation | DF34: =DK23 ->  | FK34: Environmental regularization | FL34: =FP23 -> 0.0%
C35: Gómez-Limón, J. A., & Sanchez-Fernandez, G. (2010). Empirical evaluation of agricultural sustainability using composite indicators. Ecological economics, 69(5), 1062-1075. https://10.1016/j.ecolecon.2009.11.027 | IJ35: Downstream
C36: Kovach, J., Petzoldt, C., Degni, J., & Tette, J. (1992). A method to measure the environmental impact of pesticides. | IJ36: Occupation of the river banks | IK36: =IJ23 -> 0.00
C37: López-Ridaura, S., Masera, O., & Astier, M. (2002). Evaluating the sustainability of complex socio-environmental systems. The MESMIS framework. Ecological indicators, 2(1-2), 135-148. | IJ37: Anthropogenic changes | IK37: =IL23 -> 0.00
C38: Matos Filho, A. M. (2004). Agricultura orgânica sob a perspectiva da sustentabilidade: uma análise da região de Florianópolis/SC, Brasil. | IJ38: Vegetal cover in the margins | IK38: =IN23 -> 0.00
C39: Mendes, I. C., Souza, L. M., Sousa, D. M. G., Lopes, A. A. C., Reis-Junior, F. B., Lacerda, M. P. C., & Malaquias, J. V. (2019). Critical limits for microbial indicators in tropical Oxisols at post-harvest: The FERTBIO soil sample concept. Applied Soil Ecology, 139, 85–93. https://doi.org/10.1016/j.apsoil.2019.02.025. | IJ39: Erosion signals next to the banks | IK39: =IP23 -> 0.00
C40: Pesticide Property Database https://sitem.herts.ac.uk/aeru/ppdb/ | IJ40: Water transparency | IK40: =IR23 -> 0.00
C41: Qiu, H. J., Zhu, W. B., Wang, H. B., & Cheng, X. (2007). Analysis and design of agricultural sustainability indicators system. Agricultural Sciences in China, 6(4), 475-486. | IJ41: Water Odor | IK41: =IT23 -> 0.00
C42: Rao, N. H., & Rogers, P. P. (2006). Assessment of agricultural sustainability. Current science, 439-448. | IJ42: Characterization of the bottom | IK42: =IV23 -> 0.00
C43: Ribeiro, A. C. (1999). Recomendações para o uso de corretivos e fertilizantes em Minas Gerais: 5. Aproximação. Comissão de fertilidade do solo do Estado de Minas Gerais.
C44: Rodrigues, G. S., Campanhola, C., & Kitamura, P. C. (2003). An environmental impact assessment system for agricultural R&D. Environmental Impact Assessment Review, 23(2), 219-244.
C45: Rodrigues, G. S., Rodrigues, I. A., Buschinelli, C. C. de A., & de Barros, I. (2010). Integrated farm sustainability assessment for the environmental management of rural activities. Environmental Impact Assessment Review, 30(4), 229–239. https://doi.org/10.1016/j.eiar.2009.10.002
C46: Sala, S., Ciuffo, B., & Nijkamp, P. (2015). A systemic framework for sustainability assessment. Ecological economics, 119, 314-325. http://dx.doi.org/10.1016/j.ecolecon.2015.09.015
C47: Sousa, D.M.G.; Lobato, E. (2004). Soil acidity correction. In: Sousa, D.M.G. de; Lobato, E. (Ed.). Cerrado: soil correction and fertilization. 2nd ed. Brasília: Embrapa Technological Information; Planaltina: Embrapa Cerrados, p.81-96.

Sheet SQI1
B1: ISA
C2: SOIL QUALITY
B4: DATA
B5: Plot identification
B6: Area
B7: Land use | D7: Choose an option
A9: 1 | B9: PRODUCTIVITY
G10: Weighting factor
B11: 1.1 Activities carried out on the plot | G11: > 20% | H11: 0.9
B12: Activities | D12: =C7 -> 0 | G12: Production or sale price = local | H12: 0.7
B13: Units of measurement (select)
B14: Current mean productivity | G14: < 20% | H14: 0.5
B15: Mean local productivity | G15: < 40% | H15: 0.3
B17: 1.2 Inputs (optional)
B18: Activity (select) | E18: Choose an option
B19: Liming (Kg/ha)
B20: Soluble fertilizers (formula description)
B21: Soluble fertilizers (Kg/ha)
B22: Remineralizers / rock powder (description)
B23: Remineralizers / rock powder (Kg/ha)
B24: Organic fertilizers (description)
B25: Organic fertilizers (Kg/ha)
B26: N (Kg) / ha
B27: P (Kg) / ha
B28: K (Kg) / ha
B30: 1.3 Foliar tissue analysis (optional)
B31: Activity (select) | D31: Choose an option | E31: Result
B32: P (g/kg) | E32: =IF(ISBLANK(C32),"",E486) -> 
B33: K (g/kg)
B34: N (g/kg)
B35: S (g/kg) | H35: =IF($C$31=$B$208,C39/$C$41,"") -> 
B36: Ca (g/kg) | H36: =IF($C$31=$B$208,C38/$C$41,"") -> 
B37: Mg (g/kg) | H37: =IF($C$31=$B$208,C42/$C$41,"") -> 
B38: B (mg/kg)
B39: Zn (mg/kg)
B40: Fe (mg/kg)
B41: Mn (mg/kg)
B42: Cu (mg/kg)
B44: 1.4 Production costs (optional)
B45: Fertilizers ($/ha)
B47: Total Inputs ($/ha) | E47: Fertilizers + seeds + pest/weeds/diseases control
B48: Fixed costs ($/ha)
B49: Total costs ($/ha) | D49: =IF(D47>0,D48+D47,"") ->  | E49: =IF(D50>0,(D49/D50),"") -> 
B50: Income ($/ha)
B51: Result (net income) ($/ha) | D51: =IF(D50>0,D50-D49,"") ->  | E51: =IF(D50>0,D51/D50,"") -> 
B53: RESULT | C53: =IF(D14>0,F187,0) -> 0.00
A55: 2 | B55: CHEMISTRY AND BIOLOGYCAL ANALYSIS
B57: Plot identification | C57: =C5 -> 0
E58: Result
B59: Clay content | D59: dag kg-1 (%) Clay | E59: =IF(ISBLANK(C59),0,IF(C59<=15,H222,IF(AND(C59>15,C59<35),H223,IF(AND(C59>=35,C59<=60),H224,IF(C59>60,H225))))) -> 0.00
B60: Soil Organic Matter | D60: (dag kg-1) | E60: =IF(H233>1,1,IF(H233<0,0,H233)) -> 0.00
B61: Available P | D61: (mg dm-3) (Mehlich-1) | E61: =IF(F279>1,1,IF(F279<0,0,F279)) -> 0.00
B62: Exchangeable Ca | D62: (cmolc dm-3) | E62: =IF(ISBLANK(C62),0,IF(F298>1,1,IF(F298<0,0,F298))) -> 0.00
B63: Exchangeable Mg | D63: (cmolc dm-3) | E63: =IF(ISBLANK(C63),0,IF(F314>1,1,IF(F314<0,0,F314))) -> 0.00
B64: Exchangeable K | D64: (mg dm-3) | E64: =IF(ISBLANK(C64),0,IF(F330>1,1,IF(F330<0,0,F330))) -> 0.00
B65: pH | D65: Index | E65: =IF(ISBLANK(C65),0,IF(E345>1,1,IF(E345<0,0,E345))) -> 0.00
B66: Exchangeable Al | D66: (cmolc dm-3) | E66: =IF(C66>2,0,IF(ISBLANK(C66),0,IF(E360>1,1,IF(E360<0,0,E360)))) -> 0.00
B67: Cation Exchange Cap. (CEC) | D67: (cmolc dm-3) | E67: =IF(ISBLANK(C67),0,E375) -> 0.00
B68: Base Saturation | D68: (%) | E68: =IF(ISBLANK(C68),0,IF(E390>0.83,1,IF(E390<0,0,E390))) -> 0.00
B69: Partial result | C69: =AVERAGE(E60,E61,E68) -> 0.00
B71: Soil biology assessment - BioAS* (optional)
B72: Arylsulfatase activity | D72: (mg p-nitrophenol kg-1 h-1)
B73: β-Glucosidase activity | D73: (mg p-nitrophenol kg-1 h-1)
B74: Soil Organic Matter (0-10cm) | D74: (dag kg-1) | E74: Result
B75: Biological soil quality index | D75: Index | E75: =IF(C75>0,C75,"") -> 
B76: Nutrient storage index | D76: Index
B77: Nutrient supply index | D77: Index
B78: Chemical soil quality index | D78: Index
B79: FertBio index | D79: Index
B80: Partial result | C80: =C75 -> 0.00
B82: RESULT | C82: =IF(C80>0,(2*C69+C80)/3,C69) -> 0.00
A84: 3 | B84: SOIL EROSION
D86: Choose an option | E86: Area (ha) | F86: Proportion (%) total area | G86: Weighting factor
B87: 3.1 Degradation stage* | F87: =IF(E87>0,E87/C457," ") ->  | G87: 1.0 | H87: Initial
B88: * Evidence of erosion: Initial - reduction of water infiltration, exposed roots; Intermediate - removal of the superficial horizon, presence of localized shallow grooves; Advanced - deep and widespread furrows in the area, gullies, mass movement (displacement of a soil volume). | G88: 0.8 | H88: Intermediary
D89: Choose an option
B90: 3.2 Trend of process behavior | G90: 0.5 | H90: Advanced
B91: ** Adoption of recovery or mitigation measures such as terraces, physical barriers, revegetation, etc.
B92: RESULT | C92: =IF(B421>0,(B421*B422*1.2)+(B421*C422)+(B421*D422*0.8),0.7) -> 0.70
A94: 4 | B94: SOIL AND WATER CONSERVATION PRACTICES
D96: =C7 -> 0
C97: Area (ha) | D97: =C6 -> 0 | E97: Weighting factor
B98: 4.1 Soil conservation practices (adoption intensity) | C98: High | E98: 1.0
C99: Moderate | E99: 0.6
C100: Incipient | E100: 0.3
C101: Critical situation* | E101: 0.1
B102: *Critical situation (soil/water) - specify
D103: Choose an option | E103: Weighting factor | F103: Verification (Land Use) => | G103: =SUM(D98:D101)/C6 -> 
B104: 4.2 Strategies for water conservation and reservation | E104: 1.0 | F104: Sufficient
D105: Choose an option | E105: 0.4 | F105: Insufficient | G105: Yes
B106: 4.3 No Till practice | E106: 0.1 | F106: Critical situation | G106: No
B108: RESULT | C108: =IF(C460=0,"",(((B460*2)+C460)/3)) -> 
A110: 5 | B110: BIODIVERSITY CONSERVATION PRACTICES
D112: =C7 -> 0
C113: Area (ha) | D113: =C6 -> 0 | E113: Weighting factor
B114: 5.1 Agrobiodiversity Conservation Practices (Adoption Intensity) | C114: High | E114: 1.0
C115: Moderate | E115: 0.6
C116: Incipient | E116: 0.3
C117: Critical situation* | E117: 0.1
B118: *Critical situation (soil/water) - specify
F119: Verification (Land Use) => | G119: =SUM(D114:D117)/C6 ->  | H119: =SUM(D114:D117) -> 0
B120: 5.2 Use of Biological Inputs | E120: Choose an option
B121: 5.3 Use of Crop Rotation/Intercropping | E121: Choose an option
B122: 5.4 Use of Cover Crops/Trees | E122: Choose an option
B123: 5.5 Number of Cover Crops Species
B124: 5.6 Sowing Date of Cover Crops
B125: 5.7 Pesticides use (L/ha)
B127: RESULT | C127: =IF(AND(D120="Yes",D121="Yes",D122="Yes"),(C474*C468)+(C475*C469)+(C476*C470)+(C477*C471),((C474*C468)+(C475*C469)+(C476*C470)+(C477*C471))*0.8) -> 
B129: SQI | C129: =H172 -> 0.10 | F129: Plot description | G129: =C5 -> 0
F130: Data | G130: =C4 -> 00:00:00
F131: Area | G131: =C6 -> 0
B132: Soil Fertility
B133: Soil Organic Matter (SOM) (dag kg-1) | D133: =C60 -> 0.0
B134: Phosphorus (mg dm-3) | D134: 0.0
B135: Calcium (cmolc dm-3) | D135: 0.0
B136: Magnesium (cmolc dm-3) | D136: 0.0
B137: Potassium (mg dm-3) | D137: 0.0
B138: pH | D138: 0.0
B139: Aluminium (cmolc dm-3) | D139: 0.0
B140: Cation Exchange Cap. (CEC) (cmolc dm-3) | D140: 0.0
B141: Base Saturation (%) | D141: 0.0
B142: K/CTC (%) (reference 3 - 5%) | D142: =IF(D137>0,((D137/1000*2.5577)/D140*100),"") -> 
B143: Ca/CTC (%) (reference 40 - 60%) | D143: =IF(D135>0,D135/D140*100,"") -> 
B144: Mg/CTC (%) (reference 15 - 20%) | D144: =IF(D136>0,D136/D140*100,"") -> 
B146: Nutrients (Input) | F146: Soil erosion (Plot)
B147: N (Kg/ha) | D147: =IF(D26="","",D26) ->  | F147: Area | H147: =E87 -> 0
B148: P (Kg/ha) | D148: =IF(D27="","",D27) ->  | F148: Degradation stage | H148: =D87 -> 0
B149: K (Kg/ha) | D149: =IF(D28="","",D28) ->  | F149: Degradation process trend | H149: =D90 -> 0
B151: Yield (Plot) | F151: Soil cover quality / pesticides
B152: Main agricultural activity | D152: =D12 -> 0.0% | F152: Number of species Cover Crops | H152: =IF(D123>0,D123,"") -> 
B153: Unit | D153: =D13 -> 0 | F153: Cover Crops sowing date | H153: =IF(D124>0,D124,"") -> 
B154: Yield / productivity | D154: =D14 -> 0 | F154: Pesticides (L/ha) | H154: =IF(D125>0,D125,"") -> 
B156: Economic result (Plot) | F156: Soil Biology
B157: Total Inputs ($/ha) | D157: =D47 -> $0 | F157: Arylsulfatase (mg p-nitrophenol kg-1 h-1) | H157: =IF(C72="","",C72) -> 
B158: Total cost ($/ha) | D158: =D49 ->  | F158: ß-glucosidase (mg p-nitrophenol kg-1 h-1) | H158: =IF(C73="","",C73) -> 
B159: Net Income ($/ha) | D159: =D51 ->  | F159: Biological soil quality index | H159: =IF(C75="","",C75) -> 
B161: Foliar analysis | F161: Soil Quality (Plot) | H161: =G129 -> 0
B162: P (g/kg) | C162: =IF(C32>0,C32,"") ->  | D162: =IF(C32>0,E32,"") ->  | F162: SOM | H162: =E60 -> 0.00 | I162: 0.7
B163: K (g/kg) | F163: Phosphorus | H163: =E61 -> 0.00 | I163: 0.7
B164: N (g/kg) | F164: Base saturation | H164: =E68 -> 0.00 | I164: 0.7
B165: S (g/kg) | F165: CEC | H165: =E67 -> 0.00 | I165: 0.7
B166: Ca (g/kg) | F166: pH | H166: =E65 -> 0.00 | I166: 0.7
B167: Mg (g/kg) | F167: Soil erosion | H167: =C92 -> 0.70 | I167: 0.7
B168: B (mg/kg) | F168: Soil and water conservation | H168: =C108 ->  | I168: 0.7
B169: Zn (mg/kg) | F169: Biodiversity conservation | H169: =IF(H119>0,C127,"") ->  | I169: 0.7
B170: Fe (mg/kg) | F170: Yield | H170: =C53 -> 0.00 | I170: 0.7
B171: Mn (mg/kg) | F171: Biological soil quality index | H171: =IF(ISBLANK(C75),"",C75) ->  | I171: 0.7
B172: Cu (mg/kg) | F172: Soil Quality Index | H172: =AVERAGE(H162:H171) -> 0.10
B176: FORMULAS
A179: 1 | B179: Weighting factor | F179: Formulas
B180: > 20% | D180: 0.9 | F180: Formula (R parcial) = Yo + ax
B181: Production or sale price = to local | D181: 0.7
F182: yo | G182: -0.30
B183: < 20% | D183: 0.5 | F183: a | G183: 0.01
B184: < 40% | D184: 0.3 | F184: =IF(ISBLANK(D14),"",(G182+G183*(100+(E190*100)))) ->  | G184: =IF(ISBLANK(E14),"",(G182+G183*(100+(F190*100)))) ->  | H184: =IF(ISBLANK(F14),"",(G182+G183*(100+(G190*100)))) -> 
F187: =AVERAGE(E192:G192) -> 
B190: Variation of item 1.3 in relation to item 1.5 | E190: =IF(D14>0,((D14/D15)-1),"") ->  | F190: =IF(E14>0,((E14/E15)-1),"") ->  | G190: =IF(F14>0,((F14/F15)-1),"") -> 
E191: 1.0 | F191: 1.0 | G191: 1.0 | H191: Weighting matrix
B192: Partial result | C192: Productivity | E192: =IF(ISBLANK(D14),"",IF(F184>1,1,F184)) ->  | F192: =IF(ISBLANK(E14),"",IF(G184>1,1,G184)) ->  | G192: =IF(ISBLANK(F14),"",IF(H184>1,1,H184)) -> 
B195: Units I | E195: Units II
B196: Aquaculture production | E196: Sc/ha
B197: Bovine milk | E197: Ton./ha
B198: Cattle meat | E198: Kg/ha
B199: Chicken meat | E199: @/ha/year
B200: Coffee | E200: L of milk/ha/year
B201: Cotton | E201: L of milk/cow/day
B202: Eggs | E202: Kg/dia
B203: Fisheries products | E203: Kg of food/kg de meat produced
B204: Forest products | E204: Piglets sold/pig/year
B205: Fruit cultivation | E205: Eggs/chicken/year
B206: Grains | E206: Food conversion/dozen eggs
B207: Livestock | E207: Food conversion/Kg
B208: Maize | E208: Percentage of laying eggs
B209: Oil paml fruit
B210: Others
B211: Pig Meat
B212: Potatos
B213: Rice
B214: Soybeans
B215: Sugar cane
B216: Vegetables
B217: Wheat
A220: 2 | B220: SOM - Weighting factor | H220: Soil granulometry (dag kg-1 of clay)
B221: Classification | F221: Weighting
B222: Sandy | C222: Loam | D222: Clay | E222: Heavy clay | H222: Sandy | J222: ≤ 15
B223: 0.00 | C223: 0.00 | D223: 0.00 | E223: 0.00 | F223: 0.10 | H223: Loam | J223: 16 a 34
B224: 0.80 | C224: 1.60 | D224: 2.40 | E224: 2.80 | F224: 0.50 | H224: Clay | J224: 35 a 60
B225: 1.10 | C225: 2.10 | D225: 3.10 | E225: 3.60 | F225: 0.70 | H225: Heavy clay | J225: > 60
B226: 1.50 | C226: 3.00 | D226: 4.50 | E226: 5.20 | F226: 1.00
B227: 4.50 | C227: 9.00 | D227: 13.50 | E227: 15.60 | F227: 0.70
B229: Sandy | C229: Yo + ax + bx2 + cx3 | E229: Formula2 = Yo + ax | H229: =IF(AND(E59="Sandy"),IF(C60<1.5,E232,F232),0) -> 0.00
C230: Yo | D230: 0.100 | E230: Yo | F230: 1.15 | H230: =IF(AND(E59="Loam"),IF(C60<3,E242,F242),0) -> 0.00
C231: a | D231: 0.360 | E231: a | F231: -0.10 | H231: =IF(AND(E59="Clay"),IF(C60<4.5,E237,F237),0) -> 0.00
C232: b | D232: 0.193 | E232: =D230+D231*C60+D232*C60^2+D233*C60^3 -> 0.10 | F232: =F230+F231*C60 -> 1.15 | H232: =IF(AND(E59="Heavy clay"),IF(C60<5.2,E247,F247),0) -> 0.00
C233: c | D233: -0.022 | H233: =(H229+H230+H231+H232) -> 0.00
B234: Clay | C234: Yo + ax + bx2 + cx3 | E234: Formula2 = Yo + ax
C235: Yo | D235: 0.100 | E235: Yo | F235: 1.15
C236: a | D236: -0.045 | E236: a | F236: -0.03
C237: b | D237: 0.127 | E237: =D235+D236*C60+D237*C60^2+D238*C60^3 -> 0.10 | F237: =F235+F236*C60 -> 1.15
C238: c | D238: -0.016
... 306 more rows
